Body,Body Name,Transaction No.,Invoice Ref.,Vendor Name,Expense Code,Expense Type,Date,Amount
http://statistics.data.gov.uk/id/local-authority-district/23UB,Cheltenham Borough Council,462312,145181,A&E FIRE EQUIPMENT LTD,C-C22120-1808,Sports & Open S-RM-Routine works,02 December 2011,10.34
http://statistics.data.gov.uk/id/local-authority-district/23UB,Cheltenham Borough Council,462313,145182,A&E FIRE EQUIPMENT LTD,C-C22120-1808,Sports & Open S-RM-Routine works,02 December 2011,6.58
http://statistics.data.gov.uk/id/local-authority-district/23UB,Cheltenham Borough Council,462315,145184,A&E FIRE EQUIPMENT LTD,C-C22120-1808,Sports & Open S-RM-Routine works,02 December 2011,2.82
http://statistics.data.gov.uk/id/local-authority-district/23UB,Cheltenham Borough Council,462317,145186,A&E FIRE EQUIPMENT LTD,C-C22120-1808,Sports & Open S-RM-Routine works,02 December 2011,10.34
http://statistics.data.gov.uk/id/local-authority-district/23UB,Cheltenham Borough Council,462321,145190,A&E FIRE EQUIPMENT LTD,C-C22120-1808,Sports & Open S-RM-Routine works,02 December 2011,1.88
http://statistics.data.gov.uk/id/local-authority-district/23UB,Cheltenham Borough Council,462327,145271,A&E FIRE EQUIPMENT LTD,C-C22120-1808,Sports & Open S-RM-Routine works,02 December 2011,30.73
http://statistics.data.gov.uk/id/local-authority-district/23UB,Cheltenham Borough Council,462324,145193,A&E FIRE EQUIPMENT LTD,C-C22120-1808,Sports & Open S-RM-Routine works,02 December 2011,2.82
http://statistics.data.gov.uk/id/local-authority-district/23UB,Cheltenham Borough Council,462323,145192,A&E FIRE EQUIPMENT LTD,C-C22120-1808,Sports & Open S-RM-Routine works,02 December 2011,9.40
http://statistics.data.gov.uk/id/local-authority-district/23UB,Cheltenham Borough Council,462320,145189,A&E FIRE EQUIPMENT LTD,C-C22120-1808,Sports & Open S-RM-Routine works,02 December 2011,1.88
http://statistics.data.gov.uk/id/local-authority-district/23UB,Cheltenham Borough Council,462316,145185,A&E FIRE EQUIPMENT LTD,C-C22120-1808,Sports & Open S-RM-Routine works,02 December 2011,2.82
http://statistics.data.gov.uk/id/local-authority-district/23UB,Cheltenham Borough Council,462314,145183,A&E FIRE EQUIPMENT LTD,C-C22120-1808,Sports & Open S-RM-Routine works,02 December 2011,3.76
http://statistics.data.gov.uk/id/local-authority-district/23UB,Cheltenham Borough Council,462318,145187,A&E FIRE EQUIPMENT LTD,C-C23140-1808,Public Convnces-RM-Routine works,02 December 2011,2.82
http://statistics.data.gov.uk/id/local-authority-district/23UB,Cheltenham Borough Council,462322,145191,A&E FIRE EQUIPMENT LTD,C-C23140-1808,Public Convnces-RM-Routine works,02 December 2011,9.40
http://statistics.data.gov.uk/id/local-authority-district/23UB,Cheltenham Borough Council,462319,145188,A&E FIRE EQUIPMENT LTD,C-C23140-1808,Public Convnces-RM-Routine works,02 December 2011,2.82
http://statistics.data.gov.uk/id/local-authority-district/23UB,Cheltenham Borough Council,462331,145319,A&E FIRE EQUIPMENT LTD,C-D13100-1808,Muni Off Blgs-RM-Routine works,02 December 2011,186.47
http://statistics.data.gov.uk/id/local-authority-district/23UB,Cheltenham Borough Council,462325,145206,A&E FIRE EQUIPMENT LTD,C-D13550-1115,Area Off -E.Hse-Fire prevention,02 December 2011,63.92
http://statistics.data.gov.uk/id/local-authority-district/23UB,Cheltenham Borough Council,462308,145053,A&E FIRE EQUIPMENT LTD,C-D14100-1808,Depot Building-RM-Routine works,02 December 2011,83.66
http://statistics.data.gov.uk/id/local-authority-district/23UB,Cheltenham Borough Council,462670,145031,A&E FIRE EQUIPMENT LTD,C-D14100-1808,Depot Building-RM-Routine works,02 December 2011,99.92
http://statistics.data.gov.uk/id/local-authority-district/23UB,Cheltenham Borough Council,462306,145051,A&E FIRE EQUIPMENT LTD,C-D30200-1124,Misc Props & Ld-Berkeley Mews  Repairs,02 December 2011,8.46
http://statistics.data.gov.uk/id/local-authority-district/23UB,Cheltenham Borough Council,462307,145052,A&E FIRE EQUIPMENT LTD,C-D33950-1808,Resource Centre-RM-Routine works,02 December 2011,5.64
http://statistics.data.gov.uk/id/local-authority-district/23UB,Cheltenham Borough Council,462309,145098,A&E FIRE EQUIPMENT LTD,C-E21100-1808,Car Prks-Off St-RM-Routine works,02 December 2011,47.00
http://statistics.data.gov.uk/id/local-authority-district/23UB,Cheltenham Borough Council,462310,145099,A&E FIRE EQUIPMENT LTD,C-E21100-1808,Car Prks-Off St-RM-Routine works,02 December 2011,81.78
http://statistics.data.gov.uk/id/local-authority-district/23UB,Cheltenham Borough Council,462311,145131,A&E FIRE EQUIPMENT LTD,C-E21400-3103,Shopmobility-Equipment repairs & maint,02 December 2011,181.94
http://statistics.data.gov.uk/id/local-authority-district/23UB,Cheltenham Borough Council,462376,145433,A&E FIRE EQUIPMENT LTD,C-H46200-1104,Fire. Syst.Serv-Council House repairs,02 December 2011,84.13
http://statistics.data.gov.uk/id/local-authority-district/23UB,Cheltenham Borough Council,462392,145532,A&E FIRE EQUIPMENT LTD,C-H46200-1104,Fire. Syst.Serv-Council House repairs,02 December 2011,14.40
http://statistics.data.gov.uk/id/local-authority-district/23UB,Cheltenham Borough Council,462394,145642,A&E FIRE EQUIPMENT LTD,C-H46200-1104,Fire. Syst.Serv-Council House repairs,02 December 2011,91.52
http://statistics.data.gov.uk/id/local-authority-district/23UB,Cheltenham Borough Council,462396,145428,A&E FIRE EQUIPMENT LTD,C-H46200-1104,Fire. Syst.Serv-Council House repairs,02 December 2011,212.10
http://statistics.data.gov.uk/id/local-authority-district/23UB,Cheltenham Borough Council,462399,145450,A&E FIRE EQUIPMENT LTD,C-H46200-1104,Fire. Syst.Serv-Council House repairs,02 December 2011,11.80
http://statistics.data.gov.uk/id/local-authority-district/23UB,Cheltenham Borough Council,462402,145427,A&E FIRE EQUIPMENT LTD,C-H46200-1104,Fire. Syst.Serv-Council House repairs,02 December 2011,131.14
http://statistics.data.gov.uk/id/local-authority-district/23UB,Cheltenham Borough Council,461807,145435,A&E FIRE EQUIPMENT LTD,C-H46200-1104,Fire. Syst.Serv-Council House repairs,02 December 2011,1.50
http://statistics.data.gov.uk/id/local-authority-district/23UB,Cheltenham Borough Council,462427,145687,A&E FIRE EQUIPMENT LTD,C-H46200-1104,Fire. Syst.Serv-Council House repairs,02 December 2011,73.66
http://statistics.data.gov.uk/id/local-authority-district/23UB,Cheltenham Borough Council,462426,145391,A&E FIRE EQUIPMENT LTD,C-H46200-1104,Fire. Syst.Serv-Council House repairs,02 December 2011,6.58
http://statistics.data.gov.uk/id/local-authority-district/23UB,Cheltenham Borough Council,462425,145390,A&E FIRE EQUIPMENT LTD,C-H46200-1104,Fire. Syst.Serv-Council House repairs,02 December 2011,6.58
http://statistics.data.gov.uk/id/local-authority-district/23UB,Cheltenham Borough Council,462424,145389,A&E FIRE EQUIPMENT LTD,C-H46200-1104,Fire. Syst.Serv-Council House repairs,02 December 2011,6.58
http://statistics.data.gov.uk/id/local-authority-district/23UB,Cheltenham Borough Council,462423,145686,A&E FIRE EQUIPMENT LTD,C-H46200-1104,Fire. Syst.Serv-Council House repairs,02 December 2011,108.77
http://statistics.data.gov.uk/id/local-authority-district/23UB,Cheltenham Borough Council,462422,145392,A&E FIRE EQUIPMENT LTD,C-H46200-1104,Fire. Syst.Serv-Council House repairs,02 December 2011,6.58
http://statistics.data.gov.uk/id/local-authority-district/23UB,Cheltenham Borough Council,462421,145731,A&E FIRE EQUIPMENT LTD,C-H46200-1104,Fire. Syst.Serv-Council House repairs,02 December 2011,20.33
http://statistics.data.gov.uk/id/local-authority-district/23UB,Cheltenham Borough Council,462420,145730,A&E FIRE EQUIPMENT LTD,C-H46200-1104,Fire. Syst.Serv-Council House repairs,02 December 2011,20.33
http://statistics.data.gov.uk/id/local-authority-district/23UB,Cheltenham Borough Council,462419,145676,A&E FIRE EQUIPMENT LTD,C-H46200-1104,Fire. Syst.Serv-Council House repairs,02 December 2011,78.98
http://statistics.data.gov.uk/id/local-authority-district/23UB,Cheltenham Borough Council,462418,145677,A&E FIRE EQUIPMENT LTD,C-H46200-1104,Fire. Syst.Serv-Council House repairs,02 December 2011,10.34
http://statistics.data.gov.uk/id/local-authority-district/23UB,Cheltenham Borough Council,462416,145685,A&E FIRE EQUIPMENT LTD,C-H46200-1104,Fire. Syst.Serv-Council House repairs,02 December 2011,9.00
http://statistics.data.gov.uk/id/local-authority-district/23UB,Cheltenham Borough Council,462412,145690,A&E FIRE EQUIPMENT LTD,C-H46200-1104,Fire. Syst.Serv-Council House repairs,02 December 2011,4.50
http://statistics.data.gov.uk/id/local-authority-district/23UB,Cheltenham Borough Council,462410,145684,A&E FIRE EQUIPMENT LTD,C-H46200-1104,Fire. Syst.Serv-Council House repairs,02 December 2011,55.88
http://statistics.data.gov.uk/id/local-authority-district/23UB,Cheltenham Borough Council,462407,145688,A&E FIRE EQUIPMENT LTD,C-H46200-1104,Fire. Syst.Serv-Council House repairs,02 December 2011,126.02
http://statistics.data.gov.uk/id/local-authority-district/23UB,Cheltenham Borough Council,462404,145431,A&E FIRE EQUIPMENT LTD,C-H46200-1104,Fire. Syst.Serv-Council House repairs,02 December 2011,27.70
http://statistics.data.gov.uk/id/local-authority-district/23UB,Cheltenham Borough Council,461797,145533,A&E FIRE EQUIPMENT LTD,C-H46200-1104,Fire. Syst.Serv-Council House repairs,02 December 2011,18.81
http://statistics.data.gov.uk/id/local-authority-district/23UB,Cheltenham Borough Council,461795,145534,A&E FIRE EQUIPMENT LTD,C-H46200-1104,Fire. Syst.Serv-Council House repairs,02 December 2011,14.40
http://statistics.data.gov.uk/id/local-authority-district/23UB,Cheltenham Borough Council,461794,145536,A&E FIRE EQUIPMENT LTD,C-H46200-1104,Fire. Syst.Serv-Council House repairs,02 December 2011,15.70
http://statistics.data.gov.uk/id/local-authority-district/23UB,Cheltenham Borough Council,461793,145537,A&E FIRE EQUIPMENT LTD,C-H46200-1104,Fire. Syst.Serv-Council House repairs,02 December 2011,13.10
http://statistics.data.gov.uk/id/local-authority-district/23UB,Cheltenham Borough Council,461791,145535,A&E FIRE EQUIPMENT LTD,C-H46200-1104,Fire. Syst.Serv-Council House repairs,02 December 2011,15.05
http://statistics.data.gov.uk/id/local-authority-district/23UB,Cheltenham Borough Council,461790,145477,A&E FIRE EQUIPMENT LTD,C-H46200-1104,Fire. Syst.Serv-Council House repairs,02 December 2011,102.09
http://statistics.data.gov.uk/id/local-authority-district/23UB,Cheltenham Borough Council,461789,145437,A&E FIRE EQUIPMENT LTD,C-H46200-1104,Fire. Syst.Serv-Council House repairs,02 December 2011,15.45
http://statistics.data.gov.uk/id/local-authority-district/23UB,Cheltenham Borough Council,461788,145454,A&E FIRE EQUIPMENT LTD,C-H46200-1104,Fire. Syst.Serv-Council House repairs,02 December 2011,62.45
http://statistics.data.gov.uk/id/local-authority-district/23UB,Cheltenham Borough Council,461787,145448,A&E FIRE EQUIPMENT LTD,C-H46200-1104,Fire. Syst.Serv-Council House repairs,02 December 2011,11.80
http://statistics.data.gov.uk/id/local-authority-district/23UB,Cheltenham Borough Council,461786,145447,A&E FIRE EQUIPMENT LTD,C-H46200-1104,Fire. Syst.Serv-Council House repairs,02 December 2011,11.80
http://statistics.data.gov.uk/id/local-authority-district/23UB,Cheltenham Borough Council,461785,145446,A&E FIRE EQUIPMENT LTD,C-H46200-1104,Fire. Syst.Serv-Council House repairs,02 December 2011,11.80
http://statistics.data.gov.uk/id/local-authority-district/23UB,Cheltenham Borough Council,461784,145512,A&E FIRE EQUIPMENT LTD,C-H46200-1104,Fire. Syst.Serv-Council House repairs,02 December 2011,102.93
http://statistics.data.gov.uk/id/local-authority-district/23UB,Cheltenham Borough Council,461783,145474,A&E FIRE EQUIPMENT LTD,C-H46200-1104,Fire. Syst.Serv-Council House repairs,02 December 2011,55.24
http://statistics.data.gov.uk/id/local-authority-district/23UB,Cheltenham Borough Council,461782,145439,A&E FIRE EQUIPMENT LTD,C-H46200-1104,Fire. Syst.Serv-Council House repairs,02 December 2011,31.95
http://statistics.data.gov.uk/id/local-authority-district/23UB,Cheltenham Borough Council,461781,145549,A&E FIRE EQUIPMENT LTD,C-H46200-1104,Fire. Syst.Serv-Council House repairs,02 December 2011,24.98
http://statistics.data.gov.uk/id/local-authority-district/23UB,Cheltenham Borough Council,461780,145451,A&E FIRE EQUIPMENT LTD,C-H46200-1104,Fire. Syst.Serv-Council House repairs,02 December 2011,11.80
http://statistics.data.gov.uk/id/local-authority-district/23UB,Cheltenham Borough Council,461779,145452,A&E FIRE EQUIPMENT LTD,C-H46200-1104,Fire. Syst.Serv-Council House repairs,02 December 2011,11.80
http://statistics.data.gov.uk/id/local-authority-district/23UB,Cheltenham Borough Council,461815,145421,A&E FIRE EQUIPMENT LTD,C-H46200-1104,Fire. Syst.Serv-Council House repairs,02 December 2011,49.96
http://statistics.data.gov.uk/id/local-authority-district/23UB,Cheltenham Borough Council,462400,145478,A&E FIRE EQUIPMENT LTD,C-H46200-1104,Fire. Syst.Serv-Council House repairs,02 December 2011,71.91
http://statistics.data.gov.uk/id/local-authority-district/23UB,Cheltenham Borough Council,462398,145449,A&E FIRE EQUIPMENT LTD,C-H46200-1104,Fire. Syst.Serv-Council House repairs,02 December 2011,11.80
http://statistics.data.gov.uk/id/local-authority-district/23UB,Cheltenham Borough Council,462395,145434,A&E FIRE EQUIPMENT LTD,C-H46200-1104,Fire. Syst.Serv-Council House repairs,02 December 2011,58.72
http://statistics.data.gov.uk/id/local-authority-district/23UB,Cheltenham Borough Council,461799,145600,A&E FIRE EQUIPMENT LTD,C-HC4869-C302,Sheltered Hsg-Building Contractor,02 December 2011,212.31
http://statistics.data.gov.uk/id/local-authority-district/23UB,Cheltenham Borough Council,461805,145475,A&E FIRE EQUIPMENT LTD,C-HC4870-C302,Fire Protection-Building Contractor,02 December 2011,58.76
http://statistics.data.gov.uk/id/local-authority-district/23UB,Cheltenham Borough Council,461808,145445,A&E FIRE EQUIPMENT LTD,C-HC4870-C302,Fire Protection-Building Contractor,02 December 2011,136.75
http://statistics.data.gov.uk/id/local-authority-district/23UB,Cheltenham Borough Council,461792,145473,A&E FIRE EQUIPMENT LTD,C-HC4870-C302,Fire Protection-Building Contractor,02 December 2011,12.78
http://statistics.data.gov.uk/id/local-authority-district/23UB,Cheltenham Borough Council,461817,145344,A&E FIRE EQUIPMENT LTD,C-HC4870-C302,Fire Protection-Building Contractor,02 December 2011,86.92
http://statistics.data.gov.uk/id/local-authority-district/23UB,Cheltenham Borough Council,461816,145538,A&E FIRE EQUIPMENT LTD,C-HC4870-C302,Fire Protection-Building Contractor,02 December 2011,60.19
http://statistics.data.gov.uk/id/local-authority-district/23UB,Cheltenham Borough Council,461814,145432,A&E FIRE EQUIPMENT LTD,C-HC4870-C302,Fire Protection-Building Contractor,02 December 2011,8.30
http://statistics.data.gov.uk/id/local-authority-district/23UB,Cheltenham Borough Council,461813,145476,A&E FIRE EQUIPMENT LTD,C-HC4870-C302,Fire Protection-Building Contractor,02 December 2011,10.75
http://statistics.data.gov.uk/id/local-authority-district/23UB,Cheltenham Borough Council,461812,145429,A&E FIRE EQUIPMENT LTD,C-HC4870-C302,Fire Protection-Building Contractor,02 December 2011,143.87
http://statistics.data.gov.uk/id/local-authority-district/23UB,Cheltenham Borough Council,461811,145438,A&E FIRE EQUIPMENT LTD,C-HC4870-C302,Fire Protection-Building Contractor,02 December 2011,24.90
http://statistics.data.gov.uk/id/local-authority-district/23UB,Cheltenham Borough Council,461810,145479,A&E FIRE EQUIPMENT LTD,C-HC4870-C302,Fire Protection-Building Contractor,02 December 2011,23.11
http://statistics.data.gov.uk/id/local-authority-district/23UB,Cheltenham Borough Council,461809,145455,A&E FIRE EQUIPMENT LTD,C-HC4870-C302,Fire Protection-Building Contractor,02 December 2011,14.69
http://statistics.data.gov.uk/id/local-authority-district/23UB,Cheltenham Borough Council,461798,145492,A&E FIRE EQUIPMENT LTD,C-HC4870-C302,Fire Protection-Building Contractor,02 December 2011,25.56
http://statistics.data.gov.uk/id/local-authority-district/23UB,Cheltenham Borough Council,461796,145599,A&E FIRE EQUIPMENT LTD,C-HC4870-C302,Fire Protection-Building Contractor,02 December 2011,198.21
http://statistics.data.gov.uk/id/local-authority-district/23UB,Cheltenham Borough Council,461806,145513,A&E FIRE EQUIPMENT LTD,C-HC4870-C302,Fire Protection-Building Contractor,02 December 2011,83.93
http://statistics.data.gov.uk/id/local-authority-district/23UB,Cheltenham Borough Council,461804,145430,A&E FIRE EQUIPMENT LTD,C-HC4870-C302,Fire Protection-Building Contractor,02 December 2011,66.57
http://statistics.data.gov.uk/id/local-authority-district/23UB,Cheltenham Borough Council,462406,145570,A&E FIRE EQUIPMENT LTD,C-HC4870-C302,Fire Protection-Building Contractor,02 December 2011,149.88
http://statistics.data.gov.uk/id/local-authority-district/23UB,Cheltenham Borough Council,461801,145453,A&E FIRE EQUIPMENT LTD,C-HC4870-C302,Fire Protection-Building Contractor,02 December 2011,36.56
http://statistics.data.gov.uk/id/local-authority-district/23UB,Cheltenham Borough Council,461803,145440,A&E FIRE EQUIPMENT LTD,C-HC4870-C302,Fire Protection-Building Contractor,02 December 2011,67.06
http://statistics.data.gov.uk/id/local-authority-district/23UB,Cheltenham Borough Council,461802,145436,A&E FIRE EQUIPMENT LTD,C-HC4870-C302,Fire Protection-Building Contractor,02 December 2011,126.57
http://statistics.data.gov.uk/id/local-authority-district/23UB,Cheltenham Borough Council,462328,145295,A&E FIRE EQUIPMENT LTD,C-L11500-1808,Rec Facilities-RM-Routine works,02 December 2011,37.76
http://statistics.data.gov.uk/id/local-authority-district/23UB,Cheltenham Borough Council,462329,145296,A&E FIRE EQUIPMENT LTD,C-L11500-1808,Rec Facilities-RM-Routine works,02 December 2011,126.41
http://statistics.data.gov.uk/id/local-authority-district/23UB,Cheltenham Borough Council,462330,145297,A&E FIRE EQUIPMENT LTD,C-L11500-1808,Rec Facilities-RM-Routine works,02 December 2011,413.86
http://statistics.data.gov.uk/id/local-authority-district/23UB,Cheltenham Borough Council,462669,144812,A&E FIRE EQUIPMENT LTD,C-L11500-1808,Rec Facilities-RM-Routine works,02 December 2011,49.96
http://statistics.data.gov.uk/id/local-authority-district/23UB,Cheltenham Borough Council,462668,144108,A&E FIRE EQUIPMENT LTD,C-L11500-1808,Rec Facilities-RM-Routine works,02 December 2011,173.20
http://statistics.data.gov.uk/id/local-authority-district/23UB,Cheltenham Borough Council,462305,145050,A&E FIRE EQUIPMENT LTD,C-L21100-1808,Town Hall-RM-Routine works,02 December 2011,188.00
http://statistics.data.gov.uk/id/local-authority-district/23UB,Cheltenham Borough Council,462332,145364,A&E FIRE EQUIPMENT LTD,C-L21100-1808,Town Hall-RM-Routine works,02 December 2011,11.45
http://statistics.data.gov.uk/id/local-authority-district/23UB,Cheltenham Borough Council,462326,145213,A&E FIRE EQUIPMENT LTD,C-L21200-1808,Pump Room-RM-Routine works,02 December 2011,41.92
http://statistics.data.gov.uk/id/local-authority-district/23UB,Cheltenham Borough Council,462333,145596,A&E FIRE EQUIPMENT LTD,C-PM0030-R165,Pitt.Pump Room-Health & Safety,02 December 2011,345.02
http://statistics.data.gov.uk/id/local-authority-district/23UB,Cheltenham Borough Council,462919,146134,A&E FIRE EQUIPMENT LTD,C-H46200-1104,Fire. Syst.Serv-Council House repairs,09 December 2011,49.96
http://statistics.data.gov.uk/id/local-authority-district/23UB,Cheltenham Borough Council,462921,145956,A&E FIRE EQUIPMENT LTD,C-H46200-1104,Fire. Syst.Serv-Council House repairs,09 December 2011,4.50
http://statistics.data.gov.uk/id/local-authority-district/23UB,Cheltenham Borough Council,462923,145969,A&E FIRE EQUIPMENT LTD,C-H46200-1104,Fire. Syst.Serv-Council House repairs,09 December 2011,49.96
http://statistics.data.gov.uk/id/local-authority-district/23UB,Cheltenham Borough Council,462925,145954,A&E FIRE EQUIPMENT LTD,C-H46200-1104,Fire. Syst.Serv-Council House repairs,09 December 2011,97.01
http://statistics.data.gov.uk/id/local-authority-district/23UB,Cheltenham Borough Council,462931,145854,A&E FIRE EQUIPMENT LTD,C-H46200-1104,Fire. Syst.Serv-Council House repairs,09 December 2011,15.04
http://statistics.data.gov.uk/id/local-authority-district/23UB,Cheltenham Borough Council,462930,145905,A&E FIRE EQUIPMENT LTD,C-H46200-1104,Fire. Syst.Serv-Council House repairs,09 December 2011,24.44
http://statistics.data.gov.uk/id/local-authority-district/23UB,Cheltenham Borough Council,462929,145856,A&E FIRE EQUIPMENT LTD,C-H46200-1104,Fire. Syst.Serv-Council House repairs,09 December 2011,60.16
http://statistics.data.gov.uk/id/local-authority-district/23UB,Cheltenham Borough Council,462928,145859,A&E FIRE EQUIPMENT LTD,C-H46200-1104,Fire. Syst.Serv-Council House repairs,09 December 2011,80.40
http://statistics.data.gov.uk/id/local-authority-district/23UB,Cheltenham Borough Council,462927,145863,A&E FIRE EQUIPMENT LTD,C-H46200-1104,Fire. Syst.Serv-Council House repairs,09 December 2011,2.82
http://statistics.data.gov.uk/id/local-authority-district/23UB,Cheltenham Borough Council,462926,145907,A&E FIRE EQUIPMENT LTD,C-H46200-1104,Fire. Syst.Serv-Council House repairs,09 December 2011,9.40
http://statistics.data.gov.uk/id/local-authority-district/23UB,Cheltenham Borough Council,462924,145906,A&E FIRE EQUIPMENT LTD,C-H46200-1104,Fire. Syst.Serv-Council House repairs,09 December 2011,92.11
http://statistics.data.gov.uk/id/local-authority-district/23UB,Cheltenham Borough Council,462922,145857,A&E FIRE EQUIPMENT LTD,C-H46200-1104,Fire. Syst.Serv-Council House repairs,09 December 2011,17.86
http://statistics.data.gov.uk/id/local-authority-district/23UB,Cheltenham Borough Council,462920,145852,A&E FIRE EQUIPMENT LTD,C-H46200-1104,Fire. Syst.Serv-Council House repairs,09 December 2011,23.50
http://statistics.data.gov.uk/id/local-authority-district/23UB,Cheltenham Borough Council,462933,145790,A&E FIRE EQUIPMENT LTD,C-HC4870-C302,Fire Protection-Building Contractor,09 December 2011,20.08
http://statistics.data.gov.uk/id/local-authority-district/23UB,Cheltenham Borough Council,462934,145980,A&E FIRE EQUIPMENT LTD,C-HC4870-C302,Fire Protection-Building Contractor,09 December 2011,12.78
http://statistics.data.gov.uk/id/local-authority-district/23UB,Cheltenham Borough Council,462932,145979,A&E FIRE EQUIPMENT LTD,C-HC4870-C302,Fire Protection-Building Contractor,09 December 2011,129.00
http://statistics.data.gov.uk/id/local-authority-district/23UB,Cheltenham Borough Council,462765,124782,ABBEY SURFACING,C-H4213G-1104,Gen Wks 2213-Council House repairs,09 December 2011,935.00
http://statistics.data.gov.uk/id/local-authority-district/23UB,Cheltenham Borough Council,463279,CBC-01,ACD&C ARCHITECTIRE CENTRE FOR DEVON & CO,C-B51160-3501,Civic Pride-Hire of outside services,16 December 2011,"1,708.40"
http://statistics.data.gov.uk/id/local-authority-district/23UB,Cheltenham Borough Council,462579,REDACTED,ADRIAN B BLACKTON,C-HC7440-C801,DFG.96.Act-Grants,05 December 2011,"6,609.00"
http://statistics.data.gov.uk/id/local-authority-district/23UB,Cheltenham Borough Council,462584,REDACTED,ADRIAN B BLACKTON,C-HC7440-C801,DFG.96.Act-Grants,05 December 2011,"6,873.00"
http://statistics.data.gov.uk/id/local-authority-district/23UB,Cheltenham Borough Council,463474,REDACTED,ADRIAN B BLACKTON,C-HC4100-C801,Dis.Adapt.HRA-Grants,15 December 2011,"5,730.00"
http://statistics.data.gov.uk/id/local-authority-district/23UB,Cheltenham Borough Council,463783,REDACTED,ADRIAN B BLACKTON,C-HC4100-C801,Dis.Adapt.HRA-Grants,21 December 2011,"5,618.00"
http://statistics.data.gov.uk/id/local-authority-district/23UB,Cheltenham Borough Council,461848,19940415-15,ADT FIRE AND SECURITY,C-LC4006-C708,AG&M Dev Scheme-Decanting costs,02 December 2011,599.77
http://statistics.data.gov.uk/id/local-authority-district/23UB,Cheltenham Borough Council,461586,021111,AHC CONSULTANTS,C-B51120-3504,Devpment Cntrl-Legal exp & court costs,12 December 2011,"3,700.00"
http://statistics.data.gov.uk/id/local-authority-district/23UB,Cheltenham Borough Council,462374,09/2012,ALBINO RECORDS,C-1T09J1-3568,Albion Xmas-Artist Fees,02 December 2011,"1,500.00"
http://statistics.data.gov.uk/id/local-authority-district/23UB,Cheltenham Borough Council,462892,52665,ALPHA COLOUR PRINTERS LTD,C-D11700-3401,Pol & Info Mgmt-Printing - general,09 December 2011,25.00
http://statistics.data.gov.uk/id/local-authority-district/23UB,Cheltenham Borough Council,462895,52669,ALPHA COLOUR PRINTERS LTD,C-D12430-3401,Housing & CT Be-Printing - general,09 December 2011,104.00
http://statistics.data.gov.uk/id/local-authority-district/23UB,Cheltenham Borough Council,462898,52732,ALPHA COLOUR PRINTERS LTD,C-D21100-3403,Dem Process-Printing-Committee Papers,09 December 2011,79.00
http://statistics.data.gov.uk/id/local-authority-district/23UB,Cheltenham Borough Council,462899,52728,ALPHA COLOUR PRINTERS LTD,C-D21100-3403,Dem Process-Printing-Committee Papers,09 December 2011,71.00
http://statistics.data.gov.uk/id/local-authority-district/23UB,Cheltenham Borough Council,462896,52733,ALPHA COLOUR PRINTERS LTD,C-D21190-3412,O&S Committees-Printing - Cabinet Papers,09 December 2011,149.00
http://statistics.data.gov.uk/id/local-authority-district/23UB,Cheltenham Borough Council,462830,52458,ALPHA COLOUR PRINTERS LTD,C-E63100-3401,Cemetery & Crem-Printing - general,09 December 2011,232.00
http://statistics.data.gov.uk/id/local-authority-district/23UB,Cheltenham Borough Council,462893,52730,ALPHA COLOUR PRINTERS LTD,C-Z13300-3501,LAA - BSC Rev-Hire of outside services,09 December 2011,148.00
http://statistics.data.gov.uk/id/local-authority-district/23UB,Cheltenham Borough Council,463278,52656,ALPHA COLOUR PRINTERS LTD,C-B52300-3401,Bldg Control-Printing - general,15 December 2011,287.00
http://statistics.data.gov.uk/id/local-authority-district/23UB,Cheltenham Borough Council,463167,52729,ALPHA COLOUR PRINTERS LTD,C-D11700-3401,Pol & Info Mgmt-Printing - general,15 December 2011,35.00
http://statistics.data.gov.uk/id/local-authority-district/23UB,Cheltenham Borough Council,463180,52742,ALPHA COLOUR PRINTERS LTD,C-D21190-3403,O&S Committees-Printing-Committee Papers,15 December 2011,"1,195.00"
http://statistics.data.gov.uk/id/local-authority-district/23UB,Cheltenham Borough Council,463238,52726,ALPHA COLOUR PRINTERS LTD,C-D21190-3412,O&S Committees-Printing - Cabinet Papers,15 December 2011,149.00
http://statistics.data.gov.uk/id/local-authority-district/23UB,Cheltenham Borough Council,463239,52668,ALPHA COLOUR PRINTERS LTD,C-D23060-3501,Rem Sunday-Hire of outside services,15 December 2011,265.00
http://statistics.data.gov.uk/id/local-authority-district/23UB,Cheltenham Borough Council,463355,52641,ALPHA COLOUR PRINTERS LTD,C-E63100-3401,Cemetery & Crem-Printing - general,15 December 2011,186.00
http://statistics.data.gov.uk/id/local-authority-district/23UB,Cheltenham Borough Council,463277,52673,ALPHA COLOUR PRINTERS LTD,C-E72500-3401,Built Env Div-Printing - general,15 December 2011,629.00
http://statistics.data.gov.uk/id/local-authority-district/23UB,Cheltenham Borough Council,462846,153952,AMENITY LAND SOLUTIONS,C-C22110-3110,Parks & Gardens-Materials,09 December 2011,537.40
http://statistics.data.gov.uk/id/local-authority-district/23UB,Cheltenham Borough Council,462846,153952,AMENITY LAND SOLUTIONS,C-C22110-8209,Parks & Gardens-Sponsorship/Donations,09 December 2011,326.60
http://statistics.data.gov.uk/id/local-authority-district/23UB,Cheltenham Borough Council,463867,0760,ANDERSON CIVIL ENGINEERING UK LIMITED,C-D21250-3972,Civil Emergency-EU Restoration Fund,21 December 2011,"2,752.00"
http://statistics.data.gov.uk/id/local-authority-district/23UB,Cheltenham Borough Council,463867,0760,ANDERSON CIVIL ENGINEERING UK LIMITED,C-N11250-9227,EXCLUDED,21 December 2011,-120.00
http://statistics.data.gov.uk/id/local-authority-district/23UB,Cheltenham Borough Council,463350,25729,ARKELL AND HURCOMBE BRONZE WORK LTD,C-E63100-3111,Cemetery & Crem-Goods purch for resale,15 December 2011,380.00
http://statistics.data.gov.uk/id/local-authority-district/23UB,Cheltenham Borough Council,463350,25729,ARKELL AND HURCOMBE BRONZE WORK LTD,C-E63100-3111,Cemetery & Crem-Goods purch for resale,15 December 2011,5.00
http://statistics.data.gov.uk/id/local-authority-district/23UB,Cheltenham Borough Council,463351,25730,ARKELL AND HURCOMBE BRONZE WORK LTD,C-E63100-3111,Cemetery & Crem-Goods purch for resale,15 December 2011,532.00
http://statistics.data.gov.uk/id/local-authority-district/23UB,Cheltenham Borough Council,463354,25731,ARKELL AND HURCOMBE BRONZE WORK LTD,C-E63100-3111,Cemetery & Crem-Goods purch for resale,15 December 2011,380.00
http://statistics.data.gov.uk/id/local-authority-district/23UB,Cheltenham Borough Council,463350,25729,ARKELL AND HURCOMBE BRONZE WORK LTD,C-E63100-3111,Cemetery & Crem-Goods purch for resale,15 December 2011,45.00
http://statistics.data.gov.uk/id/local-authority-district/23UB,Cheltenham Borough Council,463350,25729,ARKELL AND HURCOMBE BRONZE WORK LTD,C-E63100-3111,Cemetery & Crem-Goods purch for resale,15 December 2011,49.00
http://statistics.data.gov.uk/id/local-authority-district/23UB,Cheltenham Borough Council,462636,13335,ART WORKS DESIGN CONSULTANTS (CHELT) LTD,C-L31100-3301,TIC-Clothing & uniforms,02 December 2011,65.00
http://statistics.data.gov.uk/id/local-authority-district/23UB,Cheltenham Borough Council,462244,13310,ART WORKS DESIGN CONSULTANTS (CHELT) LTD,C-L31100-3510,TIC-Promotion & Marketing,02 December 2011,902.00
http://statistics.data.gov.uk/id/local-authority-district/23UB,Cheltenham Borough Council,462243,13309,ART WORKS DESIGN CONSULTANTS (CHELT) LTD,C-L31100-3510,TIC-Promotion & Marketing,02 December 2011,312.50
http://statistics.data.gov.uk/id/local-authority-district/23UB,Cheltenham Borough Council,462242,13308,ART WORKS DESIGN CONSULTANTS (CHELT) LTD,C-L31100-3510,TIC-Promotion & Marketing,02 December 2011,"3,173.00"
http://statistics.data.gov.uk/id/local-authority-district/23UB,Cheltenham Borough Council,462238,13285,ART WORKS DESIGN CONSULTANTS (CHELT) LTD,C-L31100-3510,TIC-Promotion & Marketing,02 December 2011,37.50
http://statistics.data.gov.uk/id/local-authority-district/23UB,Cheltenham Borough Council,463587,13351,ART WORKS DESIGN CONSULTANTS (CHELT) LTD,C-1T41D0-3406,Tea Dances-Printing-Promotion/Mkting,21 December 2011,117.00
http://statistics.data.gov.uk/id/local-authority-district/23UB,Cheltenham Borough Council,463587,13351,ART WORKS DESIGN CONSULTANTS (CHELT) LTD,C-1T41D0-3408,Tea Dances-Artwork,21 December 2011,90.00
http://statistics.data.gov.uk/id/local-authority-district/23UB,Cheltenham Borough Council,463584,13353,ART WORKS DESIGN CONSULTANTS (CHELT) LTD,C-1T50M0-3406,Lunchtime Recit-Printing-Promotion/Mktin,21 December 2011,420.00
http://statistics.data.gov.uk/id/local-authority-district/23UB,Cheltenham Borough Council,462850,10724,ARTFUL LIMITED,C-B51120-3920,Develt Con-Advertising,09 December 2011,"2,337.40"
http://statistics.data.gov.uk/id/local-authority-district/23UB,Cheltenham Borough Council,463243,1017365209,ARVAL UK LIMITED,C-N42250-3112,DSO Stores - Stock purchases,16 December 2011,37.28
http://statistics.data.gov.uk/id/local-authority-district/23UB,Cheltenham Borough Council,463244,1017365208,ARVAL UK LIMITED,C-N42250-3112,DSO Stores - Stock purchases,16 December 2011,887.50
http://statistics.data.gov.uk/id/local-authority-district/23UB,Cheltenham Borough Council,463265,15366,ASKAS,C-C23100-3301,Refuse Collctn-Clothing & uniforms,15 December 2011,29.90
http://statistics.data.gov.uk/id/local-authority-district/23UB,Cheltenham Borough Council,463265,15366,ASKAS,C-C23100-3301,Refuse Collctn-Clothing & uniforms,15 December 2011,7.95
http://statistics.data.gov.uk/id/local-authority-district/23UB,Cheltenham Borough Council,463245,15411,ASKAS,C-N42250-3112,DSO Stores - Stock purchases,15 December 2011,495.13
http://statistics.data.gov.uk/id/local-authority-district/23UB,Cheltenham Borough Council,462634,08148,ASSOCIATION OF ELECTORAL ADMINISTRATORS,C-D11700-0204,Pol & Info Mgmt-Training fees/exp (Prof),02 December 2011,750.00
http://statistics.data.gov.uk/id/local-authority-district/23UB,Cheltenham Borough Council,462796,CBC01-121111-09,AURAM AUDIO,C-1T12H1-3151,Jerry Sadowitz-Specialist Equipment,09 December 2011,130.00
http://statistics.data.gov.uk/id/local-authority-district/23UB,Cheltenham Borough Council,462797,CBC01-141111-09,AURAM AUDIO,C-1T14H1-3151,Walsh & Pound-Specialist Equipment,09 December 2011,140.00
http://statistics.data.gov.uk/id/local-authority-district/23UB,Cheltenham Borough Council,462799,CBC01-231111-09,AURAM AUDIO,C-1T17H1-3151,Ed Byrne-Specialist Equipment,09 December 2011,120.00
http://statistics.data.gov.uk/id/local-authority-district/23UB,Cheltenham Borough Council,462801,CBC01-231111-09,AURAM AUDIO,C-1T18H1-3151,Sarah Millican-Specialist Equipment,09 December 2011,120.00
http://statistics.data.gov.uk/id/local-authority-district/23UB,Cheltenham Borough Council,462795,CBC01.231111.097,AURAM AUDIO,C-1T20H1-3151,Dave Gorman-Specialist Equipment,09 December 2011,120.00
http://statistics.data.gov.uk/id/local-authority-district/23UB,Cheltenham Borough Council,462800,CBC01-231111-09,AURAM AUDIO,C-1T21H1-3151,Daniel Sloss-Specialist Equipment,09 December 2011,120.00
http://statistics.data.gov.uk/id/local-authority-district/23UB,Cheltenham Borough Council,462948,CBC01-271111.10,AURAM AUDIO,C-1T26H1-3151,Gyles Brandreth-Specialist Equipment,09 December 2011,130.00
http://statistics.data.gov.uk/id/local-authority-district/23UB,Cheltenham Borough Council,462798,CBC01-271011-08,AURAM AUDIO,C-1T30G1-3151,Spiers & Boden-Specialist Equipment,09 December 2011,150.00
http://statistics.data.gov.uk/id/local-authority-district/23UB,Cheltenham Borough Council,463524,CBC/0012,AVONLINE,C-H46550-1104,TV Aerials-Council House repairs,21 December 2011,584.02
http://statistics.data.gov.uk/id/local-authority-district/23UB,Cheltenham Borough Council,463580,5780,B AND G COMEDY LIMITED,C-1T26H1-3568,Gyles Brandreth-Artist Fees,21 December 2011,"2,352.47"
http://statistics.data.gov.uk/id/local-authority-district/23UB,Cheltenham Borough Council,463580,5780,B AND G COMEDY LIMITED,C-N13125-9205,ASH Ledger-Town Hall Invoices Paid,21 December 2011,-28.80
http://statistics.data.gov.uk/id/local-authority-district/23UB,Cheltenham Borough Council,462824,2304965,BAKER ROSS LTD,C-L16100-3104,Holiday Rec-Sports & play equipment,09 December 2011,552.44
http://statistics.data.gov.uk/id/local-authority-district/23UB,Cheltenham Borough Council,462828,2316175,BAKER ROSS LTD,C-L16100-3104,Holiday Rec-Sports & play equipment,09 December 2011,331.63
http://statistics.data.gov.uk/id/local-authority-district/23UB,Cheltenham Borough Council,462805,80636,BARCHAM TREES PLC,C-C22110-1313,Parks & Gardens-Annual planting prog,09 December 2011,810.00
http://statistics.data.gov.uk/id/local-authority-district/23UB,Cheltenham Borough Council,462806,80633,BARCHAM TREES PLC,C-C22110-1313,Parks & Gardens-Annual planting prog,09 December 2011,"1,916.10"
http://statistics.data.gov.uk/id/local-authority-district/23UB,Cheltenham Borough Council,462807,80635,BARCHAM TREES PLC,C-C22110-1313,Parks & Gardens-Annual planting prog,09 December 2011,117.00
http://statistics.data.gov.uk/id/local-authority-district/23UB,Cheltenham Borough Council,462804,80634,BARCHAM TREES PLC,C-H33700-1305,Estate Services-Tree surgery,09 December 2011,131.40
http://statistics.data.gov.uk/id/local-authority-district/23UB,Cheltenham Borough Council,463493,REDACTED,BARTON AND TREDWORTH DEVELOPMENTS LTD,C-H22400-3244,Homelessness-Supporting People,15 December 2011,500.00
http://statistics.data.gov.uk/id/local-authority-district/23UB,Cheltenham Borough Council,463269,2011/006,BATH ROAD TRADERS ASSOCIATION,C-C23140-3501,Public Convnces-Hire of outside services,15 December 2011,572.00
http://statistics.data.gov.uk/id/local-authority-district/23UB,Cheltenham Borough Council,463409,11/2150,BELSHAZZARS FEAST,C-1T20J1-3568,Belshazzars Fst-Artist Fees,16 December 2011,820.00
http://statistics.data.gov.uk/id/local-authority-district/23UB,Cheltenham Borough Council,463661,78418,BERMAN GUEDES STRETTON,C-L41100-3816,AG & M-RIBA - Competition,21 December 2011,"4,533.37"
http://statistics.data.gov.uk/id/local-authority-district/23UB,Cheltenham Borough Council,462262,5/5633,BI WATER INTERNATIONAL LTD,C-L11500-3167,Rec Facilities-Maintenance Agreements,02 December 2011,"1,386.00"
http://statistics.data.gov.uk/id/local-authority-district/23UB,Cheltenham Borough Council,463581,SIN003735,BOURNEMOUTH SYMPHONY ORCHESTRA,C-1T04H1-3568,BSO-Artist Fees,21 December 2011,"10,987.88"
http://statistics.data.gov.uk/id/local-authority-district/23UB,Cheltenham Borough Council,463581,SIN003735,BOURNEMOUTH SYMPHONY ORCHESTRA,C-1T04H1-8303,BSO-Programme Sales,21 December 2011,447.90
http://statistics.data.gov.uk/id/local-authority-district/23UB,Cheltenham Borough Council,463581,SIN003735,BOURNEMOUTH SYMPHONY ORCHESTRA,C-N13125-9205,ASH Ledger-Town Hall Invoices Paid,21 December 2011,-57.60
http://statistics.data.gov.uk/id/local-authority-district/23UB,Cheltenham Borough Council,462507,SRA0T603047,BPE SOLICITORS,C-B51120-3504,Devpment Cntrl-Legal exp & court costs,02 December 2011,"6,875.00"
http://statistics.data.gov.uk/id/local-authority-district/23UB,Cheltenham Borough Council,463339,47SI 629216,BRENNTAG UK,C-L11500-1714,Rec Facilities-Chemicals,15 December 2011,732.90
http://statistics.data.gov.uk/id/local-authority-district/23UB,Cheltenham Borough Council,463339,47SI 629216,BRENNTAG UK,C-L11500-1714,Rec Facilities-Chemicals,15 December 2011,17.70
http://statistics.data.gov.uk/id/local-authority-district/23UB,Cheltenham Borough Council,463339,47SI 629216,BRENNTAG UK,C-L11500-1714,Rec Facilities-Chemicals,15 December 2011,28.00
http://statistics.data.gov.uk/id/local-authority-district/23UB,Cheltenham Borough Council,463339,47SI 629216,BRENNTAG UK,C-L11500-1714,Rec Facilities-Chemicals,15 December 2011,40.00
http://statistics.data.gov.uk/id/local-authority-district/23UB,Cheltenham Borough Council,463339,47SI 629216,BRENNTAG UK,C-L11500-1714,Rec Facilities-Chemicals,15 December 2011,80.00
http://statistics.data.gov.uk/id/local-authority-district/23UB,Cheltenham Borough Council,463339,47SI 629216,BRENNTAG UK,C-L11500-1714,Rec Facilities-Chemicals,15 December 2011,25.20
http://statistics.data.gov.uk/id/local-authority-district/23UB,Cheltenham Borough Council,463339,47SI 629216,BRENNTAG UK,C-L11500-1714,Rec Facilities-Chemicals,15 December 2011,27.04
http://statistics.data.gov.uk/id/local-authority-district/23UB,Cheltenham Borough Council,463157,12196513,BRISTOL STREET FORD,C-C24100-3582,Fleet Maint-DSO Invoices,15 December 2011,9.76
http://statistics.data.gov.uk/id/local-authority-district/23UB,Cheltenham Borough Council,463141,12197433,BRISTOL STREET FORD,C-C24100-3582,Fleet Maint-DSO Invoices,15 December 2011,13.37
http://statistics.data.gov.uk/id/local-authority-district/23UB,Cheltenham Borough Council,463140,12197503,BRISTOL STREET FORD,C-C24100-3582,Fleet Maint-DSO Invoices,15 December 2011,719.65
http://statistics.data.gov.uk/id/local-authority-district/23UB,Cheltenham Borough Council,463139,12197225,BRISTOL STREET FORD,C-C24100-3582,Fleet Maint-DSO Invoices,15 December 2011,375.41
http://statistics.data.gov.uk/id/local-authority-district/23UB,Cheltenham Borough Council,463138,12197226,BRISTOL STREET FORD,C-C24100-3582,Fleet Maint-DSO Invoices,15 December 2011,5.00
http://statistics.data.gov.uk/id/local-authority-district/23UB,Cheltenham Borough Council,462508,112094,BRISTOW & SUTOR,C-D12440-3604,Coun Tax overhe-Baliff Fees - via CBC,02 December 2011,235.00
http://statistics.data.gov.uk/id/local-authority-district/23UB,Cheltenham Borough Council,462510,112285,BRISTOW & SUTOR,C-D12440-3604,Coun Tax overhe-Baliff Fees - via CBC,02 December 2011,109.50
http://statistics.data.gov.uk/id/local-authority-district/23UB,Cheltenham Borough Council,463848,587,BROWN BULL LANDSCAPING,C-HC4759-C302,Edward Street-Building Contractor,21 December 2011,"3,895.00"
http://statistics.data.gov.uk/id/local-authority-district/23UB,Cheltenham Borough Council,462283,4644,C AND R DECORATORS,C-H4201V-1104,Voids 2201-Council House repairs,02 December 2011,135.33
http://statistics.data.gov.uk/id/local-authority-district/23UB,Cheltenham Borough Council,462278,4650,C AND R DECORATORS,C-H4207G-1104,Gen Wks 2207-Council House repairs,02 December 2011,52.20
http://statistics.data.gov.uk/id/local-authority-district/23UB,Cheltenham Borough Council,462279,4646,C AND R DECORATORS,C-H4209V-1104,Voids 2209-Council House repairs,02 December 2011,294.67
http://statistics.data.gov.uk/id/local-authority-district/23UB,Cheltenham Borough Council,462281,4647,C AND R DECORATORS,C-H4209V-1104,Voids 2209-Council House repairs,02 December 2011,343.09
http://statistics.data.gov.uk/id/local-authority-district/23UB,Cheltenham Borough Council,462280,4645,C AND R DECORATORS,C-H4213V-1104,Voids 2213-Council House repairs,02 December 2011,399.46
http://statistics.data.gov.uk/id/local-authority-district/23UB,Cheltenham Borough Council,462277,4643,C AND R DECORATORS,C-H44752-1104,Dis Adapts-Tech-Council House repairs,02 December 2011,200.00
http://statistics.data.gov.uk/id/local-authority-district/23UB,Cheltenham Borough Council,462770,4663,C AND R DECORATORS,C-H4201G-1104,Gen Wks 2201-Council House repairs,09 December 2011,240.25
http://statistics.data.gov.uk/id/local-authority-district/23UB,Cheltenham Borough Council,462771,4665,C AND R DECORATORS,C-H4206G-1104,Gen Wks 2206-Council House repairs,09 December 2011,897.68
http://statistics.data.gov.uk/id/local-authority-district/23UB,Cheltenham Borough Council,462773,4664,C AND R DECORATORS,C-H4207G-1104,Gen Wks 2207-Council House repairs,09 December 2011,52.20
http://statistics.data.gov.uk/id/local-authority-district/23UB,Cheltenham Borough Council,462772,4662,C AND R DECORATORS,C-H4209G-1104,Gen Wks 2209-Council House repairs,09 December 2011,63.82
http://statistics.data.gov.uk/id/local-authority-district/23UB,Cheltenham Borough Council,462768,4656,C AND R DECORATORS,C-H4213A-1104,Dis Adapts 2213-Council House repairs,09 December 2011,544.00
http://statistics.data.gov.uk/id/local-authority-district/23UB,Cheltenham Borough Council,462769,4655,C AND R DECORATORS,C-H44752-1104,Dis Adapts-Tech-Council House repairs,09 December 2011,"1,343.50"
http://statistics.data.gov.uk/id/local-authority-district/23UB,Cheltenham Borough Council,462912,4617,C AND R DECORATORS,C-HC4867-C302,Misc Works-Building Contractor,09 December 2011,"1,969.00"
http://statistics.data.gov.uk/id/local-authority-district/23UB,Cheltenham Borough Council,463040,4651,C AND R DECORATORS,C-H4204V-1104,Voids 2204-Council House repairs,15 December 2011,"1,165.00"
http://statistics.data.gov.uk/id/local-authority-district/23UB,Cheltenham Borough Council,463116,4669,C AND R DECORATORS,C-H4206G-1104,Gen Wks 2206-Council House repairs,15 December 2011,137.91
http://statistics.data.gov.uk/id/local-authority-district/23UB,Cheltenham Borough Council,463114,4670,C AND R DECORATORS,C-H4213G-1104,Gen Wks 2213-Council House repairs,15 December 2011,287.32
http://statistics.data.gov.uk/id/local-authority-district/23UB,Cheltenham Borough Council,463039,4649,C AND R DECORATORS,C-H4214V-1104,Voids 2214-Council House repairs,15 December 2011,"1,156.00"
http://statistics.data.gov.uk/id/local-authority-district/23UB,Cheltenham Borough Council,463117,4605,C AND R DECORATORS,C-HC4841-C302,Major Voids-Building Contractor,15 December 2011,"5,227.95"
http://statistics.data.gov.uk/id/local-authority-district/23UB,Cheltenham Borough Council,463632,4671,C AND R DECORATORS,C-H4214G-1104,Gen Wks 2214-Council House repairs,21 December 2011,"5,530.90"
http://statistics.data.gov.uk/id/local-authority-district/23UB,Cheltenham Borough Council,463610,4672,C AND R DECORATORS,C-H4214V-1104,Voids 2214-Council House repairs,21 December 2011,744.49
http://statistics.data.gov.uk/id/local-authority-district/23UB,Cheltenham Borough Council,463883,4681,C AND R DECORATORS,C-H45205-1104,Ext Repairs & R-Council House repairs,21 December 2011,380.00
http://statistics.data.gov.uk/id/local-authority-district/23UB,Cheltenham Borough Council,463886,4680,C AND R DECORATORS,C-H45205-1104,Ext Repairs & R-Council House repairs,21 December 2011,284.00
http://statistics.data.gov.uk/id/local-authority-district/23UB,Cheltenham Borough Council,463609,4673,C AND R DECORATORS,C-HC4841-C302,Major Voids-Building Contractor,21 December 2011,"4,821.80"
http://statistics.data.gov.uk/id/local-authority-district/23UB,Cheltenham Borough Council,463171,T0001558,C B RICHARD ELLIS,C-D13550-1501,Area Off -E.Hse-Rents,15 December 2011,"13,250.00"
http://statistics.data.gov.uk/id/local-authority-district/23UB,Cheltenham Borough Council,463171,T0001558,C B RICHARD ELLIS,C-D13550-1501,Area Off -E.Hse-Rents,15 December 2011,"3,927.00"
http://statistics.data.gov.uk/id/local-authority-district/23UB,Cheltenham Borough Council,462888,SP6476,CAMBRIDGE ECONOMETRICS,C-B51145-3501,Joint Core Stra-Hire of outside services,09 December 2011,"6,812.00"
http://statistics.data.gov.uk/id/local-authority-district/23UB,Cheltenham Borough Council,463463,1212-0022FF,CAMPBELLSMITH MANAGEMENT LIMITED,C-1T22H1-3568,Fishermans Frnd-Artist Fees,15 December 2011,"1,463.93"
http://statistics.data.gov.uk/id/local-authority-district/23UB,Cheltenham Borough Council,463463,1212-0022FF,CAMPBELLSMITH MANAGEMENT LIMITED,C-N13125-9205,ASH Ledger-Town Hall Invoices Paid,15 December 2011,-308.04
http://statistics.data.gov.uk/id/local-authority-district/23UB,Cheltenham Borough Council,463463,1212-0022FF,CAMPBELLSMITH MANAGEMENT LIMITED,C-Z12210-9271,Box Off A/C-CBC Invoices Paid,15 December 2011,-195.00
http://statistics.data.gov.uk/id/local-authority-district/23UB,Cheltenham Borough Council,463223,0109,CARBREY HOUSING LIMITED,C-H22400-5204,Homelessness-Provision of accommo(B&B),15 December 2011,500.60
http://statistics.data.gov.uk/id/local-authority-district/23UB,Cheltenham Borough Council,463224,0111,CARBREY HOUSING LIMITED,C-H22400-5204,Homelessness-Provision of accommo(B&B),15 December 2011,17.87
http://statistics.data.gov.uk/id/local-authority-district/23UB,Cheltenham Borough Council,463226,0110,CARBREY HOUSING LIMITED,C-H22400-5204,Homelessness-Provision of accommo(B&B),15 December 2011,125.15
http://statistics.data.gov.uk/id/local-authority-district/23UB,Cheltenham Borough Council,463227,0107,CARBREY HOUSING LIMITED,C-H22400-5204,Homelessness-Provision of accommo(B&B),15 December 2011,500.60
http://statistics.data.gov.uk/id/local-authority-district/23UB,Cheltenham Borough Council,463225,0115,CARBREY HOUSING LIMITED,C-H22400-5204,Homelessness-Provision of accommo(B&B),15 December 2011,375.45
http://statistics.data.gov.uk/id/local-authority-district/23UB,Cheltenham Borough Council,463688,0285045,CASELLA CEL LTD,C-E71150-3103,Public Pro Div-Equipment repairs & maint,21 December 2011,100.00
http://statistics.data.gov.uk/id/local-authority-district/23UB,Cheltenham Borough Council,463688,0285045,CASELLA CEL LTD,C-E71150-3103,Public Pro Div-Equipment repairs & maint,21 December 2011,415.00
http://statistics.data.gov.uk/id/local-authority-district/23UB,Cheltenham Borough Council,463688,0285045,CASELLA CEL LTD,C-E71150-3103,Public Pro Div-Equipment repairs & maint,21 December 2011,15.00
http://statistics.data.gov.uk/id/local-authority-district/23UB,Cheltenham Borough Council,462353,REDACTED,CAUDLE ROOFING,C-H4211G-1104,Gen Wks 2211-Council House repairs,02 December 2011,400.00
http://statistics.data.gov.uk/id/local-authority-district/23UB,Cheltenham Borough Council,462352,REDACTED,CAUDLE ROOFING,C-H4214G-1104,Gen Wks 2214-Council House repairs,02 December 2011,"1,000.00"
http://statistics.data.gov.uk/id/local-authority-district/23UB,Cheltenham Borough Council,462353,REDACTED,CAUDLE ROOFING,C-N11250-9227,EXCLUDED,02 December 2011,-40.00
http://statistics.data.gov.uk/id/local-authority-district/23UB,Cheltenham Borough Council,462352,REDACTED,CAUDLE ROOFING,C-N11250-9227,EXCLUDED,02 December 2011,-80.00
http://statistics.data.gov.uk/id/local-authority-district/23UB,Cheltenham Borough Council,463830,020597 JCS MATE,CBF GROUP,C-B51145-3501,Joint Core Stra-Hire of outside services,21 December 2011,"2,889.00"
http://statistics.data.gov.uk/id/local-authority-district/23UB,Cheltenham Borough Council,463446,REDACTED,REDACTED,C-P12250-9104,Tenants Rent-Refunds,16 December 2011,"1,007.16"
http://statistics.data.gov.uk/id/local-authority-district/23UB,Cheltenham Borough Council,463876,31157,CHARTERHOUSE SECURITY MANAGEMENT,C-H46400-1104,Door Entry-Council House repairs,21 December 2011,473.00
http://statistics.data.gov.uk/id/local-authority-district/23UB,Cheltenham Borough Council,463882,30896,CHARTERHOUSE SECURITY MANAGEMENT,C-H46400-1104,Door Entry-Council House repairs,21 December 2011,"2,093.50"
http://statistics.data.gov.uk/id/local-authority-district/23UB,Cheltenham Borough Council,463880,30507,CHARTERHOUSE SECURITY MANAGEMENT,C-H46400-1104,Door Entry-Council House repairs,21 December 2011,"2,346.00"
http://statistics.data.gov.uk/id/local-authority-district/23UB,Cheltenham Borough Council,463881,31846,CHARTERHOUSE SECURITY MANAGEMENT,C-H46400-1104,Door Entry-Council House repairs,21 December 2011,"1,142.78"
http://statistics.data.gov.uk/id/local-authority-district/23UB,Cheltenham Borough Council,463878,31251,CHARTERHOUSE SECURITY MANAGEMENT,C-H46400-1104,Door Entry-Council House repairs,21 December 2011,"2,600.49"
http://statistics.data.gov.uk/id/local-authority-district/23UB,Cheltenham Borough Council,463877,31017,CHARTERHOUSE SECURITY MANAGEMENT,C-H46400-1104,Door Entry-Council House repairs,21 December 2011,"2,207.00"
http://statistics.data.gov.uk/id/local-authority-district/23UB,Cheltenham Borough Council,463183,CHELT POETRY F,CHELTENHAM POETRY FESTIVAL,C-D34400-3800,Bus & Econ Dev-One-Off Grant Expenditure,15 December 2011,750.00
http://statistics.data.gov.uk/id/local-authority-district/23UB,Cheltenham Borough Council,463364,301111,CHELTENHAM TREE SERVICES,C-C22120-1312,Spts/Open Space-Annual felling prog,15 December 2011,595.00
http://statistics.data.gov.uk/id/local-authority-district/23UB,Cheltenham Borough Council,463697,091211,CHELTENHAM TREE SERVICES,C-C22120-1312,Spts/Open Space-Annual felling prog,21 December 2011,550.00
http://statistics.data.gov.uk/id/local-authority-district/23UB,Cheltenham Borough Council,461483,4132,CHIMES INTERNATIONAL ENTERTAINMENTS LTD,C-1T20G1-3568,60s Gold-Artist Fees,07 December 2011,"2,116.06"
http://statistics.data.gov.uk/id/local-authority-district/23UB,Cheltenham Borough Council,461483,4132,CHIMES INTERNATIONAL ENTERTAINMENTS LTD,C-1T20G1-3568,60s Gold-Artist Fees,09 December 2011,"2,116.06"
http://statistics.data.gov.uk/id/local-authority-district/23UB,Cheltenham Borough Council,462675,5070268,CIPFA,C-D21220-3890,Corp Subscrptns-Subscriptions - general,02 December 2011,285.00
http://statistics.data.gov.uk/id/local-authority-district/23UB,Cheltenham Borough Council,461834,3058188,CIPFA,C-D11300-3411,Accountancy-Profl books & magazines,02 December 2011,100.00
http://statistics.data.gov.uk/id/local-authority-district/23UB,Cheltenham Borough Council,461836,3057537,CIPFA,C-D11300-3411,Accountancy-Profl books & magazines,02 December 2011,100.00
http://statistics.data.gov.uk/id/local-authority-district/23UB,Cheltenham Borough Council,461835,3057900,CIPFA,C-D11300-3411,Accountancy-Profl books & magazines,02 December 2011,100.00
http://statistics.data.gov.uk/id/local-authority-district/23UB,Cheltenham Borough Council,462505,3058721,CIPFA,C-E72500-3501,Built Env Div-Hire of outside services,02 December 2011,360.00
http://statistics.data.gov.uk/id/local-authority-district/23UB,Cheltenham Borough Council,462675,5070268,CIPFA,C-D21220-3890,Corp Subscrptns-Subscriptions - general,09 December 2011,285.00
http://statistics.data.gov.uk/id/local-authority-district/23UB,Cheltenham Borough Council,462962,5070967,CIPFA,C-D21220-3890,Corp Subscrptns-Subscriptions - general,09 December 2011,285.00
http://statistics.data.gov.uk/id/local-authority-district/23UB,Cheltenham Borough Council,462897,5071012,CIPFA,C-D21220-3890,Corp Subscrptns-Subscriptions - general,09 December 2011,285.00
http://statistics.data.gov.uk/id/local-authority-district/23UB,Cheltenham Borough Council,463853,3060600,CIPFA BUSINESS LTD,C-D11300-3411,Accountancy-Profl books & magazines,21 December 2011,340.00
http://statistics.data.gov.uk/id/local-authority-district/23UB,Cheltenham Borough Council,463854,3059871,CIPFA BUSINESS LTD,C-D11300-3411,Accountancy-Profl books & magazines,21 December 2011,500.00
http://statistics.data.gov.uk/id/local-authority-district/23UB,Cheltenham Borough Council,463859,2583,CMP LIMITED,C-1T30H1-3568,Paul Carrack-Artist Fees ,21 December 2011,"3,244.81"
http://statistics.data.gov.uk/id/local-authority-district/23UB,Cheltenham Borough Council,463859,2583,CMP LIMITED,C-N13125-9205,ASH Ledger-Town Hall Invoices Paid,21 December 2011,-564.00
http://statistics.data.gov.uk/id/local-authority-district/23UB,Cheltenham Borough Council,463859,2583,CMP LIMITED,C-Z12210-9271,Box Off A/C-CBC Invoices Paid,21 December 2011,"-1,482.00"
http://statistics.data.gov.uk/id/local-authority-district/23UB,Cheltenham Borough Council,462385,21982,COLLETT TRANSPORT SERVICES LIMITED,C-C22140-2702,Nursery-Additional vehicle hire,02 December 2011,800.00
http://statistics.data.gov.uk/id/local-authority-district/23UB,Cheltenham Borough Council,462384,21976,COLLETT TRANSPORT SERVICES LIMITED,C-C24100-2701,Fleet Maint-Hired transport,02 December 2011,"1,960.00"
http://statistics.data.gov.uk/id/local-authority-district/23UB,Cheltenham Borough Council,462386,21985,COLLETT TRANSPORT SERVICES LIMITED,C-C24100-2702,Fleet Maint-Additional vehicle hire,02 December 2011,270.00
http://statistics.data.gov.uk/id/local-authority-district/23UB,Cheltenham Borough Council,463199,22140,COLLETT TRANSPORT SERVICES LIMITED,C-C24100-2701,Fleet Maint-Hired transport,15 December 2011,"1,120.00"
http://statistics.data.gov.uk/id/local-authority-district/23UB,Cheltenham Borough Council,463200,22127,COLLETT TRANSPORT SERVICES LIMITED,C-C24100-2702,Fleet Maint-Additional vehicle hire,15 December 2011,"1,190.00"
http://statistics.data.gov.uk/id/local-authority-district/23UB,Cheltenham Borough Council,462722,511033,COMENSURA LIMITED,C-C22100-0115,Green Env Div-Temporary Agency Staff,20 December 2011,388.16
http://statistics.data.gov.uk/id/local-authority-district/23UB,Cheltenham Borough Council,462724,511229,COMENSURA LIMITED,C-C22100-0115,Green Env Div-Temporary Agency Staff,20 December 2011,434.25
http://statistics.data.gov.uk/id/local-authority-district/23UB,Cheltenham Borough Council,462724,511229,COMENSURA LIMITED,C-C22100-0115,Green Env Div-Temporary Agency Staff,20 December 2011,428.46
http://statistics.data.gov.uk/id/local-authority-district/23UB,Cheltenham Borough Council,462724,511229,COMENSURA LIMITED,C-C22100-0115,Green Env Div-Temporary Agency Staff,20 December 2011,86.85
http://statistics.data.gov.uk/id/local-authority-district/23UB,Cheltenham Borough Council,462724,511229,COMENSURA LIMITED,C-C22100-0115,Green Env Div-Temporary Agency Staff,20 December 2011,434.25
http://statistics.data.gov.uk/id/local-authority-district/23UB,Cheltenham Borough Council,461569,510832,COMENSURA LIMITED,C-C23100-0115,Refuse Collection-Temporary Agency Staff,20 December 2011,338.11
http://statistics.data.gov.uk/id/local-authority-district/23UB,Cheltenham Borough Council,461569,510832,COMENSURA LIMITED,C-C23100-0115,Refuse Collection-Temporary Agency Staff,20 December 2011,65.02
http://statistics.data.gov.uk/id/local-authority-district/23UB,Cheltenham Borough Council,461569,510832,COMENSURA LIMITED,C-C23100-0115,Refuse Collection-Temporary Agency Staff,20 December 2011,100.07
http://statistics.data.gov.uk/id/local-authority-district/23UB,Cheltenham Borough Council,461569,510832,COMENSURA LIMITED,C-C23100-0115,Refuse Collection-Temporary Agency Staff,20 December 2011,103.10
http://statistics.data.gov.uk/id/local-authority-district/23UB,Cheltenham Borough Council,461569,510832,COMENSURA LIMITED,C-C23100-0115,Refuse Collection-Temporary Agency Staff,20 December 2011,325.12
http://statistics.data.gov.uk/id/local-authority-district/23UB,Cheltenham Borough Council,461569,510832,COMENSURA LIMITED,C-C23100-0115,Refuse Collection-Temporary Agency Staff,20 December 2011,197.24
http://statistics.data.gov.uk/id/local-authority-district/23UB,Cheltenham Borough Council,461569,510832,COMENSURA LIMITED,C-C23100-0115,Refuse Collection-Temporary Agency Staff,20 December 2011,97.04
http://statistics.data.gov.uk/id/local-authority-district/23UB,Cheltenham Borough Council,461569,510832,COMENSURA LIMITED,C-C23100-0115,Refuse Collection-Temporary Agency Staff,20 December 2011,398.81
http://statistics.data.gov.uk/id/local-authority-district/23UB,Cheltenham Borough Council,462722,511033,COMENSURA LIMITED,C-C23100-0115,Refuse Collection-Temporary Agency Staff,20 December 2011,255.75
http://statistics.data.gov.uk/id/local-authority-district/23UB,Cheltenham Borough Council,462722,511033,COMENSURA LIMITED,C-C23100-0115,Refuse Collection-Temporary Agency Staff,20 December 2011,320.80
http://statistics.data.gov.uk/id/local-authority-district/23UB,Cheltenham Borough Council,462722,511033,COMENSURA LIMITED,C-C23100-0115,Refuse Collection-Temporary Agency Staff,20 December 2011,60.69
http://statistics.data.gov.uk/id/local-authority-district/23UB,Cheltenham Borough Council,462722,511033,COMENSURA LIMITED,C-C23100-0115,Refuse Collection-Temporary Agency Staff,20 December 2011,320.77
http://statistics.data.gov.uk/id/local-authority-district/23UB,Cheltenham Borough Council,462722,511033,COMENSURA LIMITED,C-C23100-0115,Refuse Collection-Temporary Agency Staff,20 December 2011,320.77
http://statistics.data.gov.uk/id/local-authority-district/23UB,Cheltenham Borough Council,462722,511033,COMENSURA LIMITED,C-C23100-0115,Refuse Collection-Temporary Agency Staff,20 December 2011,195.06
http://statistics.data.gov.uk/id/local-authority-district/23UB,Cheltenham Borough Council,462722,511033,COMENSURA LIMITED,C-C23100-0115,Refuse Collection-Temporary Agency Staff,20 December 2011,320.80
http://statistics.data.gov.uk/id/local-authority-district/23UB,Cheltenham Borough Council,462722,511033,COMENSURA LIMITED,C-C23100-0115,Refuse Collection-Temporary Agency Staff,20 December 2011,320.77
http://statistics.data.gov.uk/id/local-authority-district/23UB,Cheltenham Borough Council,462722,511033,COMENSURA LIMITED,C-C23100-0115,Refuse Collection-Temporary Agency Staff,20 December 2011,320.77
http://statistics.data.gov.uk/id/local-authority-district/23UB,Cheltenham Borough Council,462722,511033,COMENSURA LIMITED,C-C23100-0115,Refuse Collection-Temporary Agency Staff,20 December 2011,234.08
http://statistics.data.gov.uk/id/local-authority-district/23UB,Cheltenham Borough Council,462722,511033,COMENSURA LIMITED,C-C23100-0115,Refuse Collection-Temporary Agency Staff,20 December 2011,134.38
http://statistics.data.gov.uk/id/local-authority-district/23UB,Cheltenham Borough Council,462722,511033,COMENSURA LIMITED,C-C23100-0115,Refuse Collection-Temporary Agency Staff,20 December 2011,268.77
http://statistics.data.gov.uk/id/local-authority-district/23UB,Cheltenham Borough Council,462722,511033,COMENSURA LIMITED,C-C23100-0115,Refuse Collection-Temporary Agency Staff,20 December 2011,52.02
http://statistics.data.gov.uk/id/local-authority-district/23UB,Cheltenham Borough Council,462722,511033,COMENSURA LIMITED,C-C23100-0115,Refuse Collection-Temporary Agency Staff,20 December 2011,65.02
http://statistics.data.gov.uk/id/local-authority-district/23UB,Cheltenham Borough Council,462722,511033,COMENSURA LIMITED,C-C23100-0115,Refuse Collection-Temporary Agency Staff,20 December 2011,442.17
http://statistics.data.gov.uk/id/local-authority-district/23UB,Cheltenham Borough Council,462722,511033,COMENSURA LIMITED,C-C23100-0115,Refuse Collection-Temporary Agency Staff,20 December 2011,320.77
http://statistics.data.gov.uk/id/local-authority-district/23UB,Cheltenham Borough Council,462722,511033,COMENSURA LIMITED,C-C23100-0115,Refuse Collection-Temporary Agency Staff,20 December 2011,199.44
http://statistics.data.gov.uk/id/local-authority-district/23UB,Cheltenham Borough Council,462722,511033,COMENSURA LIMITED,C-C23100-0115,Refuse Collection-Temporary Agency Staff,20 December 2011,130.04
http://statistics.data.gov.uk/id/local-authority-district/23UB,Cheltenham Borough Council,462724,511229,COMENSURA LIMITED,C-C23100-0115,Refuse Collection-Temporary Agency Staff,20 December 2011,214.59
http://statistics.data.gov.uk/id/local-authority-district/23UB,Cheltenham Borough Council,462724,511229,COMENSURA LIMITED,C-C23100-0115,Refuse Collection-Temporary Agency Staff,20 December 2011,277.47
http://statistics.data.gov.uk/id/local-authority-district/23UB,Cheltenham Borough Council,462724,511229,COMENSURA LIMITED,C-C23100-0115,Refuse Collection-Temporary Agency Staff,20 December 2011,320.77
http://statistics.data.gov.uk/id/local-authority-district/23UB,Cheltenham Borough Council,462724,511229,COMENSURA LIMITED,C-C23100-0115,Refuse Collection-Temporary Agency Staff,20 December 2011,60.69
http://statistics.data.gov.uk/id/local-authority-district/23UB,Cheltenham Borough Council,462724,511229,COMENSURA LIMITED,C-C23100-0115,Refuse Collection-Temporary Agency Staff,20 December 2011,262.26
http://statistics.data.gov.uk/id/local-authority-district/23UB,Cheltenham Borough Council,462724,511229,COMENSURA LIMITED,C-C23100-0115,Refuse Collection-Temporary Agency Staff,20 December 2011,190.73
http://statistics.data.gov.uk/id/local-authority-district/23UB,Cheltenham Borough Council,462724,511229,COMENSURA LIMITED,C-C23100-0115,Refuse Collection-Temporary Agency Staff,20 December 2011,333.78
http://statistics.data.gov.uk/id/local-authority-district/23UB,Cheltenham Borough Council,462724,511229,COMENSURA LIMITED,C-C23100-0115,Refuse Collection-Temporary Agency Staff,20 December 2011,290.44
http://statistics.data.gov.uk/id/local-authority-district/23UB,Cheltenham Borough Council,462724,511229,COMENSURA LIMITED,C-C23100-0115,Refuse Collection-Temporary Agency Staff,20 December 2011,335.67
http://statistics.data.gov.uk/id/local-authority-district/23UB,Cheltenham Borough Council,462724,511229,COMENSURA LIMITED,C-C23100-0115,Refuse Collection-Temporary Agency Staff,20 December 2011,221.10
http://statistics.data.gov.uk/id/local-authority-district/23UB,Cheltenham Borough Council,462724,511229,COMENSURA LIMITED,C-C23100-0115,Refuse Collection-Temporary Agency Staff,20 December 2011,49.85
http://statistics.data.gov.uk/id/local-authority-district/23UB,Cheltenham Borough Council,462724,511229,COMENSURA LIMITED,C-C23100-0115,Refuse Collection-Temporary Agency Staff,20 December 2011,112.72
http://statistics.data.gov.uk/id/local-authority-district/23UB,Cheltenham Borough Council,462724,511229,COMENSURA LIMITED,C-C23100-0115,Refuse Collection-Temporary Agency Staff,20 December 2011,197.24
http://statistics.data.gov.uk/id/local-authority-district/23UB,Cheltenham Borough Council,462724,511229,COMENSURA LIMITED,C-C23100-0115,Refuse Collection-Temporary Agency Staff,20 December 2011,223.26
http://statistics.data.gov.uk/id/local-authority-district/23UB,Cheltenham Borough Council,462724,511229,COMENSURA LIMITED,C-C23100-0115,Refuse Collection-Temporary Agency Staff,20 December 2011,169.06
http://statistics.data.gov.uk/id/local-authority-district/23UB,Cheltenham Borough Council,462724,511229,COMENSURA LIMITED,C-C23100-0115,Refuse Collection-Temporary Agency Staff,20 December 2011,42.46
http://statistics.data.gov.uk/id/local-authority-district/23UB,Cheltenham Borough Council,462724,511229,COMENSURA LIMITED,C-C23100-0115,Refuse Collection-Temporary Agency Staff,20 December 2011,190.73
http://statistics.data.gov.uk/id/local-authority-district/23UB,Cheltenham Borough Council,462724,511229,COMENSURA LIMITED,C-C23100-0115,Refuse Collection-Temporary Agency Staff,20 December 2011,320.77
http://statistics.data.gov.uk/id/local-authority-district/23UB,Cheltenham Borough Council,462724,511229,COMENSURA LIMITED,C-C23100-0115,Refuse Collection-Temporary Agency Staff,20 December 2011,320.77
http://statistics.data.gov.uk/id/local-authority-district/23UB,Cheltenham Borough Council,462724,511229,COMENSURA LIMITED,C-C23100-0115,Refuse Collection-Temporary Agency Staff,20 December 2011,335.67
http://statistics.data.gov.uk/id/local-authority-district/23UB,Cheltenham Borough Council,462724,511229,COMENSURA LIMITED,C-C23100-0115,Refuse Collection-Temporary Agency Staff,20 December 2011,60.69
http://statistics.data.gov.uk/id/local-authority-district/23UB,Cheltenham Borough Council,462724,511229,COMENSURA LIMITED,C-C23100-0115,Refuse Collection-Temporary Agency Staff,20 December 2011,350.70
http://statistics.data.gov.uk/id/local-authority-district/23UB,Cheltenham Borough Council,462724,511229,COMENSURA LIMITED,C-C23100-0115,Refuse Collection-Temporary Agency Staff,20 December 2011,335.67
http://statistics.data.gov.uk/id/local-authority-district/23UB,Cheltenham Borough Council,462724,511229,COMENSURA LIMITED,C-C23100-0115,Refuse Collection-Temporary Agency Staff,20 December 2011,350.70
http://statistics.data.gov.uk/id/local-authority-district/23UB,Cheltenham Borough Council,462724,511229,COMENSURA LIMITED,C-C23100-0115,Refuse Collection-Temporary Agency Staff,20 December 2011,335.67
http://statistics.data.gov.uk/id/local-authority-district/23UB,Cheltenham Borough Council,462722,511033,COMENSURA LIMITED,C-C23100-0115,Refuse Collection-Temporary Agency Staff,20 December 2011,320.77
http://statistics.data.gov.uk/id/local-authority-district/23UB,Cheltenham Borough Council,462722,511033,COMENSURA LIMITED,C-C23100-0115,Refuse Collection-Temporary Agency Staff,20 December 2011,329.44
http://statistics.data.gov.uk/id/local-authority-district/23UB,Cheltenham Borough Council,462722,511033,COMENSURA LIMITED,C-C23100-0115,Refuse Collection-Temporary Agency Staff,20 December 2011,52.02
http://statistics.data.gov.uk/id/local-authority-district/23UB,Cheltenham Borough Council,462722,511033,COMENSURA LIMITED,C-C23100-0115,Refuse Collection-Temporary Agency Staff,20 December 2011,218.34
http://statistics.data.gov.uk/id/local-authority-district/23UB,Cheltenham Borough Council,462722,511033,COMENSURA LIMITED,C-C23100-0115,Refuse Collection-Temporary Agency Staff,20 December 2011,95.36
http://statistics.data.gov.uk/id/local-authority-district/23UB,Cheltenham Borough Council,462722,511033,COMENSURA LIMITED,C-C23100-0115,Refuse Collection-Temporary Agency Staff,20 December 2011,97.04
http://statistics.data.gov.uk/id/local-authority-district/23UB,Cheltenham Borough Council,462722,511033,COMENSURA LIMITED,C-C23100-0115,Refuse Collection-Temporary Agency Staff,20 December 2011,188.56
http://statistics.data.gov.uk/id/local-authority-district/23UB,Cheltenham Borough Council,462722,511033,COMENSURA LIMITED,C-C23100-0115,Refuse Collection-Temporary Agency Staff,20 December 2011,195.07
http://statistics.data.gov.uk/id/local-authority-district/23UB,Cheltenham Borough Council,462722,511033,COMENSURA LIMITED,C-C23100-0115,Refuse Collection-Temporary Agency Staff,20 December 2011,238.41
http://statistics.data.gov.uk/id/local-authority-district/23UB,Cheltenham Borough Council,462722,511033,COMENSURA LIMITED,C-C23100-0115,Refuse Collection-Temporary Agency Staff,20 December 2011,147.39
http://statistics.data.gov.uk/id/local-authority-district/23UB,Cheltenham Borough Council,461569,510832,COMENSURA LIMITED,C-C23100-0115,Refuse Collection-Temporary Agency Staff,20 December 2011,30.32
http://statistics.data.gov.uk/id/local-authority-district/23UB,Cheltenham Borough Council,461569,510832,COMENSURA LIMITED,C-C23100-0115,Refuse Collection-Temporary Agency Staff,20 December 2011,260.10
http://statistics.data.gov.uk/id/local-authority-district/23UB,Cheltenham Borough Council,461569,510832,COMENSURA LIMITED,C-C23100-0115,Refuse Collection-Temporary Agency Staff,20 December 2011,262.27
http://statistics.data.gov.uk/id/local-authority-district/23UB,Cheltenham Borough Council,461569,510832,COMENSURA LIMITED,C-C23100-0115,Refuse Collection-Temporary Agency Staff,20 December 2011,288.28
http://statistics.data.gov.uk/id/local-authority-district/23UB,Cheltenham Borough Council,461569,510832,COMENSURA LIMITED,C-C23100-0115,Refuse Collection-Temporary Agency Staff,20 December 2011,260.10
http://statistics.data.gov.uk/id/local-authority-district/23UB,Cheltenham Borough Council,461569,510832,COMENSURA LIMITED,C-C23100-0115,Refuse Collection-Temporary Agency Staff,20 December 2011,70.14
http://statistics.data.gov.uk/id/local-authority-district/23UB,Cheltenham Borough Council,461569,510832,COMENSURA LIMITED,C-C23100-0115,Refuse Collection-Temporary Agency Staff,20 December 2011,307.82
http://statistics.data.gov.uk/id/local-authority-district/23UB,Cheltenham Borough Council,461569,510832,COMENSURA LIMITED,C-C23100-0115,Refuse Collection-Temporary Agency Staff,20 December 2011,78.04
http://statistics.data.gov.uk/id/local-authority-district/23UB,Cheltenham Borough Council,461569,510832,COMENSURA LIMITED,C-C23100-0115,Refuse Collection-Temporary Agency Staff,20 December 2011,325.12
http://statistics.data.gov.uk/id/local-authority-district/23UB,Cheltenham Borough Council,461569,510832,COMENSURA LIMITED,C-C23100-0115,Refuse Collection-Temporary Agency Staff,20 December 2011,283.96
http://statistics.data.gov.uk/id/local-authority-district/23UB,Cheltenham Borough Council,462722,511033,COMENSURA LIMITED,C-C23110-0115,Street Cleaning-Temporary Agency Staff,20 December 2011,134.38
http://statistics.data.gov.uk/id/local-authority-district/23UB,Cheltenham Borough Council,462724,511229,COMENSURA LIMITED,C-C23110-0115,Street Cleaning-Temporary Agency Staff,20 December 2011,186.40
http://statistics.data.gov.uk/id/local-authority-district/23UB,Cheltenham Borough Council,462722,511033,COMENSURA LIMITED,C-C23110-0115,Street Cleaning-Temporary Agency Staff,20 December 2011,283.95
http://statistics.data.gov.uk/id/local-authority-district/23UB,Cheltenham Borough Council,462722,511033,COMENSURA LIMITED,C-C23110-0115,Street Cleaning-Temporary Agency Staff,20 December 2011,125.71
http://statistics.data.gov.uk/id/local-authority-district/23UB,Cheltenham Borough Council,462724,511229,COMENSURA LIMITED,C-C23125-0115,Recyl Bring Schms-Temporary Agency Staff,20 December 2011,97.04
http://statistics.data.gov.uk/id/local-authority-district/23UB,Cheltenham Borough Council,461569,510832,COMENSURA LIMITED,C-C23180-0115,Rcycl Coltn Schms-Temporary Agency Staff,20 December 2011,97.04
http://statistics.data.gov.uk/id/local-authority-district/23UB,Cheltenham Borough Council,461569,510832,COMENSURA LIMITED,C-C23180-0115,Rcycl Coltn Schms-Temporary Agency Staff,20 December 2011,114.88
http://statistics.data.gov.uk/id/local-authority-district/23UB,Cheltenham Borough Council,461569,510832,COMENSURA LIMITED,C-C23180-0115,Rcycl Coltn Schms-Temporary Agency Staff,20 December 2011,119.21
http://statistics.data.gov.uk/id/local-authority-district/23UB,Cheltenham Borough Council,461569,510832,COMENSURA LIMITED,C-C23180-0115,Rcycl Coltn Schms-Temporary Agency Staff,20 December 2011,283.94
http://statistics.data.gov.uk/id/local-authority-district/23UB,Cheltenham Borough Council,461569,510832,COMENSURA LIMITED,C-C23180-0115,Rcycl Coltn Schms-Temporary Agency Staff,20 December 2011,264.43
http://statistics.data.gov.uk/id/local-authority-district/23UB,Cheltenham Borough Council,461569,510832,COMENSURA LIMITED,C-C23180-0115,Rcycl Coltn Schms-Temporary Agency Staff,20 December 2011,171.24
http://statistics.data.gov.uk/id/local-authority-district/23UB,Cheltenham Borough Council,461569,510832,COMENSURA LIMITED,C-C23180-0115,Rcycl Coltn Schms-Temporary Agency Staff,20 December 2011,264.44
http://statistics.data.gov.uk/id/local-authority-district/23UB,Cheltenham Borough Council,461569,510832,COMENSURA LIMITED,C-C23180-0115,Rcycl Coltn Schms-Temporary Agency Staff,20 December 2011,231.93
http://statistics.data.gov.uk/id/local-authority-district/23UB,Cheltenham Borough Council,461569,510832,COMENSURA LIMITED,C-C23180-0115,Rcycl Coltn Schms-Temporary Agency Staff,20 December 2011,264.44
http://statistics.data.gov.uk/id/local-authority-district/23UB,Cheltenham Borough Council,461569,510832,COMENSURA LIMITED,C-C23180-0115,Rcycl Coltn Schms-Temporary Agency Staff,20 December 2011,292.62
http://statistics.data.gov.uk/id/local-authority-district/23UB,Cheltenham Borough Council,461569,510832,COMENSURA LIMITED,C-C23180-0115,Rcycl Coltn Schms-Temporary Agency Staff,20 December 2011,329.46
http://statistics.data.gov.uk/id/local-authority-district/23UB,Cheltenham Borough Council,461569,510832,COMENSURA LIMITED,C-C23180-0115,Rcycl Coltn Schms-Temporary Agency Staff,20 December 2011,485.20
http://statistics.data.gov.uk/id/local-authority-district/23UB,Cheltenham Borough Council,461569,510832,COMENSURA LIMITED,C-C23180-0115,Rcycl Coltn Schms-Temporary Agency Staff,20 December 2011,400.29
http://statistics.data.gov.uk/id/local-authority-district/23UB,Cheltenham Borough Council,462722,511033,COMENSURA LIMITED,C-C23180-0115,Rcycl Coltn Schms-Temporary Agency Staff,20 December 2011,208.07
http://statistics.data.gov.uk/id/local-authority-district/23UB,Cheltenham Borough Council,462722,511033,COMENSURA LIMITED,C-C23180-0115,Rcycl Coltn Schms-Temporary Agency Staff,20 December 2011,521.59
http://statistics.data.gov.uk/id/local-authority-district/23UB,Cheltenham Borough Council,462722,511033,COMENSURA LIMITED,C-C23180-0115,Rcycl Coltn Schms-Temporary Agency Staff,20 December 2011,214.59
http://statistics.data.gov.uk/id/local-authority-district/23UB,Cheltenham Borough Council,462722,511033,COMENSURA LIMITED,C-C23180-0115,Rcycl Coltn Schms-Temporary Agency Staff,20 December 2011,333.79
http://statistics.data.gov.uk/id/local-authority-district/23UB,Cheltenham Borough Council,462722,511033,COMENSURA LIMITED,C-C23180-0115,Rcycl Coltn Schms-Temporary Agency Staff,20 December 2011,372.81
http://statistics.data.gov.uk/id/local-authority-district/23UB,Cheltenham Borough Council,462722,511033,COMENSURA LIMITED,C-C23180-0115,Rcycl Coltn Schms-Temporary Agency Staff,20 December 2011,372.81
http://statistics.data.gov.uk/id/local-authority-district/23UB,Cheltenham Borough Council,462722,511033,COMENSURA LIMITED,C-C23180-0115,Rcycl Coltn Schms-Temporary Agency Staff,20 December 2011,147.40
http://statistics.data.gov.uk/id/local-authority-district/23UB,Cheltenham Borough Council,462722,511033,COMENSURA LIMITED,C-C23180-0115,Rcycl Coltn Schms-Temporary Agency Staff,20 December 2011,151.72
http://statistics.data.gov.uk/id/local-authority-district/23UB,Cheltenham Borough Council,462722,511033,COMENSURA LIMITED,C-C23180-0115,Rcycl Coltn Schms-Temporary Agency Staff,20 December 2011,190.73
http://statistics.data.gov.uk/id/local-authority-district/23UB,Cheltenham Borough Council,462724,511229,COMENSURA LIMITED,C-C23180-0115,Rcycl Coltn Schms-Temporary Agency Staff,20 December 2011,134.38
http://statistics.data.gov.uk/id/local-authority-district/23UB,Cheltenham Borough Council,462724,511229,COMENSURA LIMITED,C-C23180-0115,Rcycl Coltn Schms-Temporary Agency Staff,20 December 2011,325.11
http://statistics.data.gov.uk/id/local-authority-district/23UB,Cheltenham Borough Council,462724,511229,COMENSURA LIMITED,C-C23180-0115,Rcycl Coltn Schms-Temporary Agency Staff,20 December 2011,329.46
http://statistics.data.gov.uk/id/local-authority-district/23UB,Cheltenham Borough Council,462724,511229,COMENSURA LIMITED,C-C23180-0115,Rcycl Coltn Schms-Temporary Agency Staff,20 December 2011,305.63
http://statistics.data.gov.uk/id/local-authority-district/23UB,Cheltenham Borough Council,462724,511229,COMENSURA LIMITED,C-C23180-0115,Rcycl Coltn Schms-Temporary Agency Staff,20 December 2011,412.42
http://statistics.data.gov.uk/id/local-authority-district/23UB,Cheltenham Borough Council,462724,511229,COMENSURA LIMITED,C-C23180-0115,Rcycl Coltn Schms-Temporary Agency Staff,20 December 2011,294.78
http://statistics.data.gov.uk/id/local-authority-district/23UB,Cheltenham Borough Council,462724,511229,COMENSURA LIMITED,C-C23180-0115,Rcycl Coltn Schms-Temporary Agency Staff,20 December 2011,485.20
http://statistics.data.gov.uk/id/local-authority-district/23UB,Cheltenham Borough Council,462724,511229,COMENSURA LIMITED,C-C23180-0115,Rcycl Coltn Schms-Temporary Agency Staff,20 December 2011,294.78
http://statistics.data.gov.uk/id/local-authority-district/23UB,Cheltenham Borough Council,462722,511033,COMENSURA LIMITED,C-C23180-0115,Rcycl Coltn Schms-Temporary Agency Staff,20 December 2011,65.02
http://statistics.data.gov.uk/id/local-authority-district/23UB,Cheltenham Borough Council,462722,511033,COMENSURA LIMITED,C-C23180-0115,Rcycl Coltn Schms-Temporary Agency Staff,20 December 2011,333.80
http://statistics.data.gov.uk/id/local-authority-district/23UB,Cheltenham Borough Council,462722,511033,COMENSURA LIMITED,C-C23180-0115,Rcycl Coltn Schms-Temporary Agency Staff,20 December 2011,238.43
http://statistics.data.gov.uk/id/local-authority-district/23UB,Cheltenham Borough Council,462722,511033,COMENSURA LIMITED,C-C23180-0115,Rcycl Coltn Schms-Temporary Agency Staff,20 December 2011,86.70
http://statistics.data.gov.uk/id/local-authority-district/23UB,Cheltenham Borough Council,462722,511033,COMENSURA LIMITED,C-C23180-0115,Rcycl Coltn Schms-Temporary Agency Staff,20 December 2011,485.20
http://statistics.data.gov.uk/id/local-authority-district/23UB,Cheltenham Borough Council,462722,511033,COMENSURA LIMITED,C-C23180-0115,Rcycl Coltn Schms-Temporary Agency Staff,20 December 2011,333.80
http://statistics.data.gov.uk/id/local-authority-district/23UB,Cheltenham Borough Council,462722,511033,COMENSURA LIMITED,C-C23180-0115,Rcycl Coltn Schms-Temporary Agency Staff,20 December 2011,294.78
http://statistics.data.gov.uk/id/local-authority-district/23UB,Cheltenham Borough Council,462722,511033,COMENSURA LIMITED,C-C23180-0115,Rcycl Coltn Schms-Temporary Agency Staff,20 December 2011,329.45
http://statistics.data.gov.uk/id/local-authority-district/23UB,Cheltenham Borough Council,462722,511033,COMENSURA LIMITED,C-C23180-0115,Rcycl Coltn Schms-Temporary Agency Staff,20 December 2011,485.20
http://statistics.data.gov.uk/id/local-authority-district/23UB,Cheltenham Borough Council,461569,510832,COMENSURA LIMITED,C-C23180-0115,Rcycl Coltn Schms-Temporary Agency Staff,20 December 2011,101.87
http://statistics.data.gov.uk/id/local-authority-district/23UB,Cheltenham Borough Council,461569,510832,COMENSURA LIMITED,C-C23180-0115,Rcycl Coltn Schms-Temporary Agency Staff,20 December 2011,299.11
http://statistics.data.gov.uk/id/local-authority-district/23UB,Cheltenham Borough Council,461569,510832,COMENSURA LIMITED,C-C23180-0115,Rcycl Coltn Schms-Temporary Agency Staff,20 December 2011,299.11
http://statistics.data.gov.uk/id/local-authority-district/23UB,Cheltenham Borough Council,461569,510832,COMENSURA LIMITED,C-C23180-0115,Rcycl Coltn Schms-Temporary Agency Staff,20 December 2011,485.20
http://statistics.data.gov.uk/id/local-authority-district/23UB,Cheltenham Borough Council,461569,510832,COMENSURA LIMITED,C-C23180-0115,Rcycl Coltn Schms-Temporary Agency Staff,20 December 2011,400.29
http://statistics.data.gov.uk/id/local-authority-district/23UB,Cheltenham Borough Council,461569,510832,COMENSURA LIMITED,C-C23180-0115,Rcycl Coltn Schms-Temporary Agency Staff,20 December 2011,257.93
http://statistics.data.gov.uk/id/local-authority-district/23UB,Cheltenham Borough Council,461569,510832,COMENSURA LIMITED,C-C23180-0115,Rcycl Coltn Schms-Temporary Agency Staff,20 December 2011,316.45
http://statistics.data.gov.uk/id/local-authority-district/23UB,Cheltenham Borough Council,461569,510832,COMENSURA LIMITED,C-C23180-0115,Rcycl Coltn Schms-Temporary Agency Staff,20 December 2011,67.19
http://statistics.data.gov.uk/id/local-authority-district/23UB,Cheltenham Borough Council,462722,511033,COMENSURA LIMITED,C-C23180-0115,Rcycl Coltn Schms-Temporary Agency Staff,20 December 2011,331.62
http://statistics.data.gov.uk/id/local-authority-district/23UB,Cheltenham Borough Council,462722,511033,COMENSURA LIMITED,C-C23180-0115,Rcycl Coltn Schms-Temporary Agency Staff,20 December 2011,331.62
http://statistics.data.gov.uk/id/local-authority-district/23UB,Cheltenham Borough Council,462722,511033,COMENSURA LIMITED,C-C23180-0115,Rcycl Coltn Schms-Temporary Agency Staff,20 December 2011,418.48
http://statistics.data.gov.uk/id/local-authority-district/23UB,Cheltenham Borough Council,462722,511033,COMENSURA LIMITED,C-C23180-0115,Rcycl Coltn Schms-Temporary Agency Staff,20 December 2011,97.04
http://statistics.data.gov.uk/id/local-authority-district/23UB,Cheltenham Borough Council,462722,511033,COMENSURA LIMITED,C-C23180-0115,Rcycl Coltn Schms-Temporary Agency Staff,20 December 2011,56.36
http://statistics.data.gov.uk/id/local-authority-district/23UB,Cheltenham Borough Council,462722,511033,COMENSURA LIMITED,C-C23180-0115,Rcycl Coltn Schms-Temporary Agency Staff,20 December 2011,197.11
http://statistics.data.gov.uk/id/local-authority-district/23UB,Cheltenham Borough Council,462722,511033,COMENSURA LIMITED,C-C23180-0115,Rcycl Coltn Schms-Temporary Agency Staff,20 December 2011,273.11
http://statistics.data.gov.uk/id/local-authority-district/23UB,Cheltenham Borough Council,461569,510832,COMENSURA LIMITED,C-C23180-0115,Rcycl Coltn Schms-Temporary Agency Staff,20 December 2011,264.44
http://statistics.data.gov.uk/id/local-authority-district/23UB,Cheltenham Borough Council,461569,510832,COMENSURA LIMITED,C-C23180-0115,Rcycl Coltn Schms-Temporary Agency Staff,20 December 2011,500.36
http://statistics.data.gov.uk/id/local-authority-district/23UB,Cheltenham Borough Council,462724,511229,COMENSURA LIMITED,C-C23180-0115,Rcycl Coltn Schms-Temporary Agency Staff,20 December 2011,275.26
http://statistics.data.gov.uk/id/local-authority-district/23UB,Cheltenham Borough Council,462724,511229,COMENSURA LIMITED,C-C23180-0115,Rcycl Coltn Schms-Temporary Agency Staff,20 December 2011,56.36
http://statistics.data.gov.uk/id/local-authority-district/23UB,Cheltenham Borough Council,462724,511229,COMENSURA LIMITED,C-C23180-0115,Rcycl Coltn Schms-Temporary Agency Staff,20 December 2011,290.44
http://statistics.data.gov.uk/id/local-authority-district/23UB,Cheltenham Borough Council,462724,511229,COMENSURA LIMITED,C-C23180-0115,Rcycl Coltn Schms-Temporary Agency Staff,20 December 2011,97.04
http://statistics.data.gov.uk/id/local-authority-district/23UB,Cheltenham Borough Council,462724,511229,COMENSURA LIMITED,C-C23180-0115,Rcycl Coltn Schms-Temporary Agency Staff,20 December 2011,218.93
http://statistics.data.gov.uk/id/local-authority-district/23UB,Cheltenham Borough Council,462724,511229,COMENSURA LIMITED,C-C23180-0115,Rcycl Coltn Schms-Temporary Agency Staff,20 December 2011,283.94
http://statistics.data.gov.uk/id/local-authority-district/23UB,Cheltenham Borough Council,462724,511229,COMENSURA LIMITED,C-C23180-0115,Rcycl Coltn Schms-Temporary Agency Staff,20 December 2011,60.69
http://statistics.data.gov.uk/id/local-authority-district/23UB,Cheltenham Borough Council,462724,511229,COMENSURA LIMITED,C-C23180-0115,Rcycl Coltn Schms-Temporary Agency Staff,20 December 2011,300.22
http://statistics.data.gov.uk/id/local-authority-district/23UB,Cheltenham Borough Council,462724,511229,COMENSURA LIMITED,C-C23180-0115,Rcycl Coltn Schms-Temporary Agency Staff,20 December 2011,130.04
http://statistics.data.gov.uk/id/local-authority-district/23UB,Cheltenham Borough Council,462724,511229,COMENSURA LIMITED,C-C23180-0115,Rcycl Coltn Schms-Temporary Agency Staff,20 December 2011,112.72
http://statistics.data.gov.uk/id/local-authority-district/23UB,Cheltenham Borough Council,462724,511229,COMENSURA LIMITED,C-C23180-0115,Rcycl Coltn Schms-Temporary Agency Staff,20 December 2011,509.45
http://statistics.data.gov.uk/id/local-authority-district/23UB,Cheltenham Borough Council,462724,511229,COMENSURA LIMITED,C-C23180-0115,Rcycl Coltn Schms-Temporary Agency Staff,20 December 2011,151.72
http://statistics.data.gov.uk/id/local-authority-district/23UB,Cheltenham Borough Council,462724,511229,COMENSURA LIMITED,C-C23180-0115,Rcycl Coltn Schms-Temporary Agency Staff,20 December 2011,329.46
http://statistics.data.gov.uk/id/local-authority-district/23UB,Cheltenham Borough Council,462724,511229,COMENSURA LIMITED,C-C23180-0115,Rcycl Coltn Schms-Temporary Agency Staff,20 December 2011,291.12
http://statistics.data.gov.uk/id/local-authority-district/23UB,Cheltenham Borough Council,462724,511229,COMENSURA LIMITED,C-C23180-0115,Rcycl Coltn Schms-Temporary Agency Staff,20 December 2011,312.13
http://statistics.data.gov.uk/id/local-authority-district/23UB,Cheltenham Borough Council,462724,511229,COMENSURA LIMITED,C-C23180-0115,Rcycl Coltn Schms-Temporary Agency Staff,20 December 2011,322.95
http://statistics.data.gov.uk/id/local-authority-district/23UB,Cheltenham Borough Council,462724,511229,COMENSURA LIMITED,C-C23180-0115,Rcycl Coltn Schms-Temporary Agency Staff,20 December 2011,290.44
http://statistics.data.gov.uk/id/local-authority-district/23UB,Cheltenham Borough Council,462724,511229,COMENSURA LIMITED,C-C23180-0115,Rcycl Coltn Schms-Temporary Agency Staff,20 December 2011,112.70
http://statistics.data.gov.uk/id/local-authority-district/23UB,Cheltenham Borough Council,462722,511033,COMENSURA LIMITED,C-C23180-0115,Rcycl Coltn Schms-Temporary Agency Staff,20 December 2011,97.04
http://statistics.data.gov.uk/id/local-authority-district/23UB,Cheltenham Borough Council,461569,510832,COMENSURA LIMITED,C-C23190-0115,Garden Collectn-Temporary Agency Staff,20 December 2011,195.07
http://statistics.data.gov.uk/id/local-authority-district/23UB,Cheltenham Borough Council,461569,510832,COMENSURA LIMITED,C-C23190-0115,Garden Collectn-Temporary Agency Staff,20 December 2011,69.36
http://statistics.data.gov.uk/id/local-authority-district/23UB,Cheltenham Borough Council,462724,511229,COMENSURA LIMITED,C-C23190-0115,Garden Collectn-Temporary Agency Staff,20 December 2011,39.02
http://statistics.data.gov.uk/id/local-authority-district/23UB,Cheltenham Borough Council,462724,511229,COMENSURA LIMITED,C-C23190-0115,Garden Collectn-Temporary Agency Staff,20 December 2011,52.02
http://statistics.data.gov.uk/id/local-authority-district/23UB,Cheltenham Borough Council,462724,511229,COMENSURA LIMITED,C-C23190-0115,Garden Collectn-Temporary Agency Staff,20 December 2011,221.08
http://statistics.data.gov.uk/id/local-authority-district/23UB,Cheltenham Borough Council,462724,511229,COMENSURA LIMITED,C-C23190-0115,Garden Collectn-Temporary Agency Staff,20 December 2011,43.35
http://statistics.data.gov.uk/id/local-authority-district/23UB,Cheltenham Borough Council,462722,511033,COMENSURA LIMITED,C-C23190-0115,Garden Collectn-Temporary Agency Staff,20 December 2011,194.08
http://statistics.data.gov.uk/id/local-authority-district/23UB,Cheltenham Borough Council,462722,511033,COMENSURA LIMITED,C-C23190-0115,Garden Collectn-Temporary Agency Staff,20 December 2011,212.41
http://statistics.data.gov.uk/id/local-authority-district/23UB,Cheltenham Borough Council,462722,511033,COMENSURA LIMITED,C-C23190-0115,Garden Collectn-Temporary Agency Staff,20 December 2011,251.43
http://statistics.data.gov.uk/id/local-authority-district/23UB,Cheltenham Borough Council,461569,510832,COMENSURA LIMITED,C-C23190-0115,Garden Collectn-Temporary Agency Staff,20 December 2011,80.20
http://statistics.data.gov.uk/id/local-authority-district/23UB,Cheltenham Borough Council,461569,510832,COMENSURA LIMITED,C-C23190-0115,Garden Collectn-Temporary Agency Staff,20 December 2011,49.85
http://statistics.data.gov.uk/id/local-authority-district/23UB,Cheltenham Borough Council,461569,510832,COMENSURA LIMITED,C-C23190-0115,Garden Collectn-Temporary Agency Staff,20 December 2011,45.52
http://statistics.data.gov.uk/id/local-authority-district/23UB,Cheltenham Borough Council,461569,510832,COMENSURA LIMITED,C-C23190-0115,Garden Collectn-Temporary Agency Staff,20 December 2011,43.35
http://statistics.data.gov.uk/id/local-authority-district/23UB,Cheltenham Borough Council,461569,510832,COMENSURA LIMITED,C-C23190-0115,Garden Collectn-Temporary Agency Staff,20 December 2011,78.03
http://statistics.data.gov.uk/id/local-authority-district/23UB,Cheltenham Borough Council,461569,510832,COMENSURA LIMITED,C-D13100-0115,Muni Off Blgs-Temporary Agency Staff,20 December 2011,108.40
http://statistics.data.gov.uk/id/local-authority-district/23UB,Cheltenham Borough Council,462722,511033,COMENSURA LIMITED,C-D13100-0115,Muni Off Blgs-Temporary Agency Staff,20 December 2011,108.40
http://statistics.data.gov.uk/id/local-authority-district/23UB,Cheltenham Borough Council,461569,510832,COMENSURA LIMITED,C-D13100-0115,Muni Off Blgs-Temporary Agency Staff,20 December 2011,86.70
http://statistics.data.gov.uk/id/local-authority-district/23UB,Cheltenham Borough Council,461569,510832,COMENSURA LIMITED,C-D13100-0115,Muni Off Blgs-Temporary Agency Staff,20 December 2011,108.40
http://statistics.data.gov.uk/id/local-authority-district/23UB,Cheltenham Borough Council,462722,511033,COMENSURA LIMITED,C-D13100-0115,Muni Off Blgs-Temporary Agency Staff,20 December 2011,108.40
http://statistics.data.gov.uk/id/local-authority-district/23UB,Cheltenham Borough Council,462724,511229,COMENSURA LIMITED,C-D13100-0115,Muni Off Blgs-Temporary Agency Staff,20 December 2011,86.70
http://statistics.data.gov.uk/id/local-authority-district/23UB,Cheltenham Borough Council,462724,511229,COMENSURA LIMITED,C-D13100-0115,Muni Off Blgs-Temporary Agency Staff,20 December 2011,108.40
http://statistics.data.gov.uk/id/local-authority-district/23UB,Cheltenham Borough Council,462724,511229,COMENSURA LIMITED,C-D13100-0115,Muni Off Blgs-Temporary Agency Staff,20 December 2011,43.36
http://statistics.data.gov.uk/id/local-authority-district/23UB,Cheltenham Borough Council,462724,511229,COMENSURA LIMITED,C-D13100-0115,Muni Off Blgs-Temporary Agency Staff,20 December 2011,108.40
http://statistics.data.gov.uk/id/local-authority-district/23UB,Cheltenham Borough Council,462722,511033,COMENSURA LIMITED,C-D13100-0115,Muni Off Blgs-Temporary Agency Staff,20 December 2011,86.70
http://statistics.data.gov.uk/id/local-authority-district/23UB,Cheltenham Borough Council,461569,510832,COMENSURA LIMITED,C-E63100-0115,Cemetery & Crem-Temporary Agency Staff,20 December 2011,255.75
http://statistics.data.gov.uk/id/local-authority-district/23UB,Cheltenham Borough Council,462722,511033,COMENSURA LIMITED,C-E63100-0115,Cemetery & Crem-Temporary Agency Staff,20 December 2011,312.10
http://statistics.data.gov.uk/id/local-authority-district/23UB,Cheltenham Borough Council,462724,511229,COMENSURA LIMITED,C-E63100-0115,Cemetery & Crem-Temporary Agency Staff,20 December 2011,255.75
http://statistics.data.gov.uk/id/local-authority-district/23UB,Cheltenham Borough Council,462724,511229,COMENSURA LIMITED,C-E63100-0115,Cemetery & Crem-Temporary Agency Staff,20 December 2011,320.77
http://statistics.data.gov.uk/id/local-authority-district/23UB,Cheltenham Borough Council,461569,510832,COMENSURA LIMITED,C-E63100-0115,Cemetery & Crem-Temporary Agency Staff,20 December 2011,260.08
http://statistics.data.gov.uk/id/local-authority-district/23UB,Cheltenham Borough Council,462722,511033,COMENSURA LIMITED,C-E63100-0115,Cemetery & Crem-Temporary Agency Staff,20 December 2011,320.77
http://statistics.data.gov.uk/id/local-authority-district/23UB,Cheltenham Borough Council,463912,511848,COMENSURA LIMITED,C-C22100-0115,Green Env Div-Temporary Agency Staff,22 December 2011,428.46
http://statistics.data.gov.uk/id/local-authority-district/23UB,Cheltenham Borough Council,463912,511848,COMENSURA LIMITED,C-C22100-0115,Green Env Div-Temporary Agency Staff,22 December 2011,434.25
http://statistics.data.gov.uk/id/local-authority-district/23UB,Cheltenham Borough Council,463913,511638,COMENSURA LIMITED,C-C22100-0115,Green Env Div-Temporary Agency Staff,22 December 2011,405.30
http://statistics.data.gov.uk/id/local-authority-district/23UB,Cheltenham Borough Council,463913,511638,COMENSURA LIMITED,C-C22120-0115,Spts/Open Space-Temporary Agency Staff,22 December 2011,281.79
http://statistics.data.gov.uk/id/local-authority-district/23UB,Cheltenham Borough Council,463913,511638,COMENSURA LIMITED,C-C22120-0115,Spts/Open Space-Temporary Agency Staff,22 December 2011,281.79
http://statistics.data.gov.uk/id/local-authority-district/23UB,Cheltenham Borough Council,463913,511638,COMENSURA LIMITED,C-C22120-0115,Spts/Open Space-Temporary Agency Staff,22 December 2011,355.49
http://statistics.data.gov.uk/id/local-authority-district/23UB,Cheltenham Borough Council,463911,511443,COMENSURA LIMITED,C-C23100-0115,Refuse Collection-Temporary Agency Staff,22 December 2011,123.55
http://statistics.data.gov.uk/id/local-authority-district/23UB,Cheltenham Borough Council,463911,511443,COMENSURA LIMITED,C-C23100-0115,Refuse Collection-Temporary Agency Staff,22 December 2011,145.22
http://statistics.data.gov.uk/id/local-authority-district/23UB,Cheltenham Borough Council,463911,511443,COMENSURA LIMITED,C-C23100-0115,Refuse Collection-Temporary Agency Staff,22 December 2011,156.06
http://statistics.data.gov.uk/id/local-authority-district/23UB,Cheltenham Borough Council,463911,511443,COMENSURA LIMITED,C-C23100-0115,Refuse Collection-Temporary Agency Staff,22 December 2011,65.02
http://statistics.data.gov.uk/id/local-authority-district/23UB,Cheltenham Borough Council,463911,511443,COMENSURA LIMITED,C-C23100-0115,Refuse Collection-Temporary Agency Staff,22 December 2011,312.03
http://statistics.data.gov.uk/id/local-authority-district/23UB,Cheltenham Borough Council,463911,511443,COMENSURA LIMITED,C-C23100-0115,Refuse Collection-Temporary Agency Staff,22 December 2011,249.25
http://statistics.data.gov.uk/id/local-authority-district/23UB,Cheltenham Borough Council,463912,511848,COMENSURA LIMITED,C-C23100-0115,Refuse Collection-Temporary Agency Staff,22 December 2011,315.63
http://statistics.data.gov.uk/id/local-authority-district/23UB,Cheltenham Borough Council,463912,511848,COMENSURA LIMITED,C-C23100-0115,Refuse Collection-Temporary Agency Staff,22 December 2011,279.61
http://statistics.data.gov.uk/id/local-authority-district/23UB,Cheltenham Borough Council,463911,511443,COMENSURA LIMITED,C-C23100-0115,Refuse Collection-Temporary Agency Staff,22 December 2011,221.37
http://statistics.data.gov.uk/id/local-authority-district/23UB,Cheltenham Borough Council,463911,511443,COMENSURA LIMITED,C-C23100-0115,Refuse Collection-Temporary Agency Staff,22 December 2011,97.04
http://statistics.data.gov.uk/id/local-authority-district/23UB,Cheltenham Borough Council,463911,511443,COMENSURA LIMITED,C-C23100-0115,Refuse Collection-Temporary Agency Staff,22 December 2011,108.37
http://statistics.data.gov.uk/id/local-authority-district/23UB,Cheltenham Borough Council,463911,511443,COMENSURA LIMITED,C-C23100-0115,Refuse Collection-Temporary Agency Staff,22 December 2011,227.58
http://statistics.data.gov.uk/id/local-authority-district/23UB,Cheltenham Borough Council,463911,511443,COMENSURA LIMITED,C-C23100-0115,Refuse Collection-Temporary Agency Staff,22 December 2011,224.41
http://statistics.data.gov.uk/id/local-authority-district/23UB,Cheltenham Borough Council,463911,511443,COMENSURA LIMITED,C-C23100-0115,Refuse Collection-Temporary Agency Staff,22 December 2011,149.53
http://statistics.data.gov.uk/id/local-authority-district/23UB,Cheltenham Borough Council,463911,511443,COMENSURA LIMITED,C-C23100-0115,Refuse Collection-Temporary Agency Staff,22 December 2011,205.88
http://statistics.data.gov.uk/id/local-authority-district/23UB,Cheltenham Borough Council,463913,511638,COMENSURA LIMITED,C-C23100-0115,Refuse Collection-Temporary Agency Staff,22 December 2011,320.77
http://statistics.data.gov.uk/id/local-authority-district/23UB,Cheltenham Borough Council,463912,511848,COMENSURA LIMITED,C-C23100-0115,Refuse Collection-Temporary Agency Staff,22 December 2011,194.08
http://statistics.data.gov.uk/id/local-authority-district/23UB,Cheltenham Borough Council,463912,511848,COMENSURA LIMITED,C-C23100-0115,Refuse Collection-Temporary Agency Staff,22 December 2011,169.06
http://statistics.data.gov.uk/id/local-authority-district/23UB,Cheltenham Borough Council,463912,511848,COMENSURA LIMITED,C-C23100-0115,Refuse Collection-Temporary Agency Staff,22 December 2011,212.43
http://statistics.data.gov.uk/id/local-authority-district/23UB,Cheltenham Borough Council,463912,511848,COMENSURA LIMITED,C-C23100-0115,Refuse Collection-Temporary Agency Staff,22 December 2011,303.45
http://statistics.data.gov.uk/id/local-authority-district/23UB,Cheltenham Borough Council,463912,511848,COMENSURA LIMITED,C-C23100-0115,Refuse Collection-Temporary Agency Staff,22 December 2011,314.30
http://statistics.data.gov.uk/id/local-authority-district/23UB,Cheltenham Borough Council,463912,511848,COMENSURA LIMITED,C-C23100-0115,Refuse Collection-Temporary Agency Staff,22 December 2011,121.38
http://statistics.data.gov.uk/id/local-authority-district/23UB,Cheltenham Borough Council,463912,511848,COMENSURA LIMITED,C-C23100-0115,Refuse Collection-Temporary Agency Staff,22 December 2011,203.73
http://statistics.data.gov.uk/id/local-authority-district/23UB,Cheltenham Borough Council,463912,511848,COMENSURA LIMITED,C-C23100-0115,Refuse Collection-Temporary Agency Staff,22 December 2011,407.47
http://statistics.data.gov.uk/id/local-authority-district/23UB,Cheltenham Borough Council,463913,511638,COMENSURA LIMITED,C-C23100-0115,Refuse Collection-Temporary Agency Staff,22 December 2011,112.71
http://statistics.data.gov.uk/id/local-authority-district/23UB,Cheltenham Borough Council,463913,511638,COMENSURA LIMITED,C-C23100-0115,Refuse Collection-Temporary Agency Staff,22 December 2011,214.59
http://statistics.data.gov.uk/id/local-authority-district/23UB,Cheltenham Borough Council,463913,511638,COMENSURA LIMITED,C-C23100-0115,Refuse Collection-Temporary Agency Staff,22 December 2011,190.73
http://statistics.data.gov.uk/id/local-authority-district/23UB,Cheltenham Borough Council,463913,511638,COMENSURA LIMITED,C-C23100-0115,Refuse Collection-Temporary Agency Staff,22 December 2011,320.77
http://statistics.data.gov.uk/id/local-authority-district/23UB,Cheltenham Borough Council,463913,511638,COMENSURA LIMITED,C-C23100-0115,Refuse Collection-Temporary Agency Staff,22 December 2011,320.77
http://statistics.data.gov.uk/id/local-authority-district/23UB,Cheltenham Borough Council,463913,511638,COMENSURA LIMITED,C-C23100-0115,Refuse Collection-Temporary Agency Staff,22 December 2011,255.75
http://statistics.data.gov.uk/id/local-authority-district/23UB,Cheltenham Borough Council,463913,511638,COMENSURA LIMITED,C-C23100-0115,Refuse Collection-Temporary Agency Staff,22 December 2011,260.08
http://statistics.data.gov.uk/id/local-authority-district/23UB,Cheltenham Borough Council,463913,511638,COMENSURA LIMITED,C-C23100-0115,Refuse Collection-Temporary Agency Staff,22 December 2011,320.80
http://statistics.data.gov.uk/id/local-authority-district/23UB,Cheltenham Borough Council,463913,511638,COMENSURA LIMITED,C-C23100-0115,Refuse Collection-Temporary Agency Staff,22 December 2011,299.12
http://statistics.data.gov.uk/id/local-authority-district/23UB,Cheltenham Borough Council,463913,511638,COMENSURA LIMITED,C-C23100-0115,Refuse Collection-Temporary Agency Staff,22 December 2011,407.47
http://statistics.data.gov.uk/id/local-authority-district/23UB,Cheltenham Borough Council,463913,511638,COMENSURA LIMITED,C-C23100-0115,Refuse Collection-Temporary Agency Staff,22 December 2011,205.94
http://statistics.data.gov.uk/id/local-authority-district/23UB,Cheltenham Borough Council,463913,511638,COMENSURA LIMITED,C-C23100-0115,Refuse Collection-Temporary Agency Staff,22 December 2011,114.88
http://statistics.data.gov.uk/id/local-authority-district/23UB,Cheltenham Borough Council,463913,511638,COMENSURA LIMITED,C-C23100-0115,Refuse Collection-Temporary Agency Staff,22 December 2011,197.25
http://statistics.data.gov.uk/id/local-authority-district/23UB,Cheltenham Borough Council,463913,511638,COMENSURA LIMITED,C-C23100-0115,Refuse Collection-Temporary Agency Staff,22 December 2011,60.69
http://statistics.data.gov.uk/id/local-authority-district/23UB,Cheltenham Borough Council,463913,511638,COMENSURA LIMITED,C-C23100-0115,Refuse Collection-Temporary Agency Staff,22 December 2011,52.02
http://statistics.data.gov.uk/id/local-authority-district/23UB,Cheltenham Borough Council,463913,511638,COMENSURA LIMITED,C-C23100-0115,Refuse Collection-Temporary Agency Staff,22 December 2011,60.69
http://statistics.data.gov.uk/id/local-authority-district/23UB,Cheltenham Borough Council,463913,511638,COMENSURA LIMITED,C-C23100-0115,Refuse Collection-Temporary Agency Staff,22 December 2011,65.02
http://statistics.data.gov.uk/id/local-authority-district/23UB,Cheltenham Borough Council,463913,511638,COMENSURA LIMITED,C-C23100-0115,Refuse Collection-Temporary Agency Staff,22 December 2011,65.02
http://statistics.data.gov.uk/id/local-authority-district/23UB,Cheltenham Borough Council,463913,511638,COMENSURA LIMITED,C-C23100-0115,Refuse Collection-Temporary Agency Staff,22 December 2011,231.92
http://statistics.data.gov.uk/id/local-authority-district/23UB,Cheltenham Borough Council,463913,511638,COMENSURA LIMITED,C-C23100-0115,Refuse Collection-Temporary Agency Staff,22 December 2011,491.26
http://statistics.data.gov.uk/id/local-authority-district/23UB,Cheltenham Borough Council,463913,511638,COMENSURA LIMITED,C-C23100-0115,Refuse Collection-Temporary Agency Staff,22 December 2011,97.04
http://statistics.data.gov.uk/id/local-authority-district/23UB,Cheltenham Borough Council,463913,511638,COMENSURA LIMITED,C-C23100-0115,Refuse Collection-Temporary Agency Staff,22 December 2011,52.02
http://statistics.data.gov.uk/id/local-authority-district/23UB,Cheltenham Borough Council,463913,511638,COMENSURA LIMITED,C-C23100-0115,Refuse Collection-Temporary Agency Staff,22 December 2011,26.01
http://statistics.data.gov.uk/id/local-authority-district/23UB,Cheltenham Borough Council,463913,511638,COMENSURA LIMITED,C-C23100-0115,Refuse Collection-Temporary Agency Staff,22 December 2011,320.78
http://statistics.data.gov.uk/id/local-authority-district/23UB,Cheltenham Borough Council,463913,511638,COMENSURA LIMITED,C-C23100-0115,Refuse Collection-Temporary Agency Staff,22 December 2011,255.75
http://statistics.data.gov.uk/id/local-authority-district/23UB,Cheltenham Borough Council,463913,511638,COMENSURA LIMITED,C-C23100-0115,Refuse Collection-Temporary Agency Staff,22 December 2011,255.75
http://statistics.data.gov.uk/id/local-authority-district/23UB,Cheltenham Borough Council,463913,511638,COMENSURA LIMITED,C-C23100-0115,Refuse Collection-Temporary Agency Staff,22 December 2011,255.75
http://statistics.data.gov.uk/id/local-authority-district/23UB,Cheltenham Borough Council,463913,511638,COMENSURA LIMITED,C-C23100-0115,Refuse Collection-Temporary Agency Staff,22 December 2011,214.59
http://statistics.data.gov.uk/id/local-authority-district/23UB,Cheltenham Borough Council,463913,511638,COMENSURA LIMITED,C-C23100-0115,Refuse Collection-Temporary Agency Staff,22 December 2011,255.75
http://statistics.data.gov.uk/id/local-authority-district/23UB,Cheltenham Borough Council,463913,511638,COMENSURA LIMITED,C-C23100-0115,Refuse Collection-Temporary Agency Staff,22 December 2011,260.08
http://statistics.data.gov.uk/id/local-authority-district/23UB,Cheltenham Borough Council,463912,511848,COMENSURA LIMITED,C-C23100-0115,Refuse Collection-Temporary Agency Staff,22 December 2011,320.77
http://statistics.data.gov.uk/id/local-authority-district/23UB,Cheltenham Borough Council,463912,511848,COMENSURA LIMITED,C-C23100-0115,Refuse Collection-Temporary Agency Staff,22 December 2011,320.77
http://statistics.data.gov.uk/id/local-authority-district/23UB,Cheltenham Borough Council,463912,511848,COMENSURA LIMITED,C-C23100-0115,Refuse Collection-Temporary Agency Staff,22 December 2011,320.77
http://statistics.data.gov.uk/id/local-authority-district/23UB,Cheltenham Borough Council,463912,511848,COMENSURA LIMITED,C-C23100-0115,Refuse Collection-Temporary Agency Staff,22 December 2011,149.55
http://statistics.data.gov.uk/id/local-authority-district/23UB,Cheltenham Borough Council,463912,511848,COMENSURA LIMITED,C-C23100-0115,Refuse Collection-Temporary Agency Staff,22 December 2011,65.02
http://statistics.data.gov.uk/id/local-authority-district/23UB,Cheltenham Borough Council,463912,511848,COMENSURA LIMITED,C-C23100-0115,Refuse Collection-Temporary Agency Staff,22 December 2011,216.78
http://statistics.data.gov.uk/id/local-authority-district/23UB,Cheltenham Borough Council,463912,511848,COMENSURA LIMITED,C-C23100-0115,Refuse Collection-Temporary Agency Staff,22 December 2011,130.04
http://statistics.data.gov.uk/id/local-authority-district/23UB,Cheltenham Borough Council,463912,511848,COMENSURA LIMITED,C-C23100-0115,Refuse Collection-Temporary Agency Staff,22 December 2011,273.10
http://statistics.data.gov.uk/id/local-authority-district/23UB,Cheltenham Borough Council,463911,511443,COMENSURA LIMITED,C-C23100-0115,Refuse Collection-Temporary Agency Staff,22 December 2011,218.93
http://statistics.data.gov.uk/id/local-authority-district/23UB,Cheltenham Borough Council,463911,511443,COMENSURA LIMITED,C-C23100-0115,Refuse Collection-Temporary Agency Staff,22 December 2011,216.74
http://statistics.data.gov.uk/id/local-authority-district/23UB,Cheltenham Borough Council,463911,511443,COMENSURA LIMITED,C-C23100-0115,Refuse Collection-Temporary Agency Staff,22 December 2011,195.06
http://statistics.data.gov.uk/id/local-authority-district/23UB,Cheltenham Borough Council,463911,511443,COMENSURA LIMITED,C-C23100-0115,Refuse Collection-Temporary Agency Staff,22 December 2011,145.60
http://statistics.data.gov.uk/id/local-authority-district/23UB,Cheltenham Borough Council,463911,511443,COMENSURA LIMITED,C-C23125-0115,Recyl Bring Schms-Temporary Agency Staff,22 December 2011,200.14
http://statistics.data.gov.uk/id/local-authority-district/23UB,Cheltenham Borough Council,463913,511638,COMENSURA LIMITED,C-C23125-0115,Recyl Bring Schms-Temporary Agency Staff,22 December 2011,388.16
http://statistics.data.gov.uk/id/local-authority-district/23UB,Cheltenham Borough Council,463912,511848,COMENSURA LIMITED,C-C23125-0115,Recyl Bring Schms-Temporary Agency Staff,22 December 2011,294.15
http://statistics.data.gov.uk/id/local-authority-district/23UB,Cheltenham Borough Council,463911,511443,COMENSURA LIMITED,C-C23160-0115,Env Maint Div-Temporary Agency Staff,22 December 2011,280.56
http://statistics.data.gov.uk/id/local-authority-district/23UB,Cheltenham Borough Council,463911,511443,COMENSURA LIMITED,C-C23180-0115,Rcycl Coltn Schms-Temporary Agency Staff,22 December 2011,188.50
http://statistics.data.gov.uk/id/local-authority-district/23UB,Cheltenham Borough Council,463911,511443,COMENSURA LIMITED,C-C23180-0115,Rcycl Coltn Schms-Temporary Agency Staff,22 December 2011,119.22
http://statistics.data.gov.uk/id/local-authority-district/23UB,Cheltenham Borough Council,463911,511443,COMENSURA LIMITED,C-C23180-0115,Rcycl Coltn Schms-Temporary Agency Staff,22 December 2011,138.72
http://statistics.data.gov.uk/id/local-authority-district/23UB,Cheltenham Borough Council,463911,511443,COMENSURA LIMITED,C-C23180-0115,Rcycl Coltn Schms-Temporary Agency Staff,22 December 2011,206.21
http://statistics.data.gov.uk/id/local-authority-district/23UB,Cheltenham Borough Council,463911,511443,COMENSURA LIMITED,C-C23180-0115,Rcycl Coltn Schms-Temporary Agency Staff,22 December 2011,103.10
http://statistics.data.gov.uk/id/local-authority-district/23UB,Cheltenham Borough Council,463911,511443,COMENSURA LIMITED,C-C23180-0115,Rcycl Coltn Schms-Temporary Agency Staff,22 December 2011,223.25
http://statistics.data.gov.uk/id/local-authority-district/23UB,Cheltenham Borough Council,463911,511443,COMENSURA LIMITED,C-C23180-0115,Rcycl Coltn Schms-Temporary Agency Staff,22 December 2011,206.21
http://statistics.data.gov.uk/id/local-authority-district/23UB,Cheltenham Borough Council,463911,511443,COMENSURA LIMITED,C-C23180-0115,Rcycl Coltn Schms-Temporary Agency Staff,22 December 2011,186.40
http://statistics.data.gov.uk/id/local-authority-district/23UB,Cheltenham Borough Council,463911,511443,COMENSURA LIMITED,C-C23180-0115,Rcycl Coltn Schms-Temporary Agency Staff,22 December 2011,127.88
http://statistics.data.gov.uk/id/local-authority-district/23UB,Cheltenham Borough Council,463911,511443,COMENSURA LIMITED,C-C23180-0115,Rcycl Coltn Schms-Temporary Agency Staff,22 December 2011,299.16
http://statistics.data.gov.uk/id/local-authority-district/23UB,Cheltenham Borough Council,463911,511443,COMENSURA LIMITED,C-C23180-0115,Rcycl Coltn Schms-Temporary Agency Staff,22 December 2011,60.69
http://statistics.data.gov.uk/id/local-authority-district/23UB,Cheltenham Borough Council,463911,511443,COMENSURA LIMITED,C-C23180-0115,Rcycl Coltn Schms-Temporary Agency Staff,22 December 2011,436.72
http://statistics.data.gov.uk/id/local-authority-district/23UB,Cheltenham Borough Council,463911,511443,COMENSURA LIMITED,C-C23180-0115,Rcycl Coltn Schms-Temporary Agency Staff,22 December 2011,247.09
http://statistics.data.gov.uk/id/local-authority-district/23UB,Cheltenham Borough Council,463911,511443,COMENSURA LIMITED,C-C23180-0115,Rcycl Coltn Schms-Temporary Agency Staff,22 December 2011,281.79
http://statistics.data.gov.uk/id/local-authority-district/23UB,Cheltenham Borough Council,463911,511443,COMENSURA LIMITED,C-C23180-0115,Rcycl Coltn Schms-Temporary Agency Staff,22 December 2011,244.94
http://statistics.data.gov.uk/id/local-authority-district/23UB,Cheltenham Borough Council,463911,511443,COMENSURA LIMITED,C-C23180-0115,Rcycl Coltn Schms-Temporary Agency Staff,22 December 2011,73.70
http://statistics.data.gov.uk/id/local-authority-district/23UB,Cheltenham Borough Council,463911,511443,COMENSURA LIMITED,C-C23180-0115,Rcycl Coltn Schms-Temporary Agency Staff,22 December 2011,97.04
http://statistics.data.gov.uk/id/local-authority-district/23UB,Cheltenham Borough Council,463911,511443,COMENSURA LIMITED,C-C23180-0115,Rcycl Coltn Schms-Temporary Agency Staff,22 December 2011,52.02
http://statistics.data.gov.uk/id/local-authority-district/23UB,Cheltenham Borough Council,463911,511443,COMENSURA LIMITED,C-C23180-0115,Rcycl Coltn Schms-Temporary Agency Staff,22 December 2011,138.72
http://statistics.data.gov.uk/id/local-authority-district/23UB,Cheltenham Borough Council,463911,511443,COMENSURA LIMITED,C-C23180-0115,Rcycl Coltn Schms-Temporary Agency Staff,22 December 2011,212.27
http://statistics.data.gov.uk/id/local-authority-district/23UB,Cheltenham Borough Council,463911,511443,COMENSURA LIMITED,C-C23180-0115,Rcycl Coltn Schms-Temporary Agency Staff,22 December 2011,58.52
http://statistics.data.gov.uk/id/local-authority-district/23UB,Cheltenham Borough Council,463911,511443,COMENSURA LIMITED,C-C23180-0115,Rcycl Coltn Schms-Temporary Agency Staff,22 December 2011,73.70
http://statistics.data.gov.uk/id/local-authority-district/23UB,Cheltenham Borough Council,463911,511443,COMENSURA LIMITED,C-C23180-0115,Rcycl Coltn Schms-Temporary Agency Staff,22 December 2011,597.44
http://statistics.data.gov.uk/id/local-authority-district/23UB,Cheltenham Borough Council,463911,511443,COMENSURA LIMITED,C-C23180-0115,Rcycl Coltn Schms-Temporary Agency Staff,22 December 2011,249.26
http://statistics.data.gov.uk/id/local-authority-district/23UB,Cheltenham Borough Council,463911,511443,COMENSURA LIMITED,C-C23180-0115,Rcycl Coltn Schms-Temporary Agency Staff,22 December 2011,283.96
http://statistics.data.gov.uk/id/local-authority-district/23UB,Cheltenham Borough Council,463911,511443,COMENSURA LIMITED,C-C23180-0115,Rcycl Coltn Schms-Temporary Agency Staff,22 December 2011,224.40
http://statistics.data.gov.uk/id/local-authority-district/23UB,Cheltenham Borough Council,463911,511443,COMENSURA LIMITED,C-C23180-0115,Rcycl Coltn Schms-Temporary Agency Staff,22 December 2011,65.02
http://statistics.data.gov.uk/id/local-authority-district/23UB,Cheltenham Borough Council,463911,511443,COMENSURA LIMITED,C-C23180-0115,Rcycl Coltn Schms-Temporary Agency Staff,22 December 2011,216.75
http://statistics.data.gov.uk/id/local-authority-district/23UB,Cheltenham Borough Council,463911,511443,COMENSURA LIMITED,C-C23180-0115,Rcycl Coltn Schms-Temporary Agency Staff,22 December 2011,303.45
http://statistics.data.gov.uk/id/local-authority-district/23UB,Cheltenham Borough Council,463911,511443,COMENSURA LIMITED,C-C23180-0115,Rcycl Coltn Schms-Temporary Agency Staff,22 December 2011,253.63
http://statistics.data.gov.uk/id/local-authority-district/23UB,Cheltenham Borough Council,463912,511848,COMENSURA LIMITED,C-C23180-0115,Rcycl Coltn Schms-Temporary Agency Staff,22 December 2011,392.31
http://statistics.data.gov.uk/id/local-authority-district/23UB,Cheltenham Borough Council,463912,511848,COMENSURA LIMITED,C-C23180-0115,Rcycl Coltn Schms-Temporary Agency Staff,22 December 2011,392.31
http://statistics.data.gov.uk/id/local-authority-district/23UB,Cheltenham Borough Council,463912,511848,COMENSURA LIMITED,C-C23180-0115,Rcycl Coltn Schms-Temporary Agency Staff,22 December 2011,112.70
http://statistics.data.gov.uk/id/local-authority-district/23UB,Cheltenham Borough Council,463912,511848,COMENSURA LIMITED,C-C23180-0115,Rcycl Coltn Schms-Temporary Agency Staff,22 December 2011,97.04
http://statistics.data.gov.uk/id/local-authority-district/23UB,Cheltenham Borough Council,463912,511848,COMENSURA LIMITED,C-C23180-0115,Rcycl Coltn Schms-Temporary Agency Staff,22 December 2011,190.73
http://statistics.data.gov.uk/id/local-authority-district/23UB,Cheltenham Borough Council,463912,511848,COMENSURA LIMITED,C-C23180-0115,Rcycl Coltn Schms-Temporary Agency Staff,22 December 2011,527.66
http://statistics.data.gov.uk/id/local-authority-district/23UB,Cheltenham Borough Council,463912,511848,COMENSURA LIMITED,C-C23180-0115,Rcycl Coltn Schms-Temporary Agency Staff,22 December 2011,536.74
http://statistics.data.gov.uk/id/local-authority-district/23UB,Cheltenham Borough Council,463911,511443,COMENSURA LIMITED,C-C23180-0115,Rcycl Coltn Schms-Temporary Agency Staff,22 December 2011,192.91
http://statistics.data.gov.uk/id/local-authority-district/23UB,Cheltenham Borough Council,463911,511443,COMENSURA LIMITED,C-C23180-0115,Rcycl Coltn Schms-Temporary Agency Staff,22 December 2011,185.67
http://statistics.data.gov.uk/id/local-authority-district/23UB,Cheltenham Borough Council,463912,511848,COMENSURA LIMITED,C-C23180-0115,Rcycl Coltn Schms-Temporary Agency Staff,22 December 2011,104.04
http://statistics.data.gov.uk/id/local-authority-district/23UB,Cheltenham Borough Council,463912,511848,COMENSURA LIMITED,C-C23180-0115,Rcycl Coltn Schms-Temporary Agency Staff,22 December 2011,214.59
http://statistics.data.gov.uk/id/local-authority-district/23UB,Cheltenham Borough Council,463912,511848,COMENSURA LIMITED,C-C23180-0115,Rcycl Coltn Schms-Temporary Agency Staff,22 December 2011,340.29
http://statistics.data.gov.uk/id/local-authority-district/23UB,Cheltenham Borough Council,463912,511848,COMENSURA LIMITED,C-C23180-0115,Rcycl Coltn Schms-Temporary Agency Staff,22 December 2011,503.39
http://statistics.data.gov.uk/id/local-authority-district/23UB,Cheltenham Borough Council,463912,511848,COMENSURA LIMITED,C-C23180-0115,Rcycl Coltn Schms-Temporary Agency Staff,22 December 2011,188.57
http://statistics.data.gov.uk/id/local-authority-district/23UB,Cheltenham Borough Council,463912,511848,COMENSURA LIMITED,C-C23180-0115,Rcycl Coltn Schms-Temporary Agency Staff,22 December 2011,173.40
http://statistics.data.gov.uk/id/local-authority-district/23UB,Cheltenham Borough Council,463912,511848,COMENSURA LIMITED,C-C23180-0115,Rcycl Coltn Schms-Temporary Agency Staff,22 December 2011,249.27
http://statistics.data.gov.uk/id/local-authority-district/23UB,Cheltenham Borough Council,463912,511848,COMENSURA LIMITED,C-C23180-0115,Rcycl Coltn Schms-Temporary Agency Staff,22 December 2011,73.70
http://statistics.data.gov.uk/id/local-authority-district/23UB,Cheltenham Borough Council,463912,511848,COMENSURA LIMITED,C-C23180-0115,Rcycl Coltn Schms-Temporary Agency Staff,22 December 2011,268.76
http://statistics.data.gov.uk/id/local-authority-district/23UB,Cheltenham Borough Council,463913,511638,COMENSURA LIMITED,C-C23180-0115,Rcycl Coltn Schms-Temporary Agency Staff,22 December 2011,286.10
http://statistics.data.gov.uk/id/local-authority-district/23UB,Cheltenham Borough Council,463913,511638,COMENSURA LIMITED,C-C23180-0115,Rcycl Coltn Schms-Temporary Agency Staff,22 December 2011,266.60
http://statistics.data.gov.uk/id/local-authority-district/23UB,Cheltenham Borough Council,463913,511638,COMENSURA LIMITED,C-C23180-0115,Rcycl Coltn Schms-Temporary Agency Staff,22 December 2011,497.33
http://statistics.data.gov.uk/id/local-authority-district/23UB,Cheltenham Borough Council,463913,511638,COMENSURA LIMITED,C-C23180-0115,Rcycl Coltn Schms-Temporary Agency Staff,22 December 2011,182.07
http://statistics.data.gov.uk/id/local-authority-district/23UB,Cheltenham Borough Council,463913,511638,COMENSURA LIMITED,C-C23180-0115,Rcycl Coltn Schms-Temporary Agency Staff,22 December 2011,216.76
http://statistics.data.gov.uk/id/local-authority-district/23UB,Cheltenham Borough Council,463913,511638,COMENSURA LIMITED,C-C23180-0115,Rcycl Coltn Schms-Temporary Agency Staff,22 December 2011,485.20
http://statistics.data.gov.uk/id/local-authority-district/23UB,Cheltenham Borough Council,463913,511638,COMENSURA LIMITED,C-C23180-0115,Rcycl Coltn Schms-Temporary Agency Staff,22 December 2011,485.20
http://statistics.data.gov.uk/id/local-authority-district/23UB,Cheltenham Borough Council,463913,511638,COMENSURA LIMITED,C-C23180-0115,Rcycl Coltn Schms-Temporary Agency Staff,22 December 2011,130.04
http://statistics.data.gov.uk/id/local-authority-district/23UB,Cheltenham Borough Council,463913,511638,COMENSURA LIMITED,C-C23180-0115,Rcycl Coltn Schms-Temporary Agency Staff,22 December 2011,316.44
http://statistics.data.gov.uk/id/local-authority-district/23UB,Cheltenham Borough Council,463913,511638,COMENSURA LIMITED,C-C23180-0115,Rcycl Coltn Schms-Temporary Agency Staff,22 December 2011,244.93
http://statistics.data.gov.uk/id/local-authority-district/23UB,Cheltenham Borough Council,463913,511638,COMENSURA LIMITED,C-C23180-0115,Rcycl Coltn Schms-Temporary Agency Staff,22 December 2011,216.75
http://statistics.data.gov.uk/id/local-authority-district/23UB,Cheltenham Borough Council,463913,511638,COMENSURA LIMITED,C-C23180-0115,Rcycl Coltn Schms-Temporary Agency Staff,22 December 2011,210.24
http://statistics.data.gov.uk/id/local-authority-district/23UB,Cheltenham Borough Council,463913,511638,COMENSURA LIMITED,C-C23180-0115,Rcycl Coltn Schms-Temporary Agency Staff,22 December 2011,97.04
http://statistics.data.gov.uk/id/local-authority-district/23UB,Cheltenham Borough Council,463913,511638,COMENSURA LIMITED,C-C23180-0115,Rcycl Coltn Schms-Temporary Agency Staff,22 December 2011,291.12
http://statistics.data.gov.uk/id/local-authority-district/23UB,Cheltenham Borough Council,463913,511638,COMENSURA LIMITED,C-C23180-0115,Rcycl Coltn Schms-Temporary Agency Staff,22 December 2011,112.71
http://statistics.data.gov.uk/id/local-authority-district/23UB,Cheltenham Borough Council,463913,511638,COMENSURA LIMITED,C-C23180-0115,Rcycl Coltn Schms-Temporary Agency Staff,22 December 2011,65.02
http://statistics.data.gov.uk/id/local-authority-district/23UB,Cheltenham Borough Council,463913,511638,COMENSURA LIMITED,C-C23180-0115,Rcycl Coltn Schms-Temporary Agency Staff,22 December 2011,266.60
http://statistics.data.gov.uk/id/local-authority-district/23UB,Cheltenham Borough Council,463913,511638,COMENSURA LIMITED,C-C23180-0115,Rcycl Coltn Schms-Temporary Agency Staff,22 December 2011,388.16
http://statistics.data.gov.uk/id/local-authority-district/23UB,Cheltenham Borough Council,463913,511638,COMENSURA LIMITED,C-C23180-0115,Rcycl Coltn Schms-Temporary Agency Staff,22 December 2011,281.77
http://statistics.data.gov.uk/id/local-authority-district/23UB,Cheltenham Borough Council,463913,511638,COMENSURA LIMITED,C-C23180-0115,Rcycl Coltn Schms-Temporary Agency Staff,22 December 2011,58.52
http://statistics.data.gov.uk/id/local-authority-district/23UB,Cheltenham Borough Council,463913,511638,COMENSURA LIMITED,C-C23180-0115,Rcycl Coltn Schms-Temporary Agency Staff,22 December 2011,205.91
http://statistics.data.gov.uk/id/local-authority-district/23UB,Cheltenham Borough Council,463913,511638,COMENSURA LIMITED,C-C23180-0115,Rcycl Coltn Schms-Temporary Agency Staff,22 December 2011,270.95
http://statistics.data.gov.uk/id/local-authority-district/23UB,Cheltenham Borough Council,463913,511638,COMENSURA LIMITED,C-C23180-0115,Rcycl Coltn Schms-Temporary Agency Staff,22 December 2011,286.10
http://statistics.data.gov.uk/id/local-authority-district/23UB,Cheltenham Borough Council,463913,511638,COMENSURA LIMITED,C-C23180-0115,Rcycl Coltn Schms-Temporary Agency Staff,22 December 2011,210.24
http://statistics.data.gov.uk/id/local-authority-district/23UB,Cheltenham Borough Council,463913,511638,COMENSURA LIMITED,C-C23180-0115,Rcycl Coltn Schms-Temporary Agency Staff,22 December 2011,58.52
http://statistics.data.gov.uk/id/local-authority-district/23UB,Cheltenham Borough Council,463912,511848,COMENSURA LIMITED,C-C23180-0115,Rcycl Coltn Schms-Temporary Agency Staff,22 December 2011,351.13
http://statistics.data.gov.uk/id/local-authority-district/23UB,Cheltenham Borough Council,463912,511848,COMENSURA LIMITED,C-C23180-0115,Rcycl Coltn Schms-Temporary Agency Staff,22 December 2011,309.31
http://statistics.data.gov.uk/id/local-authority-district/23UB,Cheltenham Borough Council,463912,511848,COMENSURA LIMITED,C-C23180-0115,Rcycl Coltn Schms-Temporary Agency Staff,22 December 2011,127.88
http://statistics.data.gov.uk/id/local-authority-district/23UB,Cheltenham Borough Council,463912,511848,COMENSURA LIMITED,C-C23180-0115,Rcycl Coltn Schms-Temporary Agency Staff,22 December 2011,485.20
http://statistics.data.gov.uk/id/local-authority-district/23UB,Cheltenham Borough Council,463912,511848,COMENSURA LIMITED,C-C23180-0115,Rcycl Coltn Schms-Temporary Agency Staff,22 December 2011,73.70
http://statistics.data.gov.uk/id/local-authority-district/23UB,Cheltenham Borough Council,463912,511848,COMENSURA LIMITED,C-C23180-0115,Rcycl Coltn Schms-Temporary Agency Staff,22 December 2011,69.36
http://statistics.data.gov.uk/id/local-authority-district/23UB,Cheltenham Borough Council,463912,511848,COMENSURA LIMITED,C-C23180-0115,Rcycl Coltn Schms-Temporary Agency Staff,22 December 2011,351.13
http://statistics.data.gov.uk/id/local-authority-district/23UB,Cheltenham Borough Council,463912,511848,COMENSURA LIMITED,C-C23180-0115,Rcycl Coltn Schms-Temporary Agency Staff,22 December 2011,60.69
http://statistics.data.gov.uk/id/local-authority-district/23UB,Cheltenham Borough Council,463912,511848,COMENSURA LIMITED,C-C23180-0115,Rcycl Coltn Schms-Temporary Agency Staff,22 December 2011,322.96
http://statistics.data.gov.uk/id/local-authority-district/23UB,Cheltenham Borough Council,463912,511848,COMENSURA LIMITED,C-C23180-0115,Rcycl Coltn Schms-Temporary Agency Staff,22 December 2011,138.72
http://statistics.data.gov.uk/id/local-authority-district/23UB,Cheltenham Borough Council,463912,511848,COMENSURA LIMITED,C-C23180-0115,Rcycl Coltn Schms-Temporary Agency Staff,22 December 2011,251.44
http://statistics.data.gov.uk/id/local-authority-district/23UB,Cheltenham Borough Council,463912,511848,COMENSURA LIMITED,C-C23180-0115,Rcycl Coltn Schms-Temporary Agency Staff,22 December 2011,301.28
http://statistics.data.gov.uk/id/local-authority-district/23UB,Cheltenham Borough Council,463912,511848,COMENSURA LIMITED,C-C23180-0115,Rcycl Coltn Schms-Temporary Agency Staff,22 December 2011,264.44
http://statistics.data.gov.uk/id/local-authority-district/23UB,Cheltenham Borough Council,463912,511848,COMENSURA LIMITED,C-C23180-0115,Rcycl Coltn Schms-Temporary Agency Staff,22 December 2011,100.07
http://statistics.data.gov.uk/id/local-authority-district/23UB,Cheltenham Borough Council,463911,511443,COMENSURA LIMITED,C-C23180-0115,Rcycl Coltn Schms-Temporary Agency Staff,22 December 2011,273.10
http://statistics.data.gov.uk/id/local-authority-district/23UB,Cheltenham Borough Council,463911,511443,COMENSURA LIMITED,C-C23180-0115,Rcycl Coltn Schms-Temporary Agency Staff,22 December 2011,139.50
http://statistics.data.gov.uk/id/local-authority-district/23UB,Cheltenham Borough Council,463911,511443,COMENSURA LIMITED,C-C23180-0115,Rcycl Coltn Schms-Temporary Agency Staff,22 December 2011,106.14
http://statistics.data.gov.uk/id/local-authority-district/23UB,Cheltenham Borough Council,463911,511443,COMENSURA LIMITED,C-C23180-0115,Rcycl Coltn Schms-Temporary Agency Staff,22 December 2011,324.48
http://statistics.data.gov.uk/id/local-authority-district/23UB,Cheltenham Borough Council,463911,511443,COMENSURA LIMITED,C-C23190-0115,Garden Collectn-Temporary Agency Staff,22 December 2011,160.40
http://statistics.data.gov.uk/id/local-authority-district/23UB,Cheltenham Borough Council,463912,511848,COMENSURA LIMITED,C-C23190-0115,Garden Collectn-Temporary Agency Staff,22 December 2011,132.22
http://statistics.data.gov.uk/id/local-authority-district/23UB,Cheltenham Borough Council,463913,511638,COMENSURA LIMITED,C-C23190-0115,Garden Collectn-Temporary Agency Staff,22 December 2011,114.88
http://statistics.data.gov.uk/id/local-authority-district/23UB,Cheltenham Borough Council,463913,511638,COMENSURA LIMITED,C-C23190-0115,Garden Collectn-Temporary Agency Staff,22 December 2011,80.20
http://statistics.data.gov.uk/id/local-authority-district/23UB,Cheltenham Borough Council,463913,511638,COMENSURA LIMITED,C-C23190-0115,Garden Collectn-Temporary Agency Staff,22 December 2011,88.87
http://statistics.data.gov.uk/id/local-authority-district/23UB,Cheltenham Borough Council,463912,511848,COMENSURA LIMITED,C-C23190-0115,Garden Collectn-Temporary Agency Staff,22 December 2011,205.93
http://statistics.data.gov.uk/id/local-authority-district/23UB,Cheltenham Borough Council,463911,511443,COMENSURA LIMITED,C-C23190-0115,Garden Collectn-Temporary Agency Staff,22 December 2011,91.03
http://statistics.data.gov.uk/id/local-authority-district/23UB,Cheltenham Borough Council,463912,511848,COMENSURA LIMITED,C-C23190-0115,Garden Collectn-Temporary Agency Staff,22 December 2011,97.04
http://statistics.data.gov.uk/id/local-authority-district/23UB,Cheltenham Borough Council,463911,511443,COMENSURA LIMITED,C-D13100-0115,Muni Off Blgs-Temporary Agency Staff,22 December 2011,43.36
http://statistics.data.gov.uk/id/local-authority-district/23UB,Cheltenham Borough Council,463911,511443,COMENSURA LIMITED,C-D13100-0115,Muni Off Blgs-Temporary Agency Staff,22 December 2011,91.04
http://statistics.data.gov.uk/id/local-authority-district/23UB,Cheltenham Borough Council,463911,511443,COMENSURA LIMITED,C-D13100-0115,Muni Off Blgs-Temporary Agency Staff,22 December 2011,65.04
http://statistics.data.gov.uk/id/local-authority-district/23UB,Cheltenham Borough Council,463912,511848,COMENSURA LIMITED,C-D13100-0115,Muni Off Blgs-Temporary Agency Staff,22 December 2011,108.40
http://statistics.data.gov.uk/id/local-authority-district/23UB,Cheltenham Borough Council,463913,511638,COMENSURA LIMITED,C-D13100-0115,Muni Off Blgs-Temporary Agency Staff,22 December 2011,108.40
http://statistics.data.gov.uk/id/local-authority-district/23UB,Cheltenham Borough Council,463913,511638,COMENSURA LIMITED,C-D13100-0115,Muni Off Blgs-Temporary Agency Staff,22 December 2011,17.34
http://statistics.data.gov.uk/id/local-authority-district/23UB,Cheltenham Borough Council,463913,511638,COMENSURA LIMITED,C-D13100-0115,Muni Off Blgs-Temporary Agency Staff,22 December 2011,86.70
http://statistics.data.gov.uk/id/local-authority-district/23UB,Cheltenham Borough Council,463912,511848,COMENSURA LIMITED,C-D13100-0115,Muni Off Blgs-Temporary Agency Staff,22 December 2011,86.70
http://statistics.data.gov.uk/id/local-authority-district/23UB,Cheltenham Borough Council,463911,511443,COMENSURA LIMITED,C-E63100-0115,Cemetery & Crem-Temporary Agency Staff,22 December 2011,320.77
http://statistics.data.gov.uk/id/local-authority-district/23UB,Cheltenham Borough Council,463911,511443,COMENSURA LIMITED,C-E63100-0115,Cemetery & Crem-Temporary Agency Staff,22 December 2011,320.77
http://statistics.data.gov.uk/id/local-authority-district/23UB,Cheltenham Borough Council,463913,511638,COMENSURA LIMITED,C-E63100-0115,Cemetery & Crem-Temporary Agency Staff,22 December 2011,320.77
http://statistics.data.gov.uk/id/local-authority-district/23UB,Cheltenham Borough Council,463913,511638,COMENSURA LIMITED,C-E63100-0115,Cemetery & Crem-Temporary Agency Staff,22 December 2011,260.08
http://statistics.data.gov.uk/id/local-authority-district/23UB,Cheltenham Borough Council,462851,SIT100301,COMMERCIAL LIMITED,C-IT0062-3501,Working Flexibl-Hire of outside services,09 December 2011,725.00
http://statistics.data.gov.uk/id/local-authority-district/23UB,Cheltenham Borough Council,462208,11281,COMPLETE CLIMATE SOLUTIONS LIMITED,C-C22120-1811,Sports & Open S-RM-Plan.& Prev.Mech.Ctrc,02 December 2011,47.07
http://statistics.data.gov.uk/id/local-authority-district/23UB,Cheltenham Borough Council,462249,11277,COMPLETE CLIMATE SOLUTIONS LIMITED,C-D13100-1123,Muni Off Blgs-M&E Planned & Preventative,02 December 2011,"2,700.00"
http://statistics.data.gov.uk/id/local-authority-district/23UB,Cheltenham Borough Council,462250,11284,COMPLETE CLIMATE SOLUTIONS LIMITED,C-D13100-1123,Muni Off Blgs-M&E Planned & Preventative,02 December 2011,"2,700.00"
http://statistics.data.gov.uk/id/local-authority-district/23UB,Cheltenham Borough Council,462212,11287,COMPLETE CLIMATE SOLUTIONS LIMITED,C-D13100-1810,Muni Off Blgs-RM- Air conditioning,02 December 2011,20.49
http://statistics.data.gov.uk/id/local-authority-district/23UB,Cheltenham Borough Council,462206,11279,COMPLETE CLIMATE SOLUTIONS LIMITED,C-D13100-1811,Muni Off Blgs-RM-Plan.& Prev.Mech.Ctrct,02 December 2011,192.80
http://statistics.data.gov.uk/id/local-authority-district/23UB,Cheltenham Borough Council,462209,11282,COMPLETE CLIMATE SOLUTIONS LIMITED,C-E63100-1812,Cemetery & Crem-Boiler M&E repairs,02 December 2011,131.04
http://statistics.data.gov.uk/id/local-authority-district/23UB,Cheltenham Borough Council,462213,11289,COMPLETE CLIMATE SOLUTIONS LIMITED,C-L11500-1801,Rec Facilities-RM-Electrical repairs,02 December 2011,388.06
http://statistics.data.gov.uk/id/local-authority-district/23UB,Cheltenham Borough Council,462207,11280,COMPLETE CLIMATE SOLUTIONS LIMITED,C-L11500-1809,Rec Facilities-RM-sanitary works,02 December 2011,233.55
http://statistics.data.gov.uk/id/local-authority-district/23UB,Cheltenham Borough Council,462205,11278,COMPLETE CLIMATE SOLUTIONS LIMITED,C-L21100-1811,Town Hall-RM-Plan.& Prev.Mech.Ctrct,02 December 2011,82.33
http://statistics.data.gov.uk/id/local-authority-district/23UB,Cheltenham Borough Council,462211,11286,COMPLETE CLIMATE SOLUTIONS LIMITED,C-L21200-1812,Pump Room-Boiler M&E repairs,02 December 2011,28.25
http://statistics.data.gov.uk/id/local-authority-district/23UB,Cheltenham Borough Council,462210,11283,COMPLETE CLIMATE SOLUTIONS LIMITED,C-L41100-1812,AG & M-Boiler M&E repairs,02 December 2011,91.87
http://statistics.data.gov.uk/id/local-authority-district/23UB,Cheltenham Borough Council,462212,11287,COMPLETE CLIMATE SOLUTIONS LIMITED,C-N11250-9227,Excluded,02 December 2011,-2.93
http://statistics.data.gov.uk/id/local-authority-district/23UB,Cheltenham Borough Council,462250,11284,COMPLETE CLIMATE SOLUTIONS LIMITED,C-N11250-9227,Excluded,02 December 2011,-540.00
http://statistics.data.gov.uk/id/local-authority-district/23UB,Cheltenham Borough Council,462249,11277,COMPLETE CLIMATE SOLUTIONS LIMITED,C-N11250-9227,Excluded,02 December 2011,-540.00
http://statistics.data.gov.uk/id/local-authority-district/23UB,Cheltenham Borough Council,462213,11289,COMPLETE CLIMATE SOLUTIONS LIMITED,C-N11250-9227,Excluded,02 December 2011,-12.68
http://statistics.data.gov.uk/id/local-authority-district/23UB,Cheltenham Borough Council,462211,11286,COMPLETE CLIMATE SOLUTIONS LIMITED,C-N11250-9227,Excluded,02 December 2011,-5.65
http://statistics.data.gov.uk/id/local-authority-district/23UB,Cheltenham Borough Council,462210,11283,COMPLETE CLIMATE SOLUTIONS LIMITED,C-N11250-9227,Excluded,02 December 2011,-6.83
http://statistics.data.gov.uk/id/local-authority-district/23UB,Cheltenham Borough Council,462209,11282,COMPLETE CLIMATE SOLUTIONS LIMITED,C-N11250-9227,Excluded,02 December 2011,-3.90
http://statistics.data.gov.uk/id/local-authority-district/23UB,Cheltenham Borough Council,462206,11279,COMPLETE CLIMATE SOLUTIONS LIMITED,C-N11250-9227,Excluded,02 December 2011,-5.85
http://statistics.data.gov.uk/id/local-authority-district/23UB,Cheltenham Borough Council,462207,11280,COMPLETE CLIMATE SOLUTIONS LIMITED,C-N11250-9227,Excluded,02 December 2011,-22.43
http://statistics.data.gov.uk/id/local-authority-district/23UB,Cheltenham Borough Council,462208,11281,COMPLETE CLIMATE SOLUTIONS LIMITED,C-N11250-9227,Excluded,02 December 2011,-5.85
http://statistics.data.gov.uk/id/local-authority-district/23UB,Cheltenham Borough Council,462205,11278,COMPLETE CLIMATE SOLUTIONS LIMITED,C-N11250-9227,Excluded,02 December 2011,-4.88
http://statistics.data.gov.uk/id/local-authority-district/23UB,Cheltenham Borough Council,463817,COT2414,COMPLETE WEED CONTROL,C-C22115-3501,Grass Verges-Hire of outside services,21 December 2011,"13,879.29"
http://statistics.data.gov.uk/id/local-authority-district/23UB,Cheltenham Borough Council,462270,3803558796,COMPUTACENTER UK LIMITED,C-D11820-3660,IT Infrastructu-Hardware PC & Servers,02 December 2011,95.45
http://statistics.data.gov.uk/id/local-authority-district/23UB,Cheltenham Borough Council,462229,3803565750,COMPUTACENTER UK LIMITED,C-GCERP-3661,GO Capital Cost-Hardware Peripherals,02 December 2011,"2,840.88"
http://statistics.data.gov.uk/id/local-authority-district/23UB,Cheltenham Borough Council,462230,3803569380,COMPUTACENTER UK LIMITED,C-GCERP-3661,GO Capital Cost-Hardware Peripherals,02 December 2011,455.91
http://statistics.data.gov.uk/id/local-authority-district/23UB,Cheltenham Borough Council,462852,3803550105,COMPUTACENTER UK LIMITED,C-D11820-3660,IT Infrastructu-Hardware PC & Servers,09 December 2011,"1,882.32"
http://statistics.data.gov.uk/id/local-authority-district/23UB,Cheltenham Borough Council,462268,01008000171344,COMPUTER FUTURES,C-D11800-0115,IT Services-Temporary Agency Staff,02 December 2011,629.00
http://statistics.data.gov.uk/id/local-authority-district/23UB,Cheltenham Borough Council,462269,01008000167157,COMPUTER FUTURES,C-D11800-0115,IT Services-Temporary Agency Staff,02 December 2011,884.00
http://statistics.data.gov.uk/id/local-authority-district/23UB,Cheltenham Borough Council,461084,01008000164757,COMPUTER FUTURES,C-D11800-0115,IT Services-Temporary Agency Staff,05 December 2011,629.00
http://statistics.data.gov.uk/id/local-authority-district/23UB,Cheltenham Borough Council,461084,01008000164757,COMPUTER FUTURES,C-D11800-0115,IT Services-Temporary Agency Staff,05 December 2011,629.00
http://statistics.data.gov.uk/id/local-authority-district/23UB,Cheltenham Borough Council,462053,01008000169742,COMPUTER FUTURES,C-D11800-0115,IT Services-Temporary Agency Staff,12 December 2011,629.00
http://statistics.data.gov.uk/id/local-authority-district/23UB,Cheltenham Borough Council,462053,01008000169742,COMPUTER FUTURES,C-D11800-0115,IT Services-Temporary Agency Staff,12 December 2011,629.00
http://statistics.data.gov.uk/id/local-authority-district/23UB,Cheltenham Borough Council,461596,01008000163560,COMPUTER FUTURES,C-D11800-0115,IT Services-Temporary Agency Staff,12 December 2011,119.00
http://statistics.data.gov.uk/id/local-authority-district/23UB,Cheltenham Borough Council,461596,01008000163560,COMPUTER FUTURES,C-D11800-0115,IT Services-Temporary Agency Staff,12 December 2011,629.00
http://statistics.data.gov.uk/id/local-authority-district/23UB,Cheltenham Borough Council,461596,01008000163560,COMPUTER FUTURES,C-D11800-0115,IT Services-Temporary Agency Staff,12 December 2011,629.00
http://statistics.data.gov.uk/id/local-authority-district/23UB,Cheltenham Borough Council,461596,01008000163560,COMPUTER FUTURES,C-D11800-0115,IT Services-Temporary Agency Staff,12 December 2011,629.00
http://statistics.data.gov.uk/id/local-authority-district/23UB,Cheltenham Borough Council,461596,01008000163560,COMPUTER FUTURES,C-D11800-0115,IT Services-Temporary Agency Staff,12 December 2011,629.00
http://statistics.data.gov.uk/id/local-authority-district/23UB,Cheltenham Borough Council,461596,01008000163560,COMPUTER FUTURES,C-D11800-0115,IT Services-Temporary Agency Staff,12 December 2011,119.00
http://statistics.data.gov.uk/id/local-authority-district/23UB,Cheltenham Borough Council,461594,01008000168347,COMPUTER FUTURES,C-D11800-0115,IT Services-Temporary Agency Staff,12 December 2011,629.00
http://statistics.data.gov.uk/id/local-authority-district/23UB,Cheltenham Borough Council,461594,01008000168347,COMPUTER FUTURES,C-D11800-0115,IT Services-Temporary Agency Staff,12 December 2011,629.00
http://statistics.data.gov.uk/id/local-authority-district/23UB,Cheltenham Borough Council,463345,01008000172762,COMPUTER FUTURES,C-D11800-0115,IT Services-Temporary Agency Staff,15 December 2011,501.50
http://statistics.data.gov.uk/id/local-authority-district/23UB,Cheltenham Borough Council,463829,01008000176128,COMPUTER FUTURES,C-D11800-0115,IT Services-Temporary Agency Staff,21 December 2011,629.00
http://statistics.data.gov.uk/id/local-authority-district/23UB,Cheltenham Borough Council,463704,01008000175096,COMPUTER FUTURES,C-D11800-0115,IT Services-Temporary Agency Staff,21 December 2011,629.00
http://statistics.data.gov.uk/id/local-authority-district/23UB,Cheltenham Borough Council,462342,1297,COOMBS PROPERTY SERVICES LTD,C-HC4869-C302,Sheltered Hsg-Building Contractor,02 December 2011,300.00
http://statistics.data.gov.uk/id/local-authority-district/23UB,Cheltenham Borough Council,462346,1296,COOMBS PROPERTY SERVICES LTD,C-HC4869-C302,Sheltered Hsg-Building Contractor,02 December 2011,300.00
http://statistics.data.gov.uk/id/local-authority-district/23UB,Cheltenham Borough Council,462343,1293,COOMBS PROPERTY SERVICES LTD,C-HC4872-C302,Structural/Damp-Building Contractor,02 December 2011,210.00
http://statistics.data.gov.uk/id/local-authority-district/23UB,Cheltenham Borough Council,462344,1292,COOMBS PROPERTY SERVICES LTD,C-HC4872-C302,Structural/Damp-Building Contractor,02 December 2011,320.00
http://statistics.data.gov.uk/id/local-authority-district/23UB,Cheltenham Borough Council,462345,1291,COOMBS PROPERTY SERVICES LTD,C-HC4872-C302,Structural/Damp-Building Contractor,02 December 2011,"3,150.00"
http://statistics.data.gov.uk/id/local-authority-district/23UB,Cheltenham Borough Council,462674,CSMS110905,CORINIUM SAFETY MANAGEMENT SERVICES,C-PM0040-R165,Recreation Cent-Health & Safety,02 December 2011,500.00
http://statistics.data.gov.uk/id/local-authority-district/23UB,Cheltenham Borough Council,462642,2691,CORNERSTONE LEARNING LTD,C-IT0058-3501,Org & Dev Work-Hire of outside services,02 December 2011,525.00
http://statistics.data.gov.uk/id/local-authority-district/23UB,Cheltenham Borough Council,462221,016372,CORY ENVIRONMENTAL LTD,C-C23100-3581,Refuse Collctn-Tipping charges,02 December 2011,"5,359.03"
http://statistics.data.gov.uk/id/local-authority-district/23UB,Cheltenham Borough Council,462812,016426,CORY ENVIRONMENTAL LTD,C-C23100-3581,Refuse Collctn-Tipping charges,09 December 2011,"5,521.02"
http://statistics.data.gov.uk/id/local-authority-district/23UB,Cheltenham Borough Council,463266,016484,CORY ENVIRONMENTAL LTD,C-C23100-3581,Refuse Collctn-Tipping charges,15 December 2011,"5,285.55"
http://statistics.data.gov.uk/id/local-authority-district/23UB,Cheltenham Borough Council,463236,AUDIT PARTNER,COTSWOLD DISTRICT COUNCIL,C-D11400-3501,Audit & Assrnce-Hire of outside services,15 December 2011,"8,743.75"
http://statistics.data.gov.uk/id/local-authority-district/23UB,Cheltenham Borough Council,461828,1118,COUNTY COMMUNITY PROJECTS,C-H22400-3887,Homelessness-Mediation Services,02 December 2011,"6,563.00"
http://statistics.data.gov.uk/id/local-authority-district/23UB,Cheltenham Borough Council,463472,REDACTED,CRAIG DAY DEVELOPMENTS,C-HC7440-C801,DFG.96.Act-Grants,15 December 2011,"11,513.75"
http://statistics.data.gov.uk/id/local-authority-district/23UB,Cheltenham Borough Council,462263,4043,CREATIVE TEXTILES,C-L16100-3104,Holiday Rec-Sports & play equipment,02 December 2011,344.70
http://statistics.data.gov.uk/id/local-authority-district/23UB,Cheltenham Borough Council,462263,4043,CREATIVE TEXTILES,C-L17300-3104,Sports Dev-Sports & play equipment,02 December 2011,131.00
http://statistics.data.gov.uk/id/local-authority-district/23UB,Cheltenham Borough Council,462263,4043,CREATIVE TEXTILES,C-L17500-3104,Healthy Lifestyl-Sports & play equipment,02 December 2011,138.00
http://statistics.data.gov.uk/id/local-authority-district/23UB,Cheltenham Borough Council,463642,01140,D A JONES,C-C22110-1101,Parks & Gardens-General building repairs,21 December 2011,"3,207.00"
http://statistics.data.gov.uk/id/local-authority-district/23UB,Cheltenham Borough Council,463678,01139,D A JONES,C-E21100-3501,Car Prks-Off St-Hire of outside services,21 December 2011,250.00
http://statistics.data.gov.uk/id/local-authority-district/23UB,Cheltenham Borough Council,463678,01139,D A JONES,C-N11250-9227,Excluded,21 December 2011,-50.00
http://statistics.data.gov.uk/id/local-authority-district/23UB,Cheltenham Borough Council,463642,01140,D A JONES,C-N11250-9227,Excluded,21 December 2011,-164.20
http://statistics.data.gov.uk/id/local-authority-district/23UB,Cheltenham Borough Council,463907,H1533,DAS,C-HC4074-C302,Communal Aerial-Building Contractor,22 December 2011,"4,951.00"
http://statistics.data.gov.uk/id/local-authority-district/23UB,Cheltenham Borough Council,463849,900081031,DAVIS LANGDON LLP,C-LC4006-C713,AG&M Dev Scheme-Other Professional Fees,21 December 2011,"3,000.00"
http://statistics.data.gov.uk/id/local-authority-district/23UB,Cheltenham Borough Council,463866,900081035,DAVIS LANGDON LLP,C-LC4006-C713,AG&M Dev Scheme-Other Professional Fees,21 December 2011,"3,000.00"
http://statistics.data.gov.uk/id/local-authority-district/23UB,Cheltenham Borough Council,463344,92,DC RESEARCH,C-B51160-3501,Civic Pride-Hire of outside services,15 December 2011,"7,200.00"
http://statistics.data.gov.uk/id/local-authority-district/23UB,Cheltenham Borough Council,463591,165870,DCRS LIMITED,C-E71150-3101,Public Protn Div-Equipment purchases,21 December 2011,585.00
http://statistics.data.gov.uk/id/local-authority-district/23UB,Cheltenham Borough Council,463363,111454,DEEPCLEAN HYGIENE SOLUTIONS LTD,C-L21100-3501,Town Hall-Hire of outside services,15 December 2011,697.50
http://statistics.data.gov.uk/id/local-authority-district/23UB,Cheltenham Borough Council,462651,39723,DELAWARE COMMUNICATIONS PLC,C-E61500-3103,CCTV/TC Safety-Equipment repairs & maint,02 December 2011,"1,419.17"
http://statistics.data.gov.uk/id/local-authority-district/23UB,Cheltenham Borough Council,463705,7401891042,DELL COMPUTER CORPORATION LTD,C-D11820-3660,IT Infrastructu-Hardware PC & Servers,21 December 2011,"1,628.00"
http://statistics.data.gov.uk/id/local-authority-district/23UB,Cheltenham Borough Council,462401,DE10592040,DENNIS EAGLE,C-C24100-3582,Fleet Maint-DSO Invoices,02 December 2011,63.42
http://statistics.data.gov.uk/id/local-authority-district/23UB,Cheltenham Borough Council,462408,DE10591492,DENNIS EAGLE,C-C24100-3582,Fleet Maint-DSO Invoices,02 December 2011,44.30
http://statistics.data.gov.uk/id/local-authority-district/23UB,Cheltenham Borough Council,462405,DE10591491,DENNIS EAGLE,C-C24100-3582,Fleet Maint-DSO Invoices,02 December 2011,126.84
http://statistics.data.gov.uk/id/local-authority-district/23UB,Cheltenham Borough Council,462403,DE10588601,DENNIS EAGLE,C-C24100-3582,Fleet Maint-DSO Invoices,02 December 2011,644.99
http://statistics.data.gov.uk/id/local-authority-district/23UB,Cheltenham Borough Council,462397,DE10592332,DENNIS EAGLE,C-C24100-3582,Fleet Maint-DSO Invoices,02 December 2011,108.05
http://statistics.data.gov.uk/id/local-authority-district/23UB,Cheltenham Borough Council,462382,DE10593122,DENNIS EAGLE,C-C24100-3582,Fleet Maint-DSO Invoices,02 December 2011,155.30
http://statistics.data.gov.uk/id/local-authority-district/23UB,Cheltenham Borough Council,462393,DE10592333,DENNIS EAGLE,C-C24100-3582,Fleet Maint-DSO Invoices,02 December 2011,228.23
http://statistics.data.gov.uk/id/local-authority-district/23UB,Cheltenham Borough Council,463146,DE10595854,DENNIS EAGLE,C-C24100-3582,Fleet Maint-DSO Invoices,15 December 2011,350.39
http://statistics.data.gov.uk/id/local-authority-district/23UB,Cheltenham Borough Council,463196,DE30027532,DENNIS EAGLE,C-C24100-3582,Fleet Maint-DSO Invoices,15 December 2011,-24.03
http://statistics.data.gov.uk/id/local-authority-district/23UB,Cheltenham Borough Council,463132,DE10593123,DENNIS EAGLE,C-C24100-3582,Fleet Maint-DSO Invoices,15 December 2011,932.33
http://statistics.data.gov.uk/id/local-authority-district/23UB,Cheltenham Borough Council,463220,DE10594796,DENNIS EAGLE,C-C24100-3582,Fleet Maint-DSO Invoices,15 December 2011,35.14
http://statistics.data.gov.uk/id/local-authority-district/23UB,Cheltenham Borough Council,463147,DE10596166,DENNIS EAGLE,C-C24100-3582,Fleet Maint-DSO Invoices,15 December 2011,39.37
http://statistics.data.gov.uk/id/local-authority-district/23UB,Cheltenham Borough Council,463230,0505,DEREK BLOCK CONCERT PROMOTIONS LTD,C-1T21J1-3568,Thatll be day-Artist Fees,16 December 2011,"5,500.00"
http://statistics.data.gov.uk/id/local-authority-district/23UB,Cheltenham Borough Council,463657,104-11-22,DEWHURST MACFARLANE & PARTNERS,C-LC4006-C702,AG&M Dev Scheme-CBC - Engineers,21 December 2011,"2,200.00"
http://statistics.data.gov.uk/id/local-authority-district/23UB,Cheltenham Borough Council,462231,4152,DOUG GOBEY TRANSPORT LIMITED,C-L41100-2701,AG & M-Hired transport,02 December 2011,650.00
http://statistics.data.gov.uk/id/local-authority-district/23UB,Cheltenham Borough Council,462378,021111,DR CAROLE FRY,C-B51120-3504,Devpment Cntrl-Legal exp & court costs,02 December 2011,"3,700.00"
http://statistics.data.gov.uk/id/local-authority-district/23UB,Cheltenham Borough Council,462359,420165,DTZ,C-E21100-1106,Car Prks-Off St-Reg Arcade-fixed mnt cst,02 December 2011,"14,250.00"
http://statistics.data.gov.uk/id/local-authority-district/23UB,Cheltenham Borough Council,463176,80007455,DX NETWORK SERVICES LIMITED,C-D13100-3501,Muni Off Blgs-Hire of outside services,15 December 2011,501.56
http://statistics.data.gov.uk/id/local-authority-district/23UB,Cheltenham Borough Council,439612,90800158,DX NETWORK SERVICES LIMITED,C-D21600-3602,Land Charges-Postages - frkng machine,15 December 2011,-682.19
http://statistics.data.gov.uk/id/local-authority-district/23UB,Cheltenham Borough Council,439612,90800158,DX NETWORK SERVICES LIMITED,C-D21600-3602,Land Charges-Postages - frkng machine,15 December 2011,-227.39
http://statistics.data.gov.uk/id/local-authority-district/23UB,Cheltenham Borough Council,463176,80007455,DX NETWORK SERVICES LIMITED,C-D21600-3602,Land Charges-Postages - frkng machine,15 December 2011,"1,504.68"
http://statistics.data.gov.uk/id/local-authority-district/23UB,Cheltenham Borough Council,462164,10156,EMMDEE BUILDING SERVICES,C-C23140-1801,Public Convnces-RM-Electrical repairs,02 December 2011,158.21
http://statistics.data.gov.uk/id/local-authority-district/23UB,Cheltenham Borough Council,462193,9918,EMMDEE BUILDING SERVICES,C-D13100-1801,Muni Off Blgs-RM-Electrical repairs,02 December 2011,33.75
http://statistics.data.gov.uk/id/local-authority-district/23UB,Cheltenham Borough Council,462196,9923,EMMDEE BUILDING SERVICES,C-D13100-1801,Muni Off Blgs-RM-Electrical repairs,02 December 2011,78.75
http://statistics.data.gov.uk/id/local-authority-district/23UB,Cheltenham Borough Council,462161,10152,EMMDEE BUILDING SERVICES,C-D13100-1801,Muni Off Blgs-RM-Electrical repairs,02 December 2011,111.84
http://statistics.data.gov.uk/id/local-authority-district/23UB,Cheltenham Borough Council,461849,10071,EMMDEE BUILDING SERVICES,C-D13100-1801,Muni Off Blgs-RM-Electrical repairs,02 December 2011,214.48
http://statistics.data.gov.uk/id/local-authority-district/23UB,Cheltenham Borough Council,462660,10179,EMMDEE BUILDING SERVICES,C-D13100-1801,Muni Off Blgs-RM-Electrical repairs,02 December 2011,45.00
http://statistics.data.gov.uk/id/local-authority-district/23UB,Cheltenham Borough Council,462165,10157,EMMDEE BUILDING SERVICES,C-D13100-1801,Muni Off Blgs-RM-Electrical repairs,02 December 2011,61.87
http://statistics.data.gov.uk/id/local-authority-district/23UB,Cheltenham Borough Council,462162,10154,EMMDEE BUILDING SERVICES,C-D13550-1801,Area Off -E.Hse-RM-Electrical repairs,02 December 2011,22.50
http://statistics.data.gov.uk/id/local-authority-district/23UB,Cheltenham Borough Council,462163,10155,EMMDEE BUILDING SERVICES,C-D30200-1801,Misc Props & Ld-RM-Electrical repairs,02 December 2011,80.37
http://statistics.data.gov.uk/id/local-authority-district/23UB,Cheltenham Borough Council,462194,9920,EMMDEE BUILDING SERVICES,C-L11500-1801,Rec Facilities-RM-Electrical repairs,02 December 2011,175.00
http://statistics.data.gov.uk/id/local-authority-district/23UB,Cheltenham Borough Council,462195,9921,EMMDEE BUILDING SERVICES,C-L11500-1801,Rec Facilities-RM-Electrical repairs,02 December 2011,67.50
http://statistics.data.gov.uk/id/local-authority-district/23UB,Cheltenham Borough Council,461852,10073,EMMDEE BUILDING SERVICES,C-L11500-1801,Rec Facilities-RM-Electrical repairs,02 December 2011,67.50
http://statistics.data.gov.uk/id/local-authority-district/23UB,Cheltenham Borough Council,462166,10160,EMMDEE BUILDING SERVICES,C-L11500-1801,Rec Facilities-RM-Electrical repairs,02 December 2011,78.75
http://statistics.data.gov.uk/id/local-authority-district/23UB,Cheltenham Borough Council,462197,9924,EMMDEE BUILDING SERVICES,C-L11500-1801,Rec Facilities-RM-Electrical repairs,02 December 2011,33.75
http://statistics.data.gov.uk/id/local-authority-district/23UB,Cheltenham Borough Council,462661,10180,EMMDEE BUILDING SERVICES,C-L21100-1801,Town Hall-RM-Electrical repairs,02 December 2011,45.00
http://statistics.data.gov.uk/id/local-authority-district/23UB,Cheltenham Borough Council,462365,10158,EMMDEE BUILDING SERVICES,C-L21100-1801,Town Hall-RM-Electrical repairs,02 December 2011,39.37
http://statistics.data.gov.uk/id/local-authority-district/23UB,Cheltenham Borough Council,462364,10159,EMMDEE BUILDING SERVICES,C-L21200-1801,Pump Room-RM-Electrical repairs,02 December 2011,22.50
http://statistics.data.gov.uk/id/local-authority-district/23UB,Cheltenham Borough Council,461850,10072,EMMDEE BUILDING SERVICES,C-L41100-1801,AG & M-RM-Electrical repairs,02 December 2011,22.50
http://statistics.data.gov.uk/id/local-authority-district/23UB,Cheltenham Borough Council,461851,10074,EMMDEE BUILDING SERVICES,C-L41100-1801,AG & M-RM-Electrical repairs,02 December 2011,22.50
http://statistics.data.gov.uk/id/local-authority-district/23UB,Cheltenham Borough Council,461831,301267/10/2011,ENER-G,C-L11500-1402,Rec Facilities-Electricity,02 December 2011,"3,739.06"
http://statistics.data.gov.uk/id/local-authority-district/23UB,Cheltenham Borough Council,463810,18843,F G MARSHALL LTD,C-E63100-3111,Cemetery & Crem-Goods purch for resale,21 December 2011,11.40
http://statistics.data.gov.uk/id/local-authority-district/23UB,Cheltenham Borough Council,463812,18980,F G MARSHALL LTD,C-E63100-3111,Cemetery & Crem-Goods purch for resale,21 December 2011,18.24
http://statistics.data.gov.uk/id/local-authority-district/23UB,Cheltenham Borough Council,463812,18980,F G MARSHALL LTD,C-E63100-3111,Cemetery & Crem-Goods purch for resale,21 December 2011,52.20
http://statistics.data.gov.uk/id/local-authority-district/23UB,Cheltenham Borough Council,463812,18980,F G MARSHALL LTD,C-E63100-3111,Cemetery & Crem-Goods purch for resale,21 December 2011,52.77
http://statistics.data.gov.uk/id/local-authority-district/23UB,Cheltenham Borough Council,463812,18980,F G MARSHALL LTD,C-E63100-3111,Cemetery & Crem-Goods purch for resale,21 December 2011,18.24
http://statistics.data.gov.uk/id/local-authority-district/23UB,Cheltenham Borough Council,463813,18981,F G MARSHALL LTD,C-E63100-3111,Cemetery & Crem-Goods purch for resale,21 December 2011,53.68
http://statistics.data.gov.uk/id/local-authority-district/23UB,Cheltenham Borough Council,463816,18986,F G MARSHALL LTD,C-E63100-3111,Cemetery & Crem-Goods purch for resale,21 December 2011,206.54
http://statistics.data.gov.uk/id/local-authority-district/23UB,Cheltenham Borough Council,463814,18969,F G MARSHALL LTD,C-E63100-3111,Cemetery & Crem-Goods purch for resale,21 December 2011,2.20
http://statistics.data.gov.uk/id/local-authority-district/23UB,Cheltenham Borough Council,463813,18981,F G MARSHALL LTD,C-E63100-3111,Cemetery & Crem-Goods purch for resale,21 December 2011,15.80
http://statistics.data.gov.uk/id/local-authority-district/23UB,Cheltenham Borough Council,463813,18981,F G MARSHALL LTD,C-E63100-3111,Cemetery & Crem-Goods purch for resale,21 December 2011,2.44
http://statistics.data.gov.uk/id/local-authority-district/23UB,Cheltenham Borough Council,463814,18969,F G MARSHALL LTD,C-E63100-3111,Cemetery & Crem-Goods purch for resale,21 December 2011,52.77
http://statistics.data.gov.uk/id/local-authority-district/23UB,Cheltenham Borough Council,463812,18980,F G MARSHALL LTD,C-E63100-3111,Cemetery & Crem-Goods purch for resale,21 December 2011,118.08
http://statistics.data.gov.uk/id/local-authority-district/23UB,Cheltenham Borough Council,463812,18980,F G MARSHALL LTD,C-E63100-3111,Cemetery & Crem-Goods purch for resale,21 December 2011,91.86
http://statistics.data.gov.uk/id/local-authority-district/23UB,Cheltenham Borough Council,463812,18980,F G MARSHALL LTD,C-E63100-3111,Cemetery & Crem-Goods purch for resale,21 December 2011,79.80
http://statistics.data.gov.uk/id/local-authority-district/23UB,Cheltenham Borough Council,463811,18980,F G MARSHALL LTD,C-E63100-3111,Cemetery & Crem-Goods purch for resale,21 December 2011,15.80
http://statistics.data.gov.uk/id/local-authority-district/23UB,Cheltenham Borough Council,463810,18843,F G MARSHALL LTD,C-E63100-3111,Cemetery & Crem-Goods purch for resale,21 December 2011,8.05
http://statistics.data.gov.uk/id/local-authority-district/23UB,Cheltenham Borough Council,463810,18843,F G MARSHALL LTD,C-E63100-3111,Cemetery & Crem-Goods purch for resale,21 December 2011,52.20
http://statistics.data.gov.uk/id/local-authority-district/23UB,Cheltenham Borough Council,462340,1035,FAIRFORD TREE SERVICES,C-H33700-1305,Estate Services-Tree surgery,02 December 2011,520.00
http://statistics.data.gov.uk/id/local-authority-district/23UB,Cheltenham Borough Council,463003,REDACTED,FARMINGTON BUILDERS,C-HC7440-C801,DFG.96.Act-Grants,09 December 2011,"7,916.78"
http://statistics.data.gov.uk/id/local-authority-district/23UB,Cheltenham Borough Council,463476,REDACTED,FARMINGTON BUILDERS,C-HC7440-C801,DFG.96.Act-Grants,15 December 2011,"4,148.00"
http://statistics.data.gov.uk/id/local-authority-district/23UB,Cheltenham Borough Council,463884,5032,FERNMONT LIMITED,C-HC4867-C302,Misc Works-Building Contractor,21 December 2011,"3,226.00"
http://statistics.data.gov.uk/id/local-authority-district/23UB,Cheltenham Borough Council,463807,S1125760,FLEET LINE MARKERS LTD,C-C22120-3121,Spts/Open Space-Materials-Contract,21 December 2011,877.50
http://statistics.data.gov.uk/id/local-authority-district/23UB,Cheltenham Borough Council,463796,REFUND APPEAL,FOR & ON BEHALF OF REDCLIFFE HOMES LTD,C-B51120-8433,Develt Con-Planning Fees,21 December 2011,"15,000.00"
http://statistics.data.gov.uk/id/local-authority-district/23UB,Cheltenham Borough Council,463481,CONTRIBUTION,FRIENDS OF CHELT ART GALLERY & MUSEUM,C-L41100-3256,AG & M-Fine Form Horse Parade exp,16 December 2011,"4,000.00"
http://statistics.data.gov.uk/id/local-authority-district/23UB,Cheltenham Borough Council,462388,5202,FUTRA LTD,C-C24150-3170,Fleet Managemnt-Fuel system maintenance,02 December 2011,904.00
http://statistics.data.gov.uk/id/local-authority-district/23UB,Cheltenham Borough Council,461775,01437507,G4S CASH SERVICES (UK) LTD,C-D12450-3502,Cash Rec / Bnkg-Cash transportation,02 December 2011,694.81
http://statistics.data.gov.uk/id/local-authority-district/23UB,Cheltenham Borough Council,461774,01437499,G4S CASH SERVICES (UK) LTD,C-D12455-3502,CarPk Inc Colln-Cash transportation,02 December 2011,906.20
http://statistics.data.gov.uk/id/local-authority-district/23UB,Cheltenham Borough Council,463162,80005341,G4S CASH SERVICES (UK) LTD,C-D12450-3502,Cash Rec / Bnkg-Cash transportation,15 December 2011,288.97
http://statistics.data.gov.uk/id/local-authority-district/23UB,Cheltenham Borough Council,463162,80005341,G4S CASH SERVICES (UK) LTD,C-D12455-3502,CarPk Inc Colln-Cash transportation,15 December 2011,527.55
http://statistics.data.gov.uk/id/local-authority-district/23UB,Cheltenham Borough Council,463834,01446651,G4S CASH SERVICES (UK) LTD,C-D12450-3502,Cash Rec / Bnkg-Cash transportation,21 December 2011,694.81
http://statistics.data.gov.uk/id/local-authority-district/23UB,Cheltenham Borough Council,463833,01446644,G4S CASH SERVICES (UK) LTD,C-D12455-3502,CarPk Inc Colln-Cash transportation,21 December 2011,906.20
http://statistics.data.gov.uk/id/local-authority-district/23UB,Cheltenham Borough Council,462844,106,GASKINS,C-C22110-1305,Parks & Gardens-Tree surgery,09 December 2011,176.00
http://statistics.data.gov.uk/id/local-authority-district/23UB,Cheltenham Borough Council,462849,109,GASKINS,C-C22110-1305,Parks & Gardens-Tree surgery,09 December 2011,"1,100.00"
http://statistics.data.gov.uk/id/local-authority-district/23UB,Cheltenham Borough Council,462848,107,GASKINS,C-C22110-1312,Parks & Gardens-Annual felling prog,09 December 2011,264.00
http://statistics.data.gov.uk/id/local-authority-district/23UB,Cheltenham Borough Council,462847,108,GASKINS,C-C22110-8209,Parks & Gardens-Sponsorship/Donations,09 December 2011,"1,700.00"
http://statistics.data.gov.uk/id/local-authority-district/23UB,Cheltenham Borough Council,462841,105,GASKINS,C-C22120-1305,Spts/Open Space-Tree surgery,09 December 2011,264.00
http://statistics.data.gov.uk/id/local-authority-district/23UB,Cheltenham Borough Council,462849,109,GASKINS,C-C22120-1305,Spts/Open Space-Tree surgery,09 December 2011,"1,598.00"
http://statistics.data.gov.uk/id/local-authority-district/23UB,Cheltenham Borough Council,462847,108,GASKINS,C-H33700-1305,Estate Services-Tree surgery,09 December 2011,500.00
http://statistics.data.gov.uk/id/local-authority-district/23UB,Cheltenham Borough Council,463644,17974-RS,GB SPORT AND LEISURE,C-C22120-1119,Spts/Open Space-Playground Maint,21 December 2011,9.50
http://statistics.data.gov.uk/id/local-authority-district/23UB,Cheltenham Borough Council,463646,17974-RS,GB SPORT AND LEISURE,C-C22120-1119,Spts/Open Space-Playground Maint,21 December 2011,32.50
http://statistics.data.gov.uk/id/local-authority-district/23UB,Cheltenham Borough Council,463646,17974-RS,GB SPORT AND LEISURE,C-C22120-1119,Spts/Open Space-Playground Maint,21 December 2011,46.00
http://statistics.data.gov.uk/id/local-authority-district/23UB,Cheltenham Borough Council,463646,17974-RS,GB SPORT AND LEISURE,C-C22120-1119,Spts/Open Space-Playground Maint,21 December 2011,114.00
http://statistics.data.gov.uk/id/local-authority-district/23UB,Cheltenham Borough Council,463646,17974-RS,GB SPORT AND LEISURE,C-C22120-1119,Spts/Open Space-Playground Maint,21 December 2011,37.50
http://statistics.data.gov.uk/id/local-authority-district/23UB,Cheltenham Borough Council,463644,17974-RS,GB SPORT AND LEISURE,C-LC6001-P827,Playspace Schme-Montpellier Gardens,21 December 2011,150.50
http://statistics.data.gov.uk/id/local-authority-district/23UB,Cheltenham Borough Council,463645,17974-RS,GB SPORT AND LEISURE,C-LC6001-P840,Playspace Schme-Whaddon Road,21 December 2011,160.00
http://statistics.data.gov.uk/id/local-authority-district/23UB,Cheltenham Borough Council,462370,SI-00007437,GBR TEXTILES LTD,C-N42250-3112,DSO Stores - Stock purchases,02 December 2011,612.00
http://statistics.data.gov.uk/id/local-authority-district/23UB,Cheltenham Borough Council,461822,CSD1763390,GILLMANS SERVICE,C-HC4869-C302,Sheltered Hsg-Building Contractor,02 December 2011,"1,512.00"
http://statistics.data.gov.uk/id/local-authority-district/23UB,Cheltenham Borough Council,462186,23155,GLIDE MEDIA MARKETING,C-1T31J1-3527,New Years Eve-Distribution/Mailing,02 December 2011,92.00
http://statistics.data.gov.uk/id/local-authority-district/23UB,Cheltenham Borough Council,462187,23153,GLIDE MEDIA MARKETING,C-1T70L0-3527,Folk Festival-Distribution/Mailing,02 December 2011,636.60
http://statistics.data.gov.uk/id/local-authority-district/23UB,Cheltenham Borough Council,462236,23060,GLIDE MEDIA MARKETING,C-L31100-3510,TIC-Promotion & Marketing,02 December 2011,301.50
http://statistics.data.gov.uk/id/local-authority-district/23UB,Cheltenham Borough Council,462237,23061,GLIDE MEDIA MARKETING,C-L31100-3510,TIC-Promotion & Marketing,02 December 2011,280.00
http://statistics.data.gov.uk/id/local-authority-district/23UB,Cheltenham Borough Council,462240,23140,GLIDE MEDIA MARKETING,C-L31100-3510,TIC-Promotion & Marketing,02 December 2011,"2,253.60"
http://statistics.data.gov.uk/id/local-authority-district/23UB,Cheltenham Borough Council,463185,566497,GLOBAL RADIO SERVICES LTD,C-DR3001-3510,Town C Manager-Promotion & Marketing,15 December 2011,300.00
http://statistics.data.gov.uk/id/local-authority-district/23UB,Cheltenham Borough Council,463186,565279,GLOBAL RADIO SERVICES LTD,C-DR3001-3510,Town C Manager-Promotion & Marketing,15 December 2011,999.85
http://statistics.data.gov.uk/id/local-authority-district/23UB,Cheltenham Borough Council,463456,1800206619,GLOUCESTERSHIRE COUNTY COUNCIL,C-E21100-3401,Car Prks-Off St-Printing - general,15 December 2011,187.16
http://statistics.data.gov.uk/id/local-authority-district/23UB,Cheltenham Borough Council,462974,1800206834,GLOUCESTERSHIRE COUNTY COUNCIL,C-E36200-4528,On-St Car Prkng-Net income paid to GCC,15 December 2011,"104,807.81"
http://statistics.data.gov.uk/id/local-authority-district/23UB,Cheltenham Borough Council,463619,1800207553,GLOUCESTERSHIRE COUNTY COUNCIL,C-H22300-3871,Housing Grants-Grants - Care & Repair,21 December 2011,"7,975.00"
http://statistics.data.gov.uk/id/local-authority-district/23UB,Cheltenham Borough Council,462273,1800206804,GLOUCESTERSHIRE HIGHWAYS,C-L32200-1806,Xmas in Chelt-RM-Ext. fixtures/fittings,02 December 2011,"1,202.00"
http://statistics.data.gov.uk/id/local-authority-district/23UB,Cheltenham Borough Council,463592,800003004-OCT&,GLOUCESTERSHIRE LGPS,C-D32750-0214,Pension Fund Ba-Payments to Pension Fund,21 December 2011,"15,455.72"
http://statistics.data.gov.uk/id/local-authority-district/23UB,Cheltenham Borough Council,463300,48869,GOOCH GROUP LTD,C-E21100-1701,Car Prks-Off St-Cleaning,15 December 2011,"2,284.00"
http://statistics.data.gov.uk/id/local-authority-district/23UB,Cheltenham Borough Council,463319,48574,GOOCH GROUP LTD,C-E21100-1701,Car Prks-Off St-Cleaning,15 December 2011,720.00
http://statistics.data.gov.uk/id/local-authority-district/23UB,Cheltenham Borough Council,458117,5001954,GREENSIDE DISTRIBUTION,C-L11500-3101,Rec Facilities-Equipment purchases,22 December 2011,6.99
http://statistics.data.gov.uk/id/local-authority-district/23UB,Cheltenham Borough Council,458120,6007418,GREENSIDE DISTRIBUTION,C-L11500-3101,Rec Facilities-Equipment purchases,22 December 2011,10.99
http://statistics.data.gov.uk/id/local-authority-district/23UB,Cheltenham Borough Council,458120,6007418,GREENSIDE DISTRIBUTION,C-L11500-3101,Rec Facilities-Equipment purchases,22 December 2011,76.90
http://statistics.data.gov.uk/id/local-authority-district/23UB,Cheltenham Borough Council,458118,6001013,GREENSIDE DISTRIBUTION,C-L11500-3101,Rec Facilities-Equipment purchases,22 December 2011,76.90
http://statistics.data.gov.uk/id/local-authority-district/23UB,Cheltenham Borough Council,458118,6001013,GREENSIDE DISTRIBUTION,C-L11500-3101,Rec Facilities-Equipment purchases,22 December 2011,10.99
http://statistics.data.gov.uk/id/local-authority-district/23UB,Cheltenham Borough Council,458119,6001742,GREENSIDE DISTRIBUTION,C-L11500-3101,Rec Facilities-Equipment purchases,22 December 2011,38.45
http://statistics.data.gov.uk/id/local-authority-district/23UB,Cheltenham Borough Council,458119,6001742,GREENSIDE DISTRIBUTION,C-L11500-3101,Rec Facilities-Equipment purchases,22 December 2011,10.99
http://statistics.data.gov.uk/id/local-authority-district/23UB,Cheltenham Borough Council,458119,6001742,GREENSIDE DISTRIBUTION,C-L11500-3101,Rec Facilities-Equipment purchases,22 December 2011,38.45
http://statistics.data.gov.uk/id/local-authority-district/23UB,Cheltenham Borough Council,462156,374,GREENWAY PARTNERSHIP LIMITED,C-C22120-1809,Sports & Open S-RM-sanitary works,02 December 2011,135.00
http://statistics.data.gov.uk/id/local-authority-district/23UB,Cheltenham Borough Council,462159,377,GREENWAY PARTNERSHIP LIMITED,C-C23140-1804,Public Convnces-RM-External structures,02 December 2011,127.00
http://statistics.data.gov.uk/id/local-authority-district/23UB,Cheltenham Borough Council,462154,370,GREENWAY PARTNERSHIP LIMITED,C-C23140-1805,Public Convnces-RM-Int. fixtures/fitting,02 December 2011,442.00
http://statistics.data.gov.uk/id/local-authority-district/23UB,Cheltenham Borough Council,462157,375,GREENWAY PARTNERSHIP LIMITED,C-C23140-1809,Public Convnces-RM-sanitary works,02 December 2011,180.00
http://statistics.data.gov.uk/id/local-authority-district/23UB,Cheltenham Borough Council,462160,378,GREENWAY PARTNERSHIP LIMITED,C-D13550-1809,Area Off -E.Hse-RM-sanitary works,02 December 2011,88.00
http://statistics.data.gov.uk/id/local-authority-district/23UB,Cheltenham Borough Council,462158,376,GREENWAY PARTNERSHIP LIMITED,C-D14100-1804,Depot Building-RM-External structures,02 December 2011,360.00
http://statistics.data.gov.uk/id/local-authority-district/23UB,Cheltenham Borough Council,462155,372,GREENWAY PARTNERSHIP LIMITED,C-E21100-1801,Car Prks-Off St-RM-Electrical repairs,02 December 2011,146.35
http://statistics.data.gov.uk/id/local-authority-district/23UB,Cheltenham Borough Council,462656,345,GREENWAY PARTNERSHIP LIMITED,C-E21100-1804,Car Prks-Off St-RM-External structures,02 December 2011,"2,890.00"
http://statistics.data.gov.uk/id/local-authority-district/23UB,Cheltenham Borough Council,462658,358,GREENWAY PARTNERSHIP LIMITED,C-E21100-3103,Car Prks-Off St-Equipment repairs & main,02 December 2011,297.00
http://statistics.data.gov.uk/id/local-authority-district/23UB,Cheltenham Borough Council,461821,314,GREENWAY PARTNERSHIP LIMITED,C-HC4872-C302,Structural/Damp-Building Contractor,02 December 2011,"5,225.00"
http://statistics.data.gov.uk/id/local-authority-district/23UB,Cheltenham Borough Council,462671,382,GREENWAY PARTNERSHIP LIMITED,C-L21100-1809,Town Hall-RM-sanitary works,02 December 2011,772.00
http://statistics.data.gov.uk/id/local-authority-district/23UB,Cheltenham Borough Council,462274,366,GREENWAY PARTNERSHIP LIMITED,C-L32200-1806,Xmas in Chelt-RM-Ext. fixtures/fittings,02 December 2011,"16,500.00"
http://statistics.data.gov.uk/id/local-authority-district/23UB,Cheltenham Borough Council,463191,410,GREENWAY PARTNERSHIP LIMITED,C-C23140-1805,Public Convnces-RM-Int. fixtures/fitting,15 December 2011,23.00
http://statistics.data.gov.uk/id/local-authority-district/23UB,Cheltenham Borough Council,463191,410,GREENWAY PARTNERSHIP LIMITED,C-C23140-1809,Public Convnces-RM-sanitary works,15 December 2011,25.00
http://statistics.data.gov.uk/id/local-authority-district/23UB,Cheltenham Borough Council,463190,408,GREENWAY PARTNERSHIP LIMITED,C-E21100-1801,Car Prks-Off St-RM-Electrical repairs,15 December 2011,57.50
http://statistics.data.gov.uk/id/local-authority-district/23UB,Cheltenham Borough Council,463192,402,GREENWAY PARTNERSHIP LIMITED,C-E21100-1804,Car Prks-Off St-RM-External structures,15 December 2011,218.00
http://statistics.data.gov.uk/id/local-authority-district/23UB,Cheltenham Borough Council,463112,365,GREENWAY PARTNERSHIP LIMITED,C-H44752-1104,Dis Adapts-Tech-Council House repairs,15 December 2011,891.00
http://statistics.data.gov.uk/id/local-authority-district/23UB,Cheltenham Borough Council,463262,371,GREENWAY PARTNERSHIP LIMITED,C-L32200-1801,Xmas in Chelt-RM-Electrical repairs,15 December 2011,968.00
http://statistics.data.gov.uk/id/local-authority-district/23UB,Cheltenham Borough Council,463535,407,GREENWAY PARTNERSHIP LIMITED,C-C22120-1804,Sports & Open S-RM-External structures,21 December 2011,350.00
http://statistics.data.gov.uk/id/local-authority-district/23UB,Cheltenham Borough Council,463868,397,GREENWAY PARTNERSHIP LIMITED,C-C23140-1801,Public Convnces-RM-Electrical repairs,21 December 2011,81.20
http://statistics.data.gov.uk/id/local-authority-district/23UB,Cheltenham Borough Council,463869,398,GREENWAY PARTNERSHIP LIMITED,C-C23140-1801,Public Convnces-RM-Electrical repairs,21 December 2011,135.00
http://statistics.data.gov.uk/id/local-authority-district/23UB,Cheltenham Borough Council,463538,296,GREENWAY PARTNERSHIP LIMITED,C-L21100-3103,Town Hall-Equipment repairs & maint,21 December 2011,59.00
http://statistics.data.gov.uk/id/local-authority-district/23UB,Cheltenham Borough Council,463577,322,GREENWAY PARTNERSHIP LIMITED,C-L21100-3103,Town Hall-Equipment repairs & maint,21 December 2011,102.50
http://statistics.data.gov.uk/id/local-authority-district/23UB,Cheltenham Borough Council,463539,295,GREENWAY PARTNERSHIP LIMITED,C-L21100-3103,Town Hall-Equipment repairs & maint,21 December 2011,60.00
http://statistics.data.gov.uk/id/local-authority-district/23UB,Cheltenham Borough Council,463537,335,GREENWAY PARTNERSHIP LIMITED,C-L21200-3103,Pump Room-Equipment repairs & maint,21 December 2011,98.00
http://statistics.data.gov.uk/id/local-authority-district/23UB,Cheltenham Borough Council,463825,430,GREENWAY PARTNERSHIP LIMITED,C-L41100-2701,AG & M-Hired transport,21 December 2011,130.00
http://statistics.data.gov.uk/id/local-authority-district/23UB,Cheltenham Borough Council,463827,429,GREENWAY PARTNERSHIP LIMITED,C-L41100-2701,AG & M-Hired transport,21 December 2011,320.00
http://statistics.data.gov.uk/id/local-authority-district/23UB,Cheltenham Borough Council,463827,429,GREENWAY PARTNERSHIP LIMITED,C-L41100-2701,AG & M-Hired transport,21 December 2011,145.00
http://statistics.data.gov.uk/id/local-authority-district/23UB,Cheltenham Borough Council,463252,412,GROUP CREATIVE,C-L11500-4416,Rec Facilities-Computer maintenance,15 December 2011,540.00
http://statistics.data.gov.uk/id/local-authority-district/23UB,Cheltenham Borough Council,463478,REDACTED,GROVE BUILDING SERVICES,C-HC4100-C801,Dis.Adapt.HRA-Grants,15 December 2011,"20,860.00"
http://statistics.data.gov.uk/id/local-authority-district/23UB,Cheltenham Borough Council,463175,7018644,GVA GRIMLEY LLP,C-D35100-350A,Glos Airport-Consultants Fees,15 December 2011,"1,798.50"
http://statistics.data.gov.uk/id/local-authority-district/23UB,Cheltenham Borough Council,463237,6782,HALAROSE LIMITED,C-D21300-3623,District Elects-Cmpter-sftwre lic purch,15 December 2011,935.47
http://statistics.data.gov.uk/id/local-authority-district/23UB,Cheltenham Borough Council,463237,6782,HALAROSE LIMITED,C-D21300-3623,District Elects-Cmpter-sftwre lic purch,15 December 2011,"2,806.38"
http://statistics.data.gov.uk/id/local-authority-district/23UB,Cheltenham Borough Council,463237,6782,HALAROSE LIMITED,C-D21400-3623,Electoral Regn-Cmpter-sftwre lic purch,15 December 2011,935.48
http://statistics.data.gov.uk/id/local-authority-district/23UB,Cheltenham Borough Council,463237,6782,HALAROSE LIMITED,C-D21400-3623,Electoral Regn-Cmpter-sftwre lic purch,15 December 2011,"2,806.38"
http://statistics.data.gov.uk/id/local-authority-district/23UB,Cheltenham Borough Council,463552,6799,HALAROSE LIMITED,C-D21400-3601,Electoral Regn-Postages - stamps,21 December 2011,"1,302.39"
http://statistics.data.gov.uk/id/local-authority-district/23UB,Cheltenham Borough Council,463804,TW4932,HALCROW GROUP LTD,C-D30200-1840,Misc Props & Ld-RM-Professional Services,21 December 2011,650.00
http://statistics.data.gov.uk/id/local-authority-district/23UB,Cheltenham Borough Council,462891,24791,HARROLD-JONES  SERVICES,C-H46400-1104,Door Entry-Council House repairs,09 December 2011,"3,508.64"
http://statistics.data.gov.uk/id/local-authority-district/23UB,Cheltenham Borough Council,462997,24763,HARROLD-JONES  SERVICES,C-HC4863-C302,Door Entry-Building Contractor,09 December 2011,"24,133.97"
http://statistics.data.gov.uk/id/local-authority-district/23UB,Cheltenham Borough Council,463640,24854,HARROLD-JONES  SERVICES,C-H46400-1104,Door Entry-Council House repairs,21 December 2011,480.00
http://statistics.data.gov.uk/id/local-authority-district/23UB,Cheltenham Borough Council,463639,24855,HARROLD-JONES  SERVICES,C-H46400-1104,Door Entry-Council House repairs,21 December 2011,"5,308.05"
http://statistics.data.gov.uk/id/local-authority-district/23UB,Cheltenham Borough Council,463908,H1534,HARROLD-JONES  SERVICES,C-HC4863-C302,Door Entry-Building Contractor,22 December 2011,"58,575.39"
http://statistics.data.gov.uk/id/local-authority-district/23UB,Cheltenham Borough Council,463299,1435,HARTLEY FARMS,C-C22120-1505,Spts/Open Space-Water rates - metered,16 December 2011,966.96
http://statistics.data.gov.uk/id/local-authority-district/23UB,Cheltenham Borough Council,463299,1435,HARTLEY FARMS,C-C22120-1505,Spts/Open Space-Water rates - metered,16 December 2011,"1,225.08"
http://statistics.data.gov.uk/id/local-authority-district/23UB,Cheltenham Borough Council,463187,145996,HAZLEWOODS,C-LC4006-C713,AG&M Dev Scheme-Other Professional Fees,15 December 2011,"1,135.00"
http://statistics.data.gov.uk/id/local-authority-district/23UB,Cheltenham Borough Council,462687,1848,HEIDI ELECTRICAL AND SECURITY,C-LC6022-C101,Burial Chapel-Project Est for this Year,02 December 2011,748.00
http://statistics.data.gov.uk/id/local-authority-district/23UB,Cheltenham Borough Council,462267,6730486,HEWLETT PACKARD LIMITED,C-D11820-3660,IT Infrastructu-Hardware PC & Servers,02 December 2011,"2,690.00"
http://statistics.data.gov.uk/id/local-authority-district/23UB,Cheltenham Borough Council,463702,6734407,HEWLETT PACKARD LIMITED,C-D11820-3660,IT Infrastructu-Hardware PC & Servers,21 December 2011,"2,690.00"
http://statistics.data.gov.uk/id/local-authority-district/23UB,Cheltenham Borough Council,462633,SI-280729,HIGHPOINT IMPLEMENTATION &TRAINING LTD,C-GCERP-3501,GO Capital Cost-Hire of outside services,02 December 2011,"1,911.09"
http://statistics.data.gov.uk/id/local-authority-district/23UB,Cheltenham Borough Council,463794,SETTLEMENT,HRH ENTERTAINMENTS,C-N13125-9206,ASH Ledger-PPR Invoices Paid,21 December 2011,"-1,527.30"
http://statistics.data.gov.uk/id/local-authority-district/23UB,Cheltenham Borough Council,463794,SETTLEMENT,HRH ENTERTAINMENTS,C-Z12210-9137,Box Off A/C-PPR Hirers Tkt Pd out,21 December 2011,"4,202.50"
http://statistics.data.gov.uk/id/local-authority-district/23UB,Cheltenham Borough Council,462998,H1530,IAN WILLIAMS LIMITED,C-H45205-1104,Ext Repairs & R-Council House repairs,09 December 2011,"28,836.82"
http://statistics.data.gov.uk/id/local-authority-district/23UB,Cheltenham Borough Council,463850,63461,IBP LIMITED,C-D12310-0205,Corporate Trg-Training fees/exp (Corp),21 December 2011,695.00
http://statistics.data.gov.uk/id/local-authority-district/23UB,Cheltenham Borough Council,463340,5017,ICON NET LIMITED,C-L31100-3510,TIC-Promotion & Marketing,15 December 2011,587.50
http://statistics.data.gov.uk/id/local-authority-district/23UB,Cheltenham Borough Council,463340,5017,ICON NET LIMITED,C-L41100-3920,AG & M-Advertising,15 December 2011,587.50
http://statistics.data.gov.uk/id/local-authority-district/23UB,Cheltenham Borough Council,463341,5037,ICON NET LIMITED,C-L41100-3920,AG & M-Advertising,15 December 2011,160.00
http://statistics.data.gov.uk/id/local-authority-district/23UB,Cheltenham Borough Council,462653,5585,INDUSTRIAL MEDICAL AND SAFETY SVCE LTD,C-H33700-1402,Estate Services-Electricity,02 December 2011,"1,953.50"
http://statistics.data.gov.uk/id/local-authority-district/23UB,Cheltenham Borough Council,463459,SETTLEMENT,J & S LISNEY,C-N13125-9206,ASH Ledger-PPR Invoices Paid,15 December 2011,-620.00
http://statistics.data.gov.uk/id/local-authority-district/23UB,Cheltenham Borough Council,463459,SETTLEMENT,J & S LISNEY,C-Z12210-9137,Box Off A/C-PPR Hirers Tkt Pd out,15 December 2011,"1,345.00"
http://statistics.data.gov.uk/id/local-authority-district/23UB,Cheltenham Borough Council,463122,3987,J S FACILITIES GROUP LTD,C-D14100-1114,Depot Building-Security systems,15 December 2011,450.00
http://statistics.data.gov.uk/id/local-authority-district/23UB,Cheltenham Borough Council,463124,3842,J S FACILITIES GROUP LTD,C-D14100-1114,Depot Building-Security systems,15 December 2011,450.00
http://statistics.data.gov.uk/id/local-authority-district/23UB,Cheltenham Borough Council,463123,3912,J S FACILITIES GROUP LTD,C-D14100-1114,Depot Building-Security systems,15 December 2011,465.00
http://statistics.data.gov.uk/id/local-authority-district/23UB,Cheltenham Borough Council,463275,3994,J S FACILITIES GROUP LTD,C-L41100-1114,AG & M-Security systems,15 December 2011,25.00
http://statistics.data.gov.uk/id/local-authority-district/23UB,Cheltenham Borough Council,462808,83,J.J.MORRELL,C-D11400-3501,Audit & Assrnce-Hire of outside services,09 December 2011,"1,971.00"
http://statistics.data.gov.uk/id/local-authority-district/23UB,Cheltenham Borough Council,461830,78-151111,JACQUI BROWN,C-D21800-3597,Chelt.Strat P/S-Vision 21 Support,02 December 2011,637.50
http://statistics.data.gov.uk/id/local-authority-district/23UB,Cheltenham Borough Council,462842,107199,JAMES COLES AND SONS,C-C22110-3110,Parks & Gardens-Materials,09 December 2011,293.25
http://statistics.data.gov.uk/id/local-authority-district/23UB,Cheltenham Borough Council,462842,107199,JAMES COLES AND SONS,C-C22110-3110,Parks & Gardens-Materials,09 December 2011,293.25
http://statistics.data.gov.uk/id/local-authority-district/23UB,Cheltenham Borough Council,463458,SETTLEMENT,JAN AYERS,C-N13125-9205,ASH Ledger-Town Hall Invoices Paid,16 December 2011,"-3,653.33"
http://statistics.data.gov.uk/id/local-authority-district/23UB,Cheltenham Borough Council,463458,SETTLEMENT,JAN AYERS,C-Z12210-9138,Box Off A/C-TH Hirers Tkt Pd out,16 December 2011,"14,448.00"
http://statistics.data.gov.uk/id/local-authority-district/23UB,Cheltenham Borough Council,463458,SETTLEMENT,JAN AYERS,C-Z12210-9138,Box Off A/C-TH Hirers Tkt Pd out,16 December 2011,"-7,500.00"
http://statistics.data.gov.uk/id/local-authority-district/23UB,Cheltenham Borough Council,463458,SETTLEMENT,JAN AYERS,C-Z12210-9276,Box Off A/C-Hirers Invoices Pd,16 December 2011,-72.00
http://statistics.data.gov.uk/id/local-authority-district/23UB,Cheltenham Borough Council,463024,S&B257,JOHN SPIERS & JON BODEN,C-1T30G1-3568,Spiers & Boden-Artist Fees,12 December 2011,583.50
http://statistics.data.gov.uk/id/local-authority-district/23UB,Cheltenham Borough Council,463461,SETTLEMENT,JUBILATE CHAMBER CHOIR,C-N13125-9205,ASH Ledger-Town Hall Invoices Paid,16 December 2011,"-1,992.72"
http://statistics.data.gov.uk/id/local-authority-district/23UB,Cheltenham Borough Council,463461,SETTLEMENT,JUBILATE CHAMBER CHOIR,C-Z12210-9138,Box Off A/C-TH Hirers Tkt Pd out,16 December 2011,"3,699.00"
http://statistics.data.gov.uk/id/local-authority-district/23UB,Cheltenham Borough Council,463461,SETTLEMENT,JUBILATE CHAMBER CHOIR,C-Z12210-9276,Box Off A/C-Hirers Invoices Pd,16 December 2011,-114.00
http://statistics.data.gov.uk/id/local-authority-district/23UB,Cheltenham Borough Council,463578,00001530,JUST FOR LAUGHS LIVE LIMITED,C-1T12H1-3568,Jerry Sadowitz-Artist Fees,21 December 2011,"3,101.90"
http://statistics.data.gov.uk/id/local-authority-district/23UB,Cheltenham Borough Council,463052,994,K B BUILDING SERVICES UK LIMITED,C-H4207G-1104,Gen Wks 2207-Council House repairs,15 December 2011,"1,310.00"
http://statistics.data.gov.uk/id/local-authority-district/23UB,Cheltenham Borough Council,463051,984,K B BUILDING SERVICES UK LIMITED,C-HC4841-C302,Major Voids-Building Contractor,15 December 2011,"7,495.00"
http://statistics.data.gov.uk/id/local-authority-district/23UB,Cheltenham Borough Council,463051,984,K B BUILDING SERVICES UK LIMITED,C-N11250-9227,Excluded,15 December 2011,"-1,384.20"
http://statistics.data.gov.uk/id/local-authority-district/23UB,Cheltenham Borough Council,463052,994,K B BUILDING SERVICES UK LIMITED,C-N11250-9227,Excluded,15 December 2011,-204.00
http://statistics.data.gov.uk/id/local-authority-district/23UB,Cheltenham Borough Council,462908,1627,KERRY PLUMBING LIMITED,C-H44752-1104,Dis Adapts-Tech-Council House repairs,09 December 2011,890.00
http://statistics.data.gov.uk/id/local-authority-district/23UB,Cheltenham Borough Council,462908,1627,KERRY PLUMBING LIMITED,C-N11250-9227,Excluded,09 December 2011,-78.00
http://statistics.data.gov.uk/id/local-authority-district/23UB,Cheltenham Borough Council,463347,OP/1502915,KILLGERM CHEMICALS LTD,C-E61350-3110,Pests Control-Materials,15 December 2011,113.13
http://statistics.data.gov.uk/id/local-authority-district/23UB,Cheltenham Borough Council,463347,OP/1502915,KILLGERM CHEMICALS LTD,C-E61350-3110,Pests Control-Materials,15 December 2011,164.05
http://statistics.data.gov.uk/id/local-authority-district/23UB,Cheltenham Borough Council,463347,OP/1502915,KILLGERM CHEMICALS LTD,C-E61350-3110,Pests Control-Materials,15 December 2011,5.91
http://statistics.data.gov.uk/id/local-authority-district/23UB,Cheltenham Borough Council,463347,OP/1502915,KILLGERM CHEMICALS LTD,C-E61350-3110,Pests Control-Materials,15 December 2011,37.23
http://statistics.data.gov.uk/id/local-authority-district/23UB,Cheltenham Borough Council,463347,OP/1502915,KILLGERM CHEMICALS LTD,C-E61350-3110,Pests Control-Materials,15 December 2011,33.23
http://statistics.data.gov.uk/id/local-authority-district/23UB,Cheltenham Borough Council,463347,OP/1502915,KILLGERM CHEMICALS LTD,C-E61350-3110,Pests Control-Materials,15 December 2011,204.78
http://statistics.data.gov.uk/id/local-authority-district/23UB,Cheltenham Borough Council,463347,OP/1502915,KILLGERM CHEMICALS LTD,C-E61350-3110,Pests Control-Materials,15 December 2011,101.26
http://statistics.data.gov.uk/id/local-authority-district/23UB,Cheltenham Borough Council,462572,COMMUNITY PRI,KISS MY FACE MUSIC,C-D21970-3677,Parish Pride-Parish Council - Community,05 December 2011,500.00
http://statistics.data.gov.uk/id/local-authority-district/23UB,Cheltenham Borough Council,463677,121-002303,L G BROWN ASSOCIATES,C-E21100-3401,Car Prks-Off St-Printing - general,21 December 2011,"1,990.80"
http://statistics.data.gov.uk/id/local-authority-district/23UB,Cheltenham Borough Council,462662,101758,LAVAT CONSULTING LTD,C-IT0074-350A,Waste Company-Consultants Fees,02 December 2011,"1,887.00"
http://statistics.data.gov.uk/id/local-authority-district/23UB,Cheltenham Borough Council,463317,77381,LIBERTY PRINTERS LTD,C-E36200-3410,On-St Car Prkng-Stationery & office supp,15 December 2011,"1,135.00"
http://statistics.data.gov.uk/id/local-authority-district/23UB,Cheltenham Borough Council,463253,3834,LIBERTY PRINTERS LTD,C-L11500-3501,Rec Facilities-Hire of outside services,15 December 2011,25.00
http://statistics.data.gov.uk/id/local-authority-district/23UB,Cheltenham Borough Council,463253,3834,LIBERTY PRINTERS LTD,C-L11500-3501,Rec Facilities-Hire of outside services,15 December 2011,45.00
http://statistics.data.gov.uk/id/local-authority-district/23UB,Cheltenham Borough Council,463253,3834,LIBERTY PRINTERS LTD,C-L11500-3501,Rec Facilities-Hire of outside services,15 December 2011,47.50
http://statistics.data.gov.uk/id/local-authority-district/23UB,Cheltenham Borough Council,463253,3834,LIBERTY PRINTERS LTD,C-L11500-3501,Rec Facilities-Hire of outside services,15 December 2011,850.25
http://statistics.data.gov.uk/id/local-authority-district/23UB,Cheltenham Borough Council,463680,22507,GLEVUM SECURITY,C-E21100-3501,Car Prks-Off St-Hire of outside services,21 December 2011,35.00
http://statistics.data.gov.uk/id/local-authority-district/23UB,Cheltenham Borough Council,463684,22663,GLEVUM SECURITY,C-E21100-3501,Car Prks-Off St-Hire of outside services,21 December 2011,442.25
http://statistics.data.gov.uk/id/local-authority-district/23UB,Cheltenham Borough Council,463684,22663,GLEVUM SECURITY,C-E21100-3501,Car Prks-Off St-Hire of outside services,21 December 2011,435.00
http://statistics.data.gov.uk/id/local-authority-district/23UB,Cheltenham Borough Council,463684,22663,GLEVUM SECURITY,C-E21100-3501,Car Prks-Off St-Hire of outside services,21 December 2011,435.00
http://statistics.data.gov.uk/id/local-authority-district/23UB,Cheltenham Borough Council,463686,22664,GLEVUM SECURITY,C-E21150-1808,Royal Well B/S-RM-Routine works,21 December 2011,174.00
http://statistics.data.gov.uk/id/local-authority-district/23UB,Cheltenham Borough Council,463682,9045,LSS CONSULTANTS LIMITED,C-E36200-3501,On-St Car Prkng-Hire of outside services,21 December 2011,925.00
http://statistics.data.gov.uk/id/local-authority-district/23UB,Cheltenham Borough Council,463328,0024 NOVEMBER,MARK MASTERS,C-L11500-3522,Rec Facilities-Coaching scheme,15 December 2011,150.00
http://statistics.data.gov.uk/id/local-authority-district/23UB,Cheltenham Borough Council,463328,0024 NOVEMBER,MARK MASTERS,C-L11500-3522,Rec Facilities-Coaching scheme,15 December 2011,252.00
http://statistics.data.gov.uk/id/local-authority-district/23UB,Cheltenham Borough Council,463328,0024 NOVEMBER,MARK MASTERS,C-L11500-3522,Rec Facilities-Coaching scheme,15 December 2011,75.00
http://statistics.data.gov.uk/id/local-authority-district/23UB,Cheltenham Borough Council,463328,0024 NOVEMBER,MARK MASTERS,C-L11500-3522,Rec Facilities-Coaching scheme,15 December 2011,189.00
http://statistics.data.gov.uk/id/local-authority-district/23UB,Cheltenham Borough Council,463328,0024 NOVEMBER,MARK MASTERS,C-L11500-3522,Rec Facilities-Coaching scheme,15 December 2011,84.00
http://statistics.data.gov.uk/id/local-authority-district/23UB,Cheltenham Borough Council,462259,2520,MARK WROOT AGRICULTURAL & GARDENS SERV,C-C22115-3501,Grass Verges-Hire of outside services,02 December 2011,"2,052.00"
http://statistics.data.gov.uk/id/local-authority-district/23UB,Cheltenham Borough Council,463643,129712,MATTA PRODUCTS UK LIMITED,C-LC6006-C306,Play Area Maint-Landscape Contractor,21 December 2011,"2,142.40"
http://statistics.data.gov.uk/id/local-authority-district/23UB,Cheltenham Borough Council,463647,129713,MATTA PRODUCTS UK LIMITED,C-LC6006-C306,Play Area Maint-Landscape Contractor,21 December 2011,"3,500.00"
http://statistics.data.gov.uk/id/local-authority-district/23UB,Cheltenham Borough Council,463647,129713,MATTA PRODUCTS UK LIMITED,C-LC6006-C306,Play Area Maint-Landscape Contractor,21 December 2011,665.00
http://statistics.data.gov.uk/id/local-authority-district/23UB,Cheltenham Borough Council,463648,129709,MATTA PRODUCTS UK LIMITED,C-LC6006-C601,Play Area Maint-Equipment,21 December 2011,"6,622.19"
http://statistics.data.gov.uk/id/local-authority-district/23UB,Cheltenham Borough Council,462996,H1529,MCDONNELL PRICE  ROOFING CONTRACTORS LTD,C-HC4843-C302,External Imp-Building Contractor,09 December 2011,"15,621.63"
http://statistics.data.gov.uk/id/local-authority-district/23UB,Cheltenham Borough Council,462583,REDACTED,MEARS HOME IMPROVEMENTS LTD,C-HC7400-C801,H&S Grant-Grants,05 December 2011,999.00
http://statistics.data.gov.uk/id/local-authority-district/23UB,Cheltenham Borough Council,462585,REDACTED,MEARS HOME IMPROVEMENTS LTD,C-HC7440-C801,DFG.96.Act-Grants,05 December 2011,859.13
http://statistics.data.gov.uk/id/local-authority-district/23UB,Cheltenham Borough Council,462580,REDACTED,MEARS HOME IMPROVEMENTS LTD,C-HC7440-C801,DFG.96.Act-Grants,05 December 2011,826.13
http://statistics.data.gov.uk/id/local-authority-district/23UB,Cheltenham Borough Council,463469,REDACTED,MEARS HOME IMPROVEMENTS LTD,C-HC7400-C801,H&S Grant-Grants,15 December 2011,943.75
http://statistics.data.gov.uk/id/local-authority-district/23UB,Cheltenham Borough Council,463477,REDACTED,MEARS HOME IMPROVEMENTS LTD,C-HC7440-C801,DFG.96.Act-Grants,15 December 2011,518.50
http://statistics.data.gov.uk/id/local-authority-district/23UB,Cheltenham Borough Council,463473,REDACTED,MEARS HOME IMPROVEMENTS LTD,C-HC7440-C801,DFG.96.Act-Grants,15 December 2011,"4,086.25"
http://statistics.data.gov.uk/id/local-authority-district/23UB,Cheltenham Borough Council,462285,03263,MG WINDOWS CHELTENHAM LIMITED,C-H44350-1104,Window Repairs-Council House repairs,02 December 2011,138.62
http://statistics.data.gov.uk/id/local-authority-district/23UB,Cheltenham Borough Council,462286,03275,MG WINDOWS CHELTENHAM LIMITED,C-H44350-1104,Window Repairs-Council House repairs,02 December 2011,23.60
http://statistics.data.gov.uk/id/local-authority-district/23UB,Cheltenham Borough Council,462287,03251,MG WINDOWS CHELTENHAM LIMITED,C-H44350-1104,Window Repairs-Council House repairs,02 December 2011,214.14
http://statistics.data.gov.uk/id/local-authority-district/23UB,Cheltenham Borough Council,462292,03252,MG WINDOWS CHELTENHAM LIMITED,C-H44350-1104,Window Repairs-Council House repairs,02 December 2011,136.45
http://statistics.data.gov.uk/id/local-authority-district/23UB,Cheltenham Borough Council,462294,03259,MG WINDOWS CHELTENHAM LIMITED,C-H44350-1104,Window Repairs-Council House repairs,02 December 2011,57.93
http://statistics.data.gov.uk/id/local-authority-district/23UB,Cheltenham Borough Council,462296,03225,MG WINDOWS CHELTENHAM LIMITED,C-H44350-1104,Window Repairs-Council House repairs,02 December 2011,145.40
http://statistics.data.gov.uk/id/local-authority-district/23UB,Cheltenham Borough Council,462298,03239,MG WINDOWS CHELTENHAM LIMITED,C-H44350-1104,Window Repairs-Council House repairs,02 December 2011,80.69
http://statistics.data.gov.uk/id/local-authority-district/23UB,Cheltenham Borough Council,462300,03266,MG WINDOWS CHELTENHAM LIMITED,C-H44350-1104,Window Repairs-Council House repairs,02 December 2011,44.40
http://statistics.data.gov.uk/id/local-authority-district/23UB,Cheltenham Borough Council,462304,03269,MG WINDOWS CHELTENHAM LIMITED,C-H44350-1104,Window Repairs-Council House repairs,02 December 2011,54.00
http://statistics.data.gov.uk/id/local-authority-district/23UB,Cheltenham Borough Council,462303,03270,MG WINDOWS CHELTENHAM LIMITED,C-H44350-1104,Window Repairs-Council House repairs,02 December 2011,93.60
http://statistics.data.gov.uk/id/local-authority-district/23UB,Cheltenham Borough Council,462302,03256,MG WINDOWS CHELTENHAM LIMITED,C-H44350-1104,Window Repairs-Council House repairs,02 December 2011,28.60
http://statistics.data.gov.uk/id/local-authority-district/23UB,Cheltenham Borough Council,462301,03267,MG WINDOWS CHELTENHAM LIMITED,C-H44350-1104,Window Repairs-Council House repairs,02 December 2011,105.70
http://statistics.data.gov.uk/id/local-authority-district/23UB,Cheltenham Borough Council,462299,03272,MG WINDOWS CHELTENHAM LIMITED,C-H44350-1104,Window Repairs-Council House repairs,02 December 2011,20.00
http://statistics.data.gov.uk/id/local-authority-district/23UB,Cheltenham Borough Council,462297,03257,MG WINDOWS CHELTENHAM LIMITED,C-H44350-1104,Window Repairs-Council House repairs,02 December 2011,39.60
http://statistics.data.gov.uk/id/local-authority-district/23UB,Cheltenham Borough Council,462295,03268,MG WINDOWS CHELTENHAM LIMITED,C-H44350-1104,Window Repairs-Council House repairs,02 December 2011,40.00
http://statistics.data.gov.uk/id/local-authority-district/23UB,Cheltenham Borough Council,462293,03265,MG WINDOWS CHELTENHAM LIMITED,C-H44350-1104,Window Repairs-Council House repairs,02 December 2011,36.74
http://statistics.data.gov.uk/id/local-authority-district/23UB,Cheltenham Borough Council,462291,03258,MG WINDOWS CHELTENHAM LIMITED,C-H44350-1104,Window Repairs-Council House repairs,02 December 2011,70.41
http://statistics.data.gov.uk/id/local-authority-district/23UB,Cheltenham Borough Council,462290,03261,MG WINDOWS CHELTENHAM LIMITED,C-H44350-1104,Window Repairs-Council House repairs,02 December 2011,617.00
http://statistics.data.gov.uk/id/local-authority-district/23UB,Cheltenham Borough Council,462289,03274,MG WINDOWS CHELTENHAM LIMITED,C-H44350-1104,Window Repairs-Council House repairs,02 December 2011,498.00
http://statistics.data.gov.uk/id/local-authority-district/23UB,Cheltenham Borough Council,462284,03016,MG WINDOWS CHELTENHAM LIMITED,C-HC4873-C302,Window/Door Ren-Building Contractor,02 December 2011,652.00
http://statistics.data.gov.uk/id/local-authority-district/23UB,Cheltenham Borough Council,462288,03262,MG WINDOWS CHELTENHAM LIMITED,C-HC4873-C302,Window/Door Ren-Building Contractor,02 December 2011,232.00
http://statistics.data.gov.uk/id/local-authority-district/23UB,Cheltenham Borough Council,462725,03290,MG WINDOWS CHELTENHAM LIMITED,C-H44350-1104,Window Repairs-Council House repairs,09 December 2011,88.47
http://statistics.data.gov.uk/id/local-authority-district/23UB,Cheltenham Borough Council,462726,03304,MG WINDOWS CHELTENHAM LIMITED,C-H44350-1104,Window Repairs-Council House repairs,09 December 2011,2.50
http://statistics.data.gov.uk/id/local-authority-district/23UB,Cheltenham Borough Council,462728,03282,MG WINDOWS CHELTENHAM LIMITED,C-H44350-1104,Window Repairs-Council House repairs,09 December 2011,28.60
http://statistics.data.gov.uk/id/local-authority-district/23UB,Cheltenham Borough Council,462730,03283,MG WINDOWS CHELTENHAM LIMITED,C-H44350-1104,Window Repairs-Council House repairs,09 December 2011,49.60
http://statistics.data.gov.uk/id/local-authority-district/23UB,Cheltenham Borough Council,462732,03284,MG WINDOWS CHELTENHAM LIMITED,C-H44350-1104,Window Repairs-Council House repairs,09 December 2011,39.60
http://statistics.data.gov.uk/id/local-authority-district/23UB,Cheltenham Borough Council,462741,03264,MG WINDOWS CHELTENHAM LIMITED,C-H44350-1104,Window Repairs-Council House repairs,09 December 2011,41.36
http://statistics.data.gov.uk/id/local-authority-district/23UB,Cheltenham Borough Council,462740,03260,MG WINDOWS CHELTENHAM LIMITED,C-H44350-1104,Window Repairs-Council House repairs,09 December 2011,20.00
http://statistics.data.gov.uk/id/local-authority-district/23UB,Cheltenham Borough Council,462739,03254,MG WINDOWS CHELTENHAM LIMITED,C-H44350-1104,Window Repairs-Council House repairs,09 December 2011,91.27
http://statistics.data.gov.uk/id/local-authority-district/23UB,Cheltenham Borough Council,462738,03271,MG WINDOWS CHELTENHAM LIMITED,C-H44350-1104,Window Repairs-Council House repairs,09 December 2011,80.82
http://statistics.data.gov.uk/id/local-authority-district/23UB,Cheltenham Borough Council,462737,03253,MG WINDOWS CHELTENHAM LIMITED,C-H44350-1104,Window Repairs-Council House repairs,09 December 2011,88.22
http://statistics.data.gov.uk/id/local-authority-district/23UB,Cheltenham Borough Council,462736,03281,MG WINDOWS CHELTENHAM LIMITED,C-H44350-1104,Window Repairs-Council House repairs,09 December 2011,63.45
http://statistics.data.gov.uk/id/local-authority-district/23UB,Cheltenham Borough Council,462735,03279,MG WINDOWS CHELTENHAM LIMITED,C-H44350-1104,Window Repairs-Council House repairs,09 December 2011,28.60
http://statistics.data.gov.uk/id/local-authority-district/23UB,Cheltenham Borough Council,462734,03278,MG WINDOWS CHELTENHAM LIMITED,C-H44350-1104,Window Repairs-Council House repairs,09 December 2011,29.44
http://statistics.data.gov.uk/id/local-authority-district/23UB,Cheltenham Borough Council,462733,03277,MG WINDOWS CHELTENHAM LIMITED,C-H44350-1104,Window Repairs-Council House repairs,09 December 2011,24.00
http://statistics.data.gov.uk/id/local-authority-district/23UB,Cheltenham Borough Council,462763,03307,MG WINDOWS CHELTENHAM LIMITED,C-H44350-1104,Window Repairs-Council House repairs,09 December 2011,151.62
http://statistics.data.gov.uk/id/local-authority-district/23UB,Cheltenham Borough Council,462762,03303,MG WINDOWS CHELTENHAM LIMITED,C-H44350-1104,Window Repairs-Council House repairs,09 December 2011,176.19
http://statistics.data.gov.uk/id/local-authority-district/23UB,Cheltenham Borough Council,462761,03294,MG WINDOWS CHELTENHAM LIMITED,C-H44350-1104,Window Repairs-Council House repairs,09 December 2011,231.29
http://statistics.data.gov.uk/id/local-authority-district/23UB,Cheltenham Borough Council,462760,03288,MG WINDOWS CHELTENHAM LIMITED,C-H44350-1104,Window Repairs-Council House repairs,09 December 2011,288.34
http://statistics.data.gov.uk/id/local-authority-district/23UB,Cheltenham Borough Council,462759,03305,MG WINDOWS CHELTENHAM LIMITED,C-H44350-1104,Window Repairs-Council House repairs,09 December 2011,51.20
http://statistics.data.gov.uk/id/local-authority-district/23UB,Cheltenham Borough Council,462757,03286,MG WINDOWS CHELTENHAM LIMITED,C-H44350-1104,Window Repairs-Council House repairs,09 December 2011,280.71
http://statistics.data.gov.uk/id/local-authority-district/23UB,Cheltenham Borough Council,462756,3308,MG WINDOWS CHELTENHAM LIMITED,C-H44350-1104,Window Repairs-Council House repairs,09 December 2011,54.40
http://statistics.data.gov.uk/id/local-authority-district/23UB,Cheltenham Borough Council,462755,03311,MG WINDOWS CHELTENHAM LIMITED,C-H44350-1104,Window Repairs-Council House repairs,09 December 2011,34.28
http://statistics.data.gov.uk/id/local-authority-district/23UB,Cheltenham Borough Council,462754,03309,MG WINDOWS CHELTENHAM LIMITED,C-H44350-1104,Window Repairs-Council House repairs,09 December 2011,56.20
http://statistics.data.gov.uk/id/local-authority-district/23UB,Cheltenham Borough Council,462753,03310,MG WINDOWS CHELTENHAM LIMITED,C-H44350-1104,Window Repairs-Council House repairs,09 December 2011,33.80
http://statistics.data.gov.uk/id/local-authority-district/23UB,Cheltenham Borough Council,462752,3300,MG WINDOWS CHELTENHAM LIMITED,C-H44350-1104,Window Repairs-Council House repairs,09 December 2011,80.60
http://statistics.data.gov.uk/id/local-authority-district/23UB,Cheltenham Borough Council,462751,03287,MG WINDOWS CHELTENHAM LIMITED,C-H44350-1104,Window Repairs-Council House repairs,09 December 2011,24.00
http://statistics.data.gov.uk/id/local-authority-district/23UB,Cheltenham Borough Council,462750,03292,MG WINDOWS CHELTENHAM LIMITED,C-H44350-1104,Window Repairs-Council House repairs,09 December 2011,62.81
